{"text_format":"1","workbook":"xlsx","n_sheets":9,"sheets":["Généralités","maison(s)","immeuble(s) collectif(s)","autres surfaces","Vue Resumé","tableau recapitulatif M","tableau recapitulatif IC","data","ML Gestionnaire Sheet"],"not_rendered":{"charts":0,"images":0,"macros":0,"external_links":2,"defined_names":28,"comments":3,"pivot_tables":4},"unopened":[],"bounds":{"document_bytes":16777216,"sheet_cells":100000,"rows_first":2000,"rows_last":500,"rows_between":2000,"halvings":0,"cell_chars":16384,"cell_head_chars":4096},"cells_cut":0,"cells_raw":0,"read":"whole","date_system":"1900"}

{"sheet":"Généralités","index":0,"n_rows":18,"n_cols":4,"rows_kept":18,"cut":false,"hidden":false,"merged":[[12,3,14,3],[12,4,14,4]]}
[null,"Fiche architecturale",null,"Version CTIE"]
[]
[null,"OTP MINISTERE DU LOGEMENT"]
[null,"Gestionnaire",null,"à sélectionner"]
[]
[null,"date: xx/xx/202x",null,"Généralités"]
[]
[null,"Promoteur social"]
[null,"Commune"]
[null,"Lieu-dit"]
[null,"Initulé du projet"]
[null,"Sous-projet/ référence du Promoteur social"]
[null,"Descriptif sommaire"]
[]
[]
[null,"Immeubles collectifs"]
[null,"Maisons"]
[null,"STADE du projet:"]

{"sheet":"maison(s)","index":1,"n_rows":62,"n_cols":202,"rows_kept":62,"cut":false,"hidden":false,"merged":[[66,89,66,119],[61,89,61,119],[62,89,62,119],[63,89,63,119],[64,89,64,119],[65,89,65,119],[2,121,2,201],[4,121,4,201],[4,0,4,1],[4,89,4,119],[6,17,6,19],[1,4,2,21],[4,27,4,36],[4,38,4,51],[20,30,23,31],[4,4,4,19],[4,21,4,25],[8,30,8,31],[6,14,6,16]]}
[]
[null,null,null,null,"Maisons"]
[]
[]
["Récapitulatif",null,null,null,"Unités",null,null,null,null,null,null,null,null,null,null,null,null,null,null,null,null,"Typologies",null,null,null,null,null,"Surfaces",null,null,null,null,null,null,null,null,null,null,"Chambres à coucher",null,null,null,null,null,null,null,null,null,null,null,null,null,null,null,null,null,null,null,null,null,null,null,null,null,null,null,null,null,null,null,null,null,null,null,null,null,null,null,null,null,null,null,null,null,null,null,null,null,null,"Organisation interne",null,null,null,null,null,null,null,null,null,null,null,null,null,null,null,null,null,null,null,null,null,null,null,null,null,null,null,null,null,null,null,"Emplacements privés"]
[]
[null,null,null,null,null,null,null,null,null,null,null,null,null,null,"CPE bien existant",null,null,"CPE du projet"]
[]
[null,null,null,null,"n° lot\n(selon plan)","surface terrains\n(ares)","année de construction","n° de la parcelle cadastrale","numéro de rue","nom de la rue","code postal","localité","bailleur\nsocial","destination du logement\n(vente / location)","Classe de performance énergétique ","Classe d'isolation thermique ","Classe de performance environnementale","Classe de performance énergétique","Classe d'isolation thermique","Classe de performance environnementale",null,"adapté PMR","logement\ncollectif\n(hébergements)","type de logement","affectation du logement","typologie\nlogement",null,"[SUH]\nm2\nlogement",null,"[SUH maximale]\nm2 CDC\nlogement","RATIOS",null,null,"[SCB]\nthéorique du lot",null,"[SCB_log]\nm2","[SNA_log]\nm2",null,"Typologie","ch 01\nm2","Typologie","ch 02\nm2","Typologie","ch 03\nm2","Typologie","ch 04\nm2","Typologie","ch 05\nm2","Typologie","ch 06\nm2","Typologie","ch 07\nm2","Typologie","ch 08\nm2","Typologie","ch 09\nm2","Typologie","ch 10\nm2","Typologie","ch 11\nm2","Typologie","ch 12\nm2","Typologie","ch 13\nm2","Typologie","ch 14\nm2","Typologie","ch 15\nm2","Typologie","ch 16\nm2","Typologie","ch 17\nm2","Typologie","ch 18\nm2","Typologie","ch 19\nm2","Typologie","ch 20\nm2","Typologie","ch 21\nm2","Typologie","ch 22\nm2","Typologie","ch 23\nm2","Typologie","ch 24\nm2","Typologie","ch 25\nm2",null,"débarras/ local technique","niche vestiaire","buanderie","cave privative","n° cadastrale cave","grenier","n° cadastrale grenier",null,null,null,null,null,null,"espace\nextérieur\nprivatif","Pièce d'eau 1","Pièce d'eau 2","Pièce d'eau 3","Pièce d'eau 4",null,null,null,null,null,null,null,null,null,null," cuisine\n (si logement locatif)","local rangement/ stockage type abris de jardin ","local vélos avec \n1 empl. vélo/ chambre",null," Σ nombre d'emplacements par maison",null,"numéro\nunité selon plan 1","n° cadastre\nemplacement 1","type d'emplacement 1",null,"numéro\nunité selon plan 2","n° cadastre\nemplacement 2","type d'emplacement 2",null,"numéro\nunité selon plan 3","n° cadastre\nemplacement 3","type d'emplacement 3",null,"numéro\nunité selon plan 4","n° cadastre\nemplacement 4","type d'emplacement 4",null,"numéro\nunité selon plan 5","n° cadastre\nemplacement 5","type d'emplacement 5",null,"numéro\nunité selon plan 6","n° cadastre\nemplacement 6","type d'emplacement 6",null,"numéro\nunité selon plan 7","n° cadastre\nemplacement 7","type d'emplacement 7",null,"numéro\nunité selon plan 8","n° cadastre\nemplacement 8","type d'emplacement 8",null,"numéro\nunité selon plan 9","n° cadastre\nemplacement 9","type d'emplacement 9",null,"numéro\nunité selon plan 10","n° cadastre\nemplacement 10","type d'emplacement 10",null,"numéro\nunité selon plan 11","n° cadastre\nemplacement 11","type d'emplacement 11",null,"numéro\nunité selon plan 12","n° cadastre\nemplacement 12","type d'emplacement 12",null,"numéro\nunité selon plan 13","n° cadastre\nemplacement 13","type d'emplacement 13",null,"numéro\nunité selon plan 14","n° cadastre\nemplacement 14","type d'emplacement 14",null,"numéro\nunité selon plan 15","n° cadastre\nemplacement 15","type d'emplacement 15",null,"numéro\nunité selon plan 16","n° cadastre\nemplacement 16","type d'emplacement 16",null,"numéro\nunité selon plan 17","n° cadastre\nemplacement 17","type d'emplacement 17",null,"numéro\nunité selon plan 18","n° cadastre\nemplacement 18","type d'emplacement 18",null,"numéro\nunité selon plan 19","n° cadastre\nemplacement 19","type d'emplacement 19",null,"numéro\nunité selon plan 20","n° cadastre\nemplacement 20","type d'emplacement 20"]
["  Σ  logements (MU et logements intégrés)",{"$f":"COUNTA(E10:E60)","v":0},null,null,null,null,null,null,null,null,null,null,null,null,null,null,null,null,null,null,null,null,null,null,null,null,null,null,null,null,null,"[m2]"]
[null,null,null,null,null,null,null,null,null,null,null,null,null,null,null,null,null,null,null,null,null,null,null,null,null,null,null,null,null,{"$f":"IF(OR(V11=\"\", W11=\"\"), \"\",\n    IF(AND(V11=\"non\", W11=\"non\"), SUMIFS( Table5[SUH max],Table5[Type], Z11),\n        IF(AND(V11=\"oui\", W11=\"non\"), SUMIFS( Table5[SUH max], Table5[Type], Z11) * 1.1,\n            IF(AND(V11=\"non\", W11=\"oui\"), VLOOKUP(Z11, data!$P$22:$S$54, 3, FALSE),\n                IF(AND(V11=\"oui\", W11=\"oui\"), VLOOKUP(Z11, data!$V$22:$Y$54, 3, FALSE), \"\"\n                )\n            )\n        )\n    )\n)","v":""},"Σ [SUH] max CDC",{"$f":"SUM(AD10:AD60)","v":0}]
["Σ emplacements privés",{"$f":"SUM(DR10:DR60)","v":0},null,null,null,null,null,null,null,null,null,null,null,null,null,null,null,null,null,null,null,null,null,null,null,null,null,null,null,{"$f":"IF(OR(V12=\"\", W12=\"\"), \"\",\n    IF(AND(V12=\"non\", W12=\"non\"), SUMIFS( Table5[SUH max],Table5[Type], Z12),\n        IF(AND(V12=\"oui\", W12=\"non\"), SUMIFS( Table5[SUH max], Table5[Type], Z12) * 1.1,\n            IF(AND(V12=\"non\", W12=\"oui\"), VLOOKUP(Z12, data!$P$22:$S$54, 3, FALSE),\n                IF(AND(V12=\"oui\", W12=\"oui\"), VLOOKUP(Z12, data!$V$22:$Y$54, 3, FALSE), \"\"\n                )\n            )\n        )\n    )\n)","v":""},"Σ [SUH]",{"$f":"SUM(AB10:AB60)","v":0}]
[null,null,null,null,null,null,null,null,null,null,null,null,null,null,null,null,null,null,null,null,null,null,null,null,null,null,null,null,null,{"$f":"IF(OR(V13=\"\", W13=\"\"), \"\",\n    IF(AND(V13=\"non\", W13=\"non\"), SUMIFS( Table5[SUH max],Table5[Type], Z13),\n        IF(AND(V13=\"oui\", W13=\"non\"), SUMIFS( Table5[SUH max], Table5[Type], Z13) * 1.1,\n            IF(AND(V13=\"non\", W13=\"oui\"), VLOOKUP(Z13, data!$P$22:$S$54, 3, FALSE),\n                IF(AND(V13=\"oui\", W13=\"oui\"), VLOOKUP(Z13, data!$V$22:$Y$54, 3, FALSE), \"\"\n                )\n            )\n        )\n    )\n)","v":""},"Σ [SUH] + autres surfaces",{"$f":"AF12+'autres surfaces'!L12","v":0}]
[null,null,null,null,null,null,null,null,null,null,null,null,null,null,null,null,null,null,null,null,null,null,null,null,null,null,null,null,null,{"$f":"IF(OR(V14=\"\", W14=\"\"), \"\",\n    IF(AND(V14=\"non\", W14=\"non\"), SUMIFS( Table5[SUH max],Table5[Type], Z14),\n        IF(AND(V14=\"oui\", W14=\"non\"), SUMIFS( Table5[SUH max], Table5[Type], Z14) * 1.1,\n            IF(AND(V14=\"non\", W14=\"oui\"), VLOOKUP(Z14, data!$P$22:$S$54, 3, FALSE),\n                IF(AND(V14=\"oui\", W14=\"oui\"), VLOOKUP(Z14, data!$V$22:$Y$54, 3, FALSE), \"\"\n                )\n            )\n        )\n    )\n)","v":""},"Σ [SCB_log]",{"$f":"SUM(AJ10:AJ60)","v":0}]
["Logement(s) avec 2 chambres",{"$f":"IFERROR(SUM(COUNTIF(Z10:Z60,{\"2.2\";\"2.3\";\"2.4\"}))/B10,0)","v":0},{"$f":"IFERROR(SUM(COUNTIF(Z10:Z60,{\"2.2\";\"2.3\";\"2.4\"})),0)","v":0},null,null,null,null,null,null,null,null,null,null,null,null,null,null,null,null,null,null,null,null,null,null,null,null,null,null,{"$f":"IF(OR(V15=\"\", W15=\"\"), \"\",\n    IF(AND(V15=\"non\", W15=\"non\"), SUMIFS( Table5[SUH max],Table5[Type], Z15),\n        IF(AND(V15=\"oui\", W15=\"non\"), SUMIFS( Table5[SUH max], Table5[Type], Z15) * 1.1,\n            IF(AND(V15=\"non\", W15=\"oui\"), VLOOKUP(Z15, data!$P$22:$S$54, 3, FALSE),\n                IF(AND(V15=\"oui\", W15=\"oui\"), VLOOKUP(Z15, data!$V$22:$Y$54, 3, FALSE), \"\"\n                )\n            )\n        )\n    )\n)","v":""},"Σ [SNA_log]",{"$f":"SUM(AK10:AK60)","v":0}]
["3 chambres",{"$f":"IFERROR(SUM(COUNTIF(Z10:Z60,{\"3.3\";\"3.4\";\"3.5\";\"3.6\"}))/B10,0)","v":0},{"$f":"IFERROR(SUM(COUNTIF(Z10:Z60,{\"3.3\";\"3.4\";\"3.5\";\"3.6\"})),0)","v":0},null,null,null,null,null,null,null,null,null,null,null,null,null,null,null,null,null,null,null,null,null,null,null,null,null,null,{"$f":"IF(OR(V16=\"\", W16=\"\"), \"\",\n    IF(AND(V16=\"non\", W16=\"non\"), SUMIFS( Table5[SUH max],Table5[Type], Z16),\n        IF(AND(V16=\"oui\", W16=\"non\"), SUMIFS( Table5[SUH max], Table5[Type], Z16) * 1.1,\n            IF(AND(V16=\"non\", W16=\"oui\"), VLOOKUP(Z16, data!$P$22:$S$54, 3, FALSE),\n                IF(AND(V16=\"oui\", W16=\"oui\"), VLOOKUP(Z16, data!$V$22:$Y$54, 3, FALSE), \"\"\n                )\n            )\n        )\n    )\n)","v":""},"% logement",{"$f":"IFERROR(AF12/AF13,0)","v":0}]
["4 chambres",{"$f":"IFERROR(SUM(COUNTIF(Z10:Z60,{\"4.4\";\"4.5\";\"4.6\";\"4.7\";\"4.8\"}))/B10,0)","v":0},{"$f":"IFERROR(SUM(COUNTIF(Z10:Z60,{\"4.4\";\"4.5\";\"4.6\";\"4.7\";\"4.8\"})),0)","v":0},null,null,null,null,null,null,null,null,null,null,null,null,null,null,null,null,null,null,null,null,null,null,null,null,null,null,{"$f":"IF(OR(V17=\"\", W17=\"\"), \"\",\n    IF(AND(V17=\"non\", W17=\"non\"), SUMIFS( Table5[SUH max],Table5[Type], Z17),\n        IF(AND(V17=\"oui\", W17=\"non\"), SUMIFS( Table5[SUH max], Table5[Type], Z17) * 1.1,\n            IF(AND(V17=\"non\", W17=\"oui\"), VLOOKUP(Z17, data!$P$22:$S$54, 3, FALSE),\n                IF(AND(V17=\"oui\", W17=\"oui\"), VLOOKUP(Z17, data!$V$22:$Y$54, 3, FALSE), \"\"\n                )\n            )\n        )\n    )\n)","v":""},"Σ [SUH]/ Σ [SCB_log]",{"$f":"IFERROR(AF12/AF14,\"\")","v":""}]
["5 chambres",{"$f":"IFERROR(SUM(COUNTIF(Z10:Z60,{\"5.5\";\"5.6\";\"5.7\";\"5.8\";\"5.9\";\"5.10\"}))/B10,0)","v":0},{"$f":"IFERROR(SUM(COUNTIF(Z10:Z60,{\"5.5\";\"5.6\";\"5.7\";\"5.8\";\"5.9\";\"5.10\"})),0)","v":0},null,null,null,null,null,null,null,null,null,null,null,null,null,null,null,null,null,null,null,null,null,null,null,null,null,null,{"$f":"IF(OR(V18=\"\", W18=\"\"), \"\",\n    IF(AND(V18=\"non\", W18=\"non\"), SUMIFS( Table5[SUH max],Table5[Type], Z18),\n        IF(AND(V18=\"oui\", W18=\"non\"), SUMIFS( Table5[SUH max], Table5[Type], Z18) * 1.1,\n            IF(AND(V18=\"non\", W18=\"oui\"), VLOOKUP(Z18, data!$P$22:$S$54, 3, FALSE),\n                IF(AND(V18=\"oui\", W18=\"oui\"), VLOOKUP(Z18, data!$V$22:$Y$54, 3, FALSE), \"\"\n                )\n            )\n        )\n    )\n)","v":""},"Σ [SNA_log]/ Σ [SCB_log]",{"$f":"IFERROR(AF15/AF14,\"\")","v":""}]
["6+ chambres",{"$f":"IFERROR(SUM(COUNTIF(Z10:Z60,{\"6.6\";\"6.7\";\"6.8\";\"6.9\";\"6.10\";\"6.11\";\"6.12\";\"7.7\";\"7.8\";\"7.9\";\"7.10\";\"7.11\";\"7.12\";\"7.13\";\"7.14\";\"8.8\";\"8.10\";\"8.12\";\"9.9\";\"9.13\";\"9.15\";\"10.10\";\"10.14\";\"10.18\";\"15.15\";\"15.20\";\"15.25\";\"20.20\";\"20.25\";\"20.30\"}))/B10,0)","v":0},{"$f":"IFERROR(SUM(COUNTIF(Z10:Z60,{\"6.6\";\"6.7\";\"6.8\";\"6.9\";\"6.10\";\"6.11\";\"6.12\";\"7.7\";\"7.8\";\"7.9\";\"7.10\";\"7.11\";\"7.12\";\"7.13\";\"7.14\";\"8.8\";\"8.10\";\"8.12\";\"9.9\";\"9.13\";\"9.15\";\"10.10\";\"10.14\";\"10.18\";\"15.15\";\"15.20\";\"15.25\";\"20.20\";\"20.25\";\"20.30\"})),0)","v":0},null,null,null,null,null,null,null,null,null,null,null,null,null,null,null,null,null,null,null,null,null,null,null,null,null,null,{"$f":"IF(OR(V19=\"\", W19=\"\"), \"\",\n    IF(AND(V19=\"non\", W19=\"non\"), SUMIFS( Table5[SUH max],Table5[Type], Z19),\n        IF(AND(V19=\"oui\", W19=\"non\"), SUMIFS( Table5[SUH max], Table5[Type], Z19) * 1.1,\n            IF(AND(V19=\"non\", W19=\"oui\"), VLOOKUP(Z19, data!$P$22:$S$54, 3, FALSE),\n                IF(AND(V19=\"oui\", W19=\"oui\"), VLOOKUP(Z19, data!$V$22:$Y$54, 3, FALSE), \"\"\n                )\n            )\n        )\n    )\n)","v":""}]
["Logements intégrés",{"$f":"COUNTIF(X9:X60,\"logement intégré\")","v":0},null,null,null,null,null,null,null,null,null,null,null,null,null,null,null,null,null,null,null,null,null,null,null,null,null,null,null,{"$f":"IF(OR(V20=\"\", W20=\"\"), \"\",\n    IF(AND(V20=\"non\", W20=\"non\"), SUMIFS( Table5[SUH max],Table5[Type], Z20),\n        IF(AND(V20=\"oui\", W20=\"non\"), SUMIFS( Table5[SUH max], Table5[Type], Z20) * 1.1,\n            IF(AND(V20=\"non\", W20=\"oui\"), VLOOKUP(Z20, data!$P$22:$S$54, 3, FALSE),\n                IF(AND(V20=\"oui\", W20=\"oui\"), VLOOKUP(Z20, data!$V$22:$Y$54, 3, FALSE), \"\"\n                )\n            )\n        )\n    )\n)","v":""}]
[null,null,null,null,null,null,null,null,null,null,null,null,null,null,null,null,null,null,null,null,null,null,null,null,null,null,null,null,null,{"$f":"IF(OR(V21=\"\", W21=\"\"), \"\",\n    IF(AND(V21=\"non\", W21=\"non\"), SUMIFS( Table5[SUH max],Table5[Type], Z21),\n        IF(AND(V21=\"oui\", W21=\"non\"), SUMIFS( Table5[SUH max], Table5[Type], Z21) * 1.1,\n            IF(AND(V21=\"non\", W21=\"oui\"), VLOOKUP(Z21, data!$P$22:$S$54, 3, FALSE),\n                IF(AND(V21=\"oui\", W21=\"oui\"), VLOOKUP(Z21, data!$V$22:$Y$54, 3, FALSE), \"\"\n                )\n            )\n        )\n    )\n)","v":""},"surfaces consolidées minimisées\n--> och bei den logements collectif ergänzen\n(case réservé au MLOGAT)"]
["Logements adaptés PMR",{"$f":"COUNTIF(V10:V60,\"oui\")","v":0},null,null,null,null,null,null,null,null,null,null,null,null,null,null,null,null,null,null,null,null,null,null,null,null,null,null,null,{"$f":"IF(OR(V22=\"\", W22=\"\"), \"\",\n    IF(AND(V22=\"non\", W22=\"non\"), SUMIFS( Table5[SUH max],Table5[Type], Z22),\n        IF(AND(V22=\"oui\", W22=\"non\"), SUMIFS( Table5[SUH max], Table5[Type], Z22) * 1.1,\n            IF(AND(V22=\"non\", W22=\"oui\"), VLOOKUP(Z22, data!$P$22:$S$54, 3, FALSE),\n                IF(AND(V22=\"oui\", W22=\"oui\"), VLOOKUP(Z22, data!$V$22:$Y$54, 3, FALSE), \"\"\n                )\n            )\n        )\n    )\n)","v":""}]
[null,null,null,null,null,null,null,null,null,null,null,null,null,null,null,null,null,null,null,null,null,null,null,null,null,null,null,null,null,{"$f":"IF(OR(V23=\"\", W23=\"\"), \"\",\n    IF(AND(V23=\"non\", W23=\"non\"), SUMIFS( Table5[SUH max],Table5[Type], Z23),\n        IF(AND(V23=\"oui\", W23=\"non\"), SUMIFS( Table5[SUH max], Table5[Type], Z23) * 1.1,\n            IF(AND(V23=\"non\", W23=\"oui\"), VLOOKUP(Z23, data!$P$22:$S$54, 3, FALSE),\n                IF(AND(V23=\"oui\", W23=\"oui\"), VLOOKUP(Z23, data!$V$22:$Y$54, 3, FALSE), \"\"\n                )\n            )\n        )\n    )\n)","v":""}]
["Location abordable",{"$f":"COUNTIF(N10:N60,\"location abordable\")","v":0},null,null,null,null,null,null,null,null,null,null,null,null,null,null,null,null,null,null,null,null,null,null,null,null,null,null,null,{"$f":"IF(OR(V24=\"\", W24=\"\"), \"\",\n    IF(AND(V24=\"non\", W24=\"non\"), SUMIFS( Table5[SUH max],Table5[Type], Z24),\n        IF(AND(V24=\"oui\", W24=\"non\"), SUMIFS( Table5[SUH max], Table5[Type], Z24) * 1.1,\n            IF(AND(V24=\"non\", W24=\"oui\"), VLOOKUP(Z24, data!$P$22:$S$54, 3, FALSE),\n                IF(AND(V24=\"oui\", W24=\"oui\"), VLOOKUP(Z24, data!$V$22:$Y$54, 3, FALSE), \"\"\n                )\n            )\n        )\n    )\n)","v":""}]
["Vente à coût modéré",{"$f":"COUNTIF(N10:N60,\"vente à coût modéré\")","v":0},null,null,null,null,null,null,null,null,null,null,null,null,null,null,null,null,null,null,null,null,null,null,null,null,null,null,null,{"$f":"IF(OR(V25=\"\", W25=\"\"), \"\",\n    IF(AND(V25=\"non\", W25=\"non\"), SUMIFS( Table5[SUH max],Table5[Type], Z25),\n        IF(AND(V25=\"oui\", W25=\"non\"), SUMIFS( Table5[SUH max], Table5[Type], Z25) * 1.1,\n            IF(AND(V25=\"non\", W25=\"oui\"), VLOOKUP(Z25, data!$P$22:$S$54, 3, FALSE),\n                IF(AND(V25=\"oui\", W25=\"oui\"), VLOOKUP(Z25, data!$V$22:$Y$54, 3, FALSE), \"\"\n                )\n            )\n        )\n    )\n)","v":""}]
["Vente abordable",{"$f":"COUNTIF(N10:N60,\"vente abordable\")","v":0},null,null,null,null,null,null,null,null,null,null,null,null,null,null,null,null,null,null,null,null,null,null,null,null,null,null,null,{"$f":"IF(OR(V26=\"\", W26=\"\"), \"\",\n    IF(AND(V26=\"non\", W26=\"non\"), SUMIFS( Table5[SUH max],Table5[Type], Z26),\n        IF(AND(V26=\"oui\", W26=\"non\"), SUMIFS( Table5[SUH max], Table5[Type], Z26) * 1.1,\n            IF(AND(V26=\"non\", W26=\"oui\"), VLOOKUP(Z26, data!$P$22:$S$54, 3, FALSE),\n                IF(AND(V26=\"oui\", W26=\"oui\"), VLOOKUP(Z26, data!$V$22:$Y$54, 3, FALSE), \"\"\n                )\n            )\n        )\n    )\n)","v":""}]
[null,null,null,null,null,null,null,null,null,null,null,null,null,null,null,null,null,null,null,null,null,null,null,null,null,null,null,null,null,{"$f":"IF(OR(V27=\"\", W27=\"\"), \"\",\n    IF(AND(V27=\"non\", W27=\"non\"), SUMIFS( Table5[SUH max],Table5[Type], Z27),\n        IF(AND(V27=\"oui\", W27=\"non\"), SUMIFS( Table5[SUH max], Table5[Type], Z27) * 1.1,\n            IF(AND(V27=\"non\", W27=\"oui\"), VLOOKUP(Z27, data!$P$22:$S$54, 3, FALSE),\n                IF(AND(V27=\"oui\", W27=\"oui\"), VLOOKUP(Z27, data!$V$22:$Y$54, 3, FALSE), \"\"\n                )\n            )\n        )\n    )\n)","v":""}]
["Ratio vente abordable",{"$f":"IFERROR(B26/SUM(B25:B26),\"\")","v":""},null,null,null,null,null,null,null,null,null,null,null,null,null,null,null,null,null,null,null,null,null,null,null,null,null,null,null,{"$f":"IF(OR(V28=\"\", W28=\"\"), \"\",\n    IF(AND(V28=\"non\", W28=\"non\"), SUMIFS( Table5[SUH max],Table5[Type], Z28),\n        IF(AND(V28=\"oui\", W28=\"non\"), SUMIFS( Table5[SUH max], Table5[Type], Z28) * 1.1,\n            IF(AND(V28=\"non\", W28=\"oui\"), VLOOKUP(Z28, data!$P$22:$S$54, 3, FALSE),\n                IF(AND(V28=\"oui\", W28=\"oui\"), VLOOKUP(Z28, data!$V$22:$Y$54, 3, FALSE), \"\"\n                )\n            )\n        )\n    )\n)","v":""}]
[null,null,null,null,null,null,null,null,null,null,null,null,null,null,null,null,null,null,null,null,null,null,null,null,null,null,null,null,null,{"$f":"IF(OR(V29=\"\", W29=\"\"), \"\",\n    IF(AND(V29=\"non\", W29=\"non\"), SUMIFS( Table5[SUH max],Table5[Type], Z29),\n        IF(AND(V29=\"oui\", W29=\"non\"), SUMIFS( Table5[SUH max], Table5[Type], Z29) * 1.1,\n            IF(AND(V29=\"non\", W29=\"oui\"), VLOOKUP(Z29, data!$P$22:$S$54, 3, FALSE),\n                IF(AND(V29=\"oui\", W29=\"oui\"), VLOOKUP(Z29, data!$V$22:$Y$54, 3, FALSE), \"\"\n                )\n            )\n        )\n    )\n)","v":""}]
["Σ surfaces terrains",{"$f":"SUM(F10:F60)","v":0},null,null,null,null,null,null,null,null,null,null,null,null,null,null,null,null,null,null,null,null,null,null,null,null,null,null,null,{"$f":"IF(OR(V30=\"\", W30=\"\"), \"\",\n    IF(AND(V30=\"non\", W30=\"non\"), SUMIFS( Table5[SUH max],Table5[Type], Z30),\n        IF(AND(V30=\"oui\", W30=\"non\"), SUMIFS( Table5[SUH max], Table5[Type], Z30) * 1.1,\n            IF(AND(V30=\"non\", W30=\"oui\"), VLOOKUP(Z30, data!$P$22:$S$54, 3, FALSE),\n                IF(AND(V30=\"oui\", W30=\"oui\"), VLOOKUP(Z30, data!$V$22:$Y$54, 3, FALSE), \"\"\n                )\n            )\n        )\n    )\n)","v":""}]
[null,null,null,null,null,null,null,null,null,null,null,null,null,null,null,null,null,null,null,null,null,null,null,null,null,null,null,null,null,{"$f":"IF(OR(V31=\"\", W31=\"\"), \"\",\n    IF(AND(V31=\"non\", W31=\"non\"), SUMIFS( Table5[SUH max],Table5[Type], Z31),\n        IF(AND(V31=\"oui\", W31=\"non\"), SUMIFS( Table5[SUH max], Table5[Type], Z31) * 1.1,\n            IF(AND(V31=\"non\", W31=\"oui\"), VLOOKUP(Z31, data!$P$22:$S$54, 3, FALSE),\n                IF(AND(V31=\"oui\", W31=\"oui\"), VLOOKUP(Z31, data!$V$22:$Y$54, 3, FALSE), \"\"\n                )\n            )\n        )\n    )\n)","v":""}]
[null,null,null,null,null,null,null,null,null,null,null,null,null,null,null,null,null,null,null,null,null,null,null,null,null,null,null,null,null,{"$f":"IF(OR(V32=\"\", W32=\"\"), \"\",\n    IF(AND(V32=\"non\", W32=\"non\"), SUMIFS( Table5[SUH max],Table5[Type], Z32),\n        IF(AND(V32=\"oui\", W32=\"non\"), SUMIFS( Table5[SUH max], Table5[Type], Z32) * 1.1,\n            IF(AND(V32=\"non\", W32=\"oui\"), VLOOKUP(Z32, data!$P$22:$S$54, 3, FALSE),\n                IF(AND(V32=\"oui\", W32=\"oui\"), VLOOKUP(Z32, data!$V$22:$Y$54, 3, FALSE), \"\"\n                )\n            )\n        )\n    )\n)","v":""}]
[null,null,null,null,null,null,null,null,null,null,null,null,null,null,null,null,null,null,null,null,null,null,null,null,null,null,null,null,null,{"$f":"IF(OR(V33=\"\", W33=\"\"), \"\",\n    IF(AND(V33=\"non\", W33=\"non\"), SUMIFS( Table5[SUH max],Table5[Type], Z33),\n        IF(AND(V33=\"oui\", W33=\"non\"), SUMIFS( Table5[SUH max], Table5[Type], Z33) * 1.1,\n            IF(AND(V33=\"non\", W33=\"oui\"), VLOOKUP(Z33, data!$P$22:$S$54, 3, FALSE),\n                IF(AND(V33=\"oui\", W33=\"oui\"), VLOOKUP(Z33, data!$V$22:$Y$54, 3, FALSE), \"\"\n                )\n            )\n        )\n    )\n)","v":""}]
[null,null,null,null,null,null,null,null,null,null,null,null,null,null,null,null,null,null,null,null,null,null,null,null,null,null,null,null,null,{"$f":"IF(OR(V34=\"\", W34=\"\"), \"\",\n    IF(AND(V34=\"non\", W34=\"non\"), SUMIFS( Table5[SUH max],Table5[Type], Z34),\n        IF(AND(V34=\"oui\", W34=\"non\"), SUMIFS( Table5[SUH max], Table5[Type], Z34) * 1.1,\n            IF(AND(V34=\"non\", W34=\"oui\"), VLOOKUP(Z34, data!$P$22:$S$54, 3, FALSE),\n                IF(AND(V34=\"oui\", W34=\"oui\"), VLOOKUP(Z34, data!$V$22:$Y$54, 3, FALSE), \"\"\n                )\n            )\n        )\n    )\n)","v":""}]
[null,null,null,null,null,null,null,null,null,null,null,null,null,null,null,null,null,null,null,null,null,null,null,null,null,null,null,null,null,{"$f":"IF(OR(V35=\"\", W35=\"\"), \"\",\n    IF(AND(V35=\"non\", W35=\"non\"), SUMIFS( Table5[SUH max],Table5[Type], Z35),\n        IF(AND(V35=\"oui\", W35=\"non\"), SUMIFS( Table5[SUH max], Table5[Type], Z35) * 1.1,\n            IF(AND(V35=\"non\", W35=\"oui\"), VLOOKUP(Z35, data!$P$22:$S$54, 3, FALSE),\n                IF(AND(V35=\"oui\", W35=\"oui\"), VLOOKUP(Z35, data!$V$22:$Y$54, 3, FALSE), \"\"\n                )\n            )\n        )\n    )\n)","v":""}]
[null,null,null,null,null,null,null,null,null,null,null,null,null,null,null,null,null,null,null,null,null,null,null,null,null,null,null,null,null,{"$f":"IF(OR(V36=\"\", W36=\"\"), \"\",\n    IF(AND(V36=\"non\", W36=\"non\"), SUMIFS( Table5[SUH max],Table5[Type], Z36),\n        IF(AND(V36=\"oui\", W36=\"non\"), SUMIFS( Table5[SUH max], Table5[Type], Z36) * 1.1,\n            IF(AND(V36=\"non\", W36=\"oui\"), VLOOKUP(Z36, data!$P$22:$S$54, 3, FALSE),\n                IF(AND(V36=\"oui\", W36=\"oui\"), VLOOKUP(Z36, data!$V$22:$Y$54, 3, FALSE), \"\"\n                )\n            )\n        )\n    )\n)","v":""}]
[null,null,null,null,null,null,null,null,null,null,null,null,null,null,null,null,null,null,null,null,null,null,null,null,null,null,null,null,null,{"$f":"IF(OR(V37=\"\", W37=\"\"), \"\",\n    IF(AND(V37=\"non\", W37=\"non\"), SUMIFS( Table5[SUH max],Table5[Type], Z37),\n        IF(AND(V37=\"oui\", W37=\"non\"), SUMIFS( Table5[SUH max], Table5[Type], Z37) * 1.1,\n            IF(AND(V37=\"non\", W37=\"oui\"), VLOOKUP(Z37, data!$P$22:$S$54, 3, FALSE),\n                IF(AND(V37=\"oui\", W37=\"oui\"), VLOOKUP(Z37, data!$V$22:$Y$54, 3, FALSE), \"\"\n                )\n            )\n        )\n    )\n)","v":""}]
[null,null,null,null,null,null,null,null,null,null,null,null,null,null,null,null,null,null,null,null,null,null,null,null,null,null,null,null,null,{"$f":"IF(OR(V38=\"\", W38=\"\"), \"\",\n    IF(AND(V38=\"non\", W38=\"non\"), SUMIFS( Table5[SUH max],Table5[Type], Z38),\n        IF(AND(V38=\"oui\", W38=\"non\"), SUMIFS( Table5[SUH max], Table5[Type], Z38) * 1.1,\n            IF(AND(V38=\"non\", W38=\"oui\"), VLOOKUP(Z38, data!$P$22:$S$54, 3, FALSE),\n                IF(AND(V38=\"oui\", W38=\"oui\"), VLOOKUP(Z38, data!$V$22:$Y$54, 3, FALSE), \"\"\n                )\n            )\n        )\n    )\n)","v":""}]
[null,null,null,null,null,null,null,null,null,null,null,null,null,null,null,null,null,null,null,null,null,null,null,null,null,null,null,null,null,{"$f":"IF(OR(V39=\"\", W39=\"\"), \"\",\n    IF(AND(V39=\"non\", W39=\"non\"), SUMIFS( Table5[SUH max],Table5[Type], Z39),\n        IF(AND(V39=\"oui\", W39=\"non\"), SUMIFS( Table5[SUH max], Table5[Type], Z39) * 1.1,\n            IF(AND(V39=\"non\", W39=\"oui\"), VLOOKUP(Z39, data!$P$22:$S$54, 3, FALSE),\n                IF(AND(V39=\"oui\", W39=\"oui\"), VLOOKUP(Z39, data!$V$22:$Y$54, 3, FALSE), \"\"\n                )\n            )\n        )\n    )\n)","v":""}]
[null,null,null,null,null,null,null,null,null,null,null,null,null,null,null,null,null,null,null,null,null,null,null,null,null,null,null,null,null,{"$f":"IF(OR(V40=\"\", W40=\"\"), \"\",\n    IF(AND(V40=\"non\", W40=\"non\"), SUMIFS( Table5[SUH max],Table5[Type], Z40),\n        IF(AND(V40=\"oui\", W40=\"non\"), SUMIFS( Table5[SUH max], Table5[Type], Z40) * 1.1,\n            IF(AND(V40=\"non\", W40=\"oui\"), VLOOKUP(Z40, data!$P$22:$S$54, 3, FALSE),\n                IF(AND(V40=\"oui\", W40=\"oui\"), VLOOKUP(Z40, data!$V$22:$Y$54, 3, FALSE), \"\"\n                )\n            )\n        )\n    )\n)","v":""}]
[null,null,null,null,null,null,null,null,null,null,null,null,null,null,null,null,null,null,null,null,null,null,null,null,null,null,null,null,null,{"$f":"IF(OR(V41=\"\", W41=\"\"), \"\",\n    IF(AND(V41=\"non\", W41=\"non\"), SUMIFS( Table5[SUH max],Table5[Type], Z41),\n        IF(AND(V41=\"oui\", W41=\"non\"), SUMIFS( Table5[SUH max], Table5[Type], Z41) * 1.1,\n            IF(AND(V41=\"non\", W41=\"oui\"), VLOOKUP(Z41, data!$P$22:$S$54, 3, FALSE),\n                IF(AND(V41=\"oui\", W41=\"oui\"), VLOOKUP(Z41, data!$V$22:$Y$54, 3, FALSE), \"\"\n                )\n            )\n        )\n    )\n)","v":""}]
[null,null,null,null,null,null,null,null,null,null,null,null,null,null,null,null,null,null,null,null,null,null,null,null,null,null,null,null,null,{"$f":"IF(OR(V42=\"\", W42=\"\"), \"\",\n    IF(AND(V42=\"non\", W42=\"non\"), SUMIFS( Table5[SUH max],Table5[Type], Z42),\n        IF(AND(V42=\"oui\", W42=\"non\"), SUMIFS( Table5[SUH max], Table5[Type], Z42) * 1.1,\n            IF(AND(V42=\"non\", W42=\"oui\"), VLOOKUP(Z42, data!$P$22:$S$54, 3, FALSE),\n                IF(AND(V42=\"oui\", W42=\"oui\"), VLOOKUP(Z42, data!$V$22:$Y$54, 3, FALSE), \"\"\n                )\n            )\n        )\n    )\n)","v":""}]
[null,null,null,null,null,null,null,null,null,null,null,null,null,null,null,null,null,null,null,null,null,null,null,null,null,null,null,null,null,{"$f":"IF(OR(V43=\"\", W43=\"\"), \"\",\n    IF(AND(V43=\"non\", W43=\"non\"), SUMIFS( Table5[SUH max],Table5[Type], Z43),\n        IF(AND(V43=\"oui\", W43=\"non\"), SUMIFS( Table5[SUH max], Table5[Type], Z43) * 1.1,\n            IF(AND(V43=\"non\", W43=\"oui\"), VLOOKUP(Z43, data!$P$22:$S$54, 3, FALSE),\n                IF(AND(V43=\"oui\", W43=\"oui\"), VLOOKUP(Z43, data!$V$22:$Y$54, 3, FALSE), \"\"\n                )\n            )\n        )\n    )\n)","v":""}]
[null,null,null,null,null,null,null,null,null,null,null,null,null,null,null,null,null,null,null,null,null,null,null,null,null,null,null,null,null,{"$f":"IF(OR(V44=\"\", W44=\"\"), \"\",\n    IF(AND(V44=\"non\", W44=\"non\"), SUMIFS( Table5[SUH max],Table5[Type], Z44),\n        IF(AND(V44=\"oui\", W44=\"non\"), SUMIFS( Table5[SUH max], Table5[Type], Z44) * 1.1,\n            IF(AND(V44=\"non\", W44=\"oui\"), VLOOKUP(Z44, data!$P$22:$S$54, 3, FALSE),\n                IF(AND(V44=\"oui\", W44=\"oui\"), VLOOKUP(Z44, data!$V$22:$Y$54, 3, FALSE), \"\"\n                )\n            )\n        )\n    )\n)","v":""}]
[null,null,null,null,null,null,null,null,null,null,null,null,null,null,null,null,null,null,null,null,null,null,null,null,null,null,null,null,null,{"$f":"IF(OR(V45=\"\", W45=\"\"), \"\",\n    IF(AND(V45=\"non\", W45=\"non\"), SUMIFS( Table5[SUH max],Table5[Type], Z45),\n        IF(AND(V45=\"oui\", W45=\"non\"), SUMIFS( Table5[SUH max], Table5[Type], Z45) * 1.1,\n            IF(AND(V45=\"non\", W45=\"oui\"), VLOOKUP(Z45, data!$P$22:$S$54, 3, FALSE),\n                IF(AND(V45=\"oui\", W45=\"oui\"), VLOOKUP(Z45, data!$V$22:$Y$54, 3, FALSE), \"\"\n                )\n            )\n        )\n    )\n)","v":""}]
[null,null,null,null,null,null,null,null,null,null,null,null,null,null,null,null,null,null,null,null,null,null,null,null,null,null,null,null,null,{"$f":"IF(OR(V46=\"\", W46=\"\"), \"\",\n    IF(AND(V46=\"non\", W46=\"non\"), SUMIFS( Table5[SUH max],Table5[Type], Z46),\n        IF(AND(V46=\"oui\", W46=\"non\"), SUMIFS( Table5[SUH max], Table5[Type], Z46) * 1.1,\n            IF(AND(V46=\"non\", W46=\"oui\"), VLOOKUP(Z46, data!$P$22:$S$54, 3, FALSE),\n                IF(AND(V46=\"oui\", W46=\"oui\"), VLOOKUP(Z46, data!$V$22:$Y$54, 3, FALSE), \"\"\n                )\n            )\n        )\n    )\n)","v":""}]
[null,null,null,null,null,null,null,null,null,null,null,null,null,null,null,null,null,null,null,null,null,null,null,null,null,null,null,null,null,{"$f":"IF(OR(V47=\"\", W47=\"\"), \"\",\n    IF(AND(V47=\"non\", W47=\"non\"), SUMIFS( Table5[SUH max],Table5[Type], Z47),\n        IF(AND(V47=\"oui\", W47=\"non\"), SUMIFS( Table5[SUH max], Table5[Type], Z47) * 1.1,\n            IF(AND(V47=\"non\", W47=\"oui\"), VLOOKUP(Z47, data!$P$22:$S$54, 3, FALSE),\n                IF(AND(V47=\"oui\", W47=\"oui\"), VLOOKUP(Z47, data!$V$22:$Y$54, 3, FALSE), \"\"\n                )\n            )\n        )\n    )\n)","v":""}]
[null,null,null,null,null,null,null,null,null,null,null,null,null,null,null,null,null,null,null,null,null,null,null,null,null,null,null,null,null,{"$f":"IF(OR(V48=\"\", W48=\"\"), \"\",\n    IF(AND(V48=\"non\", W48=\"non\"), SUMIFS( Table5[SUH max],Table5[Type], Z48),\n        IF(AND(V48=\"oui\", W48=\"non\"), SUMIFS( Table5[SUH max], Table5[Type], Z48) * 1.1,\n            IF(AND(V48=\"non\", W48=\"oui\"), VLOOKUP(Z48, data!$P$22:$S$54, 3, FALSE),\n                IF(AND(V48=\"oui\", W48=\"oui\"), VLOOKUP(Z48, data!$V$22:$Y$54, 3, FALSE), \"\"\n                )\n            )\n        )\n    )\n)","v":""}]
[null,null,null,null,null,null,null,null,null,null,null,null,null,null,null,null,null,null,null,null,null,null,null,null,null,null,null,null,null,{"$f":"IF(OR(V49=\"\", W49=\"\"), \"\",\n    IF(AND(V49=\"non\", W49=\"non\"), SUMIFS( Table5[SUH max],Table5[Type], Z49),\n        IF(AND(V49=\"oui\", W49=\"non\"), SUMIFS( Table5[SUH max], Table5[Type], Z49) * 1.1,\n            IF(AND(V49=\"non\", W49=\"oui\"), VLOOKUP(Z49, data!$P$22:$S$54, 3, FALSE),\n                IF(AND(V49=\"oui\", W49=\"oui\"), VLOOKUP(Z49, data!$V$22:$Y$54, 3, FALSE), \"\"\n                )\n            )\n        )\n    )\n)","v":""}]
[null,null,null,null,null,null,null,null,null,null,null,null,null,null,null,null,null,null,null,null,null,null,null,null,null,null,null,null,null,{"$f":"IF(OR(V50=\"\", W50=\"\"), \"\",\n    IF(AND(V50=\"non\", W50=\"non\"), SUMIFS( Table5[SUH max],Table5[Type], Z50),\n        IF(AND(V50=\"oui\", W50=\"non\"), SUMIFS( Table5[SUH max], Table5[Type], Z50) * 1.1,\n            IF(AND(V50=\"non\", W50=\"oui\"), VLOOKUP(Z50, data!$P$22:$S$54, 3, FALSE),\n                IF(AND(V50=\"oui\", W50=\"oui\"), VLOOKUP(Z50, data!$V$22:$Y$54, 3, FALSE), \"\"\n                )\n            )\n        )\n    )\n)","v":""}]
[null,null,null,null,null,null,null,null,null,null,null,null,null,null,null,null,null,null,null,null,null,null,null,null,null,null,null,null,null,{"$f":"IF(OR(V51=\"\", W51=\"\"), \"\",\n    IF(AND(V51=\"non\", W51=\"non\"), SUMIFS( Table5[SUH max],Table5[Type], Z51),\n        IF(AND(V51=\"oui\", W51=\"non\"), SUMIFS( Table5[SUH max], Table5[Type], Z51) * 1.1,\n            IF(AND(V51=\"non\", W51=\"oui\"), VLOOKUP(Z51, data!$P$22:$S$54, 3, FALSE),\n                IF(AND(V51=\"oui\", W51=\"oui\"), VLOOKUP(Z51, data!$V$22:$Y$54, 3, FALSE), \"\"\n                )\n            )\n        )\n    )\n)","v":""}]
[null,null,null,null,null,null,null,null,null,null,null,null,null,null,null,null,null,null,null,null,null,null,null,null,null,null,null,null,null,{"$f":"IF(OR(V52=\"\", W52=\"\"), \"\",\n    IF(AND(V52=\"non\", W52=\"non\"), SUMIFS( Table5[SUH max],Table5[Type], Z52),\n        IF(AND(V52=\"oui\", W52=\"non\"), SUMIFS( Table5[SUH max], Table5[Type], Z52) * 1.1,\n            IF(AND(V52=\"non\", W52=\"oui\"), VLOOKUP(Z52, data!$P$22:$S$54, 3, FALSE),\n                IF(AND(V52=\"oui\", W52=\"oui\"), VLOOKUP(Z52, data!$V$22:$Y$54, 3, FALSE), \"\"\n                )\n            )\n        )\n    )\n)","v":""}]
[null,null,null,null,null,null,null,null,null,null,null,null,null,null,null,null,null,null,null,null,null,null,null,null,null,null,null,null,null,{"$f":"IF(OR(V53=\"\", W53=\"\"), \"\",\n    IF(AND(V53=\"non\", W53=\"non\"), SUMIFS( Table5[SUH max],Table5[Type], Z53),\n        IF(AND(V53=\"oui\", W53=\"non\"), SUMIFS( Table5[SUH max], Table5[Type], Z53) * 1.1,\n            IF(AND(V53=\"non\", W53=\"oui\"), VLOOKUP(Z53, data!$P$22:$S$54, 3, FALSE),\n                IF(AND(V53=\"oui\", W53=\"oui\"), VLOOKUP(Z53, data!$V$22:$Y$54, 3, FALSE), \"\"\n                )\n            )\n        )\n    )\n)","v":""}]
[null,null,null,null,null,null,null,null,null,null,null,null,null,null,null,null,null,null,null,null,null,null,null,null,null,null,null,null,null,{"$f":"IF(OR(V54=\"\", W54=\"\"), \"\",\n    IF(AND(V54=\"non\", W54=\"non\"), SUMIFS( Table5[SUH max],Table5[Type], Z54),\n        IF(AND(V54=\"oui\", W54=\"non\"), SUMIFS( Table5[SUH max], Table5[Type], Z54) * 1.1,\n            IF(AND(V54=\"non\", W54=\"oui\"), VLOOKUP(Z54, data!$P$22:$S$54, 3, FALSE),\n                IF(AND(V54=\"oui\", W54=\"oui\"), VLOOKUP(Z54, data!$V$22:$Y$54, 3, FALSE), \"\"\n                )\n            )\n        )\n    )\n)","v":""}]
[null,null,null,null,null,null,null,null,null,null,null,null,null,null,null,null,null,null,null,null,null,null,null,null,null,null,null,null,null,{"$f":"IF(OR(V55=\"\", W55=\"\"), \"\",\n    IF(AND(V55=\"non\", W55=\"non\"), SUMIFS( Table5[SUH max],Table5[Type], Z55),\n        IF(AND(V55=\"oui\", W55=\"non\"), SUMIFS( Table5[SUH max], Table5[Type], Z55) * 1.1,\n            IF(AND(V55=\"non\", W55=\"oui\"), VLOOKUP(Z55, data!$P$22:$S$54, 3, FALSE),\n                IF(AND(V55=\"oui\", W55=\"oui\"), VLOOKUP(Z55, data!$V$22:$Y$54, 3, FALSE), \"\"\n                )\n            )\n        )\n    )\n)","v":""}]
[null,null,null,null,null,null,null,null,null,null,null,null,null,null,null,null,null,null,null,null,null,null,null,null,null,null,null,null,null,{"$f":"IF(OR(V56=\"\", W56=\"\"), \"\",\n    IF(AND(V56=\"non\", W56=\"non\"), SUMIFS( Table5[SUH max],Table5[Type], Z56),\n        IF(AND(V56=\"oui\", W56=\"non\"), SUMIFS( Table5[SUH max], Table5[Type], Z56) * 1.1,\n            IF(AND(V56=\"non\", W56=\"oui\"), VLOOKUP(Z56, data!$P$22:$S$54, 3, FALSE),\n                IF(AND(V56=\"oui\", W56=\"oui\"), VLOOKUP(Z56, data!$V$22:$Y$54, 3, FALSE), \"\"\n                )\n            )\n        )\n    )\n)","v":""}]
[null,null,null,null,null,null,null,null,null,null,null,null,null,null,null,null,null,null,null,null,null,null,null,null,null,null,null,null,null,{"$f":"IF(OR(V57=\"\", W57=\"\"), \"\",\n    IF(AND(V57=\"non\", W57=\"non\"), SUMIFS( Table5[SUH max],Table5[Type], Z57),\n        IF(AND(V57=\"oui\", W57=\"non\"), SUMIFS( Table5[SUH max], Table5[Type], Z57) * 1.1,\n            IF(AND(V57=\"non\", W57=\"oui\"), VLOOKUP(Z57, data!$P$22:$S$54, 3, FALSE),\n                IF(AND(V57=\"oui\", W57=\"oui\"), VLOOKUP(Z57, data!$V$22:$Y$54, 3, FALSE), \"\"\n                )\n            )\n        )\n    )\n)","v":""}]
[null,null,null,null,null,null,null,null,null,null,null,null,null,null,null,null,null,null,null,null,null,null,null,null,null,null,null,null,null,{"$f":"IF(OR(V58=\"\", W58=\"\"), \"\",\n    IF(AND(V58=\"non\", W58=\"non\"), SUMIFS( Table5[SUH max],Table5[Type], Z58),\n        IF(AND(V58=\"oui\", W58=\"non\"), SUMIFS( Table5[SUH max], Table5[Type], Z58) * 1.1,\n            IF(AND(V58=\"non\", W58=\"oui\"), VLOOKUP(Z58, data!$P$22:$S$54, 3, FALSE),\n                IF(AND(V58=\"oui\", W58=\"oui\"), VLOOKUP(Z58, data!$V$22:$Y$54, 3, FALSE), \"\"\n                )\n            )\n        )\n    )\n)","v":""}]
[null,null,null,null,null,null,null,null,null,null,null,null,null,null,null,null,null,null,null,null,null,null,null,null,null,null,null,null,null,{"$f":"IF(OR(V59=\"\", W59=\"\"), \"\",\n    IF(AND(V59=\"non\", W59=\"non\"), SUMIFS( Table5[SUH max],Table5[Type], Z59),\n        IF(AND(V59=\"oui\", W59=\"non\"), SUMIFS( Table5[SUH max], Table5[Type], Z59) * 1.1,\n            IF(AND(V59=\"non\", W59=\"oui\"), VLOOKUP(Z59, data!$P$22:$S$54, 3, FALSE),\n                IF(AND(V59=\"oui\", W59=\"oui\"), VLOOKUP(Z59, data!$V$22:$Y$54, 3, FALSE), \"\"\n                )\n            )\n        )\n    )\n)","v":""}]
[null,null,null,null,null,null,null,null,null,null,null,null,null,null,null,null,null,null,null,null,null,null,null,null,null,null,null,null,null,{"$f":"IF(OR(V60=\"\", W60=\"\"), \"\",\n    IF(AND(V60=\"non\", W60=\"non\"), SUMIFS( Table5[SUH max],Table5[Type], Z60),\n        IF(AND(V60=\"oui\", W60=\"non\"), SUMIFS( Table5[SUH max], Table5[Type], Z60) * 1.1,\n            IF(AND(V60=\"non\", W60=\"oui\"), VLOOKUP(Z60, data!$P$22:$S$54, 3, FALSE),\n                IF(AND(V60=\"oui\", W60=\"oui\"), VLOOKUP(Z60, data!$V$22:$Y$54, 3, FALSE), \"\"\n                )\n            )\n        )\n    )\n)","v":""}]
[]
[null,null,null,null,null,null,null,null,null,null,null,null,null,null,null,null,null,null,null,null,null,null,null,null,null,null,null,null,null,null,null,null,null,null,null,null,null,null,null,null,null,null,null,null,null,null,null,null,null,null,null,null,null,null,null,null,null,null,null,null,null,null,null,null,null,null,null,null,null,null,null,null,null,null,null,null,null,null,null,null,null,null,null,null,null,null,null,null,null,"Commentaires"]

{"sheet":"immeuble(s) collectif(s)","index":2,"n_rows":64,"n_cols":234,"rows_kept":64,"cut":false,"hidden":false,"merged":[[8,67,8,68],[20,67,23,68],[4,153,4,233],[2,63,2,233],[1,4,2,48],[1,61,2,62],[4,0,4,1],[4,123,4,151],[4,72,4,85],[6,14,6,16],[6,17,6,19],[4,44,4,68],[6,31,6,42],[6,21,6,24],[6,26,6,29],[4,4,4,42],[68,123,68,151],[63,31,63,42],[64,31,64,42],[65,31,65,42],[66,31,66,42],[67,31,67,42],[68,31,68,42],[63,123,63,151],[64,123,64,151],[65,123,65,151],[66,123,66,151],[67,123,67,151],[67,26,67,29],[68,26,68,29],[68,21,68,24],[63,21,63,24],[64,21,64,24],[65,21,65,24],[66,21,66,24],[67,21,67,24],[63,26,63,29],[64,26,64,29],[65,26,65,29],[66,26,66,29]]}
[]
[null,null,null,null,"Immeuble collectif"]
[]
[]
["Récapitulatif",null,null,null,"Bâtiment",null,null,null,null,null,null,null,null,null,null,null,null,null,null,null,null,null,null,null,null,null,null,null,null,null,null,null,null,null,null,null,null,null,null,null,null,null,null,null,"Logements",null,null,null,null,null,null,null,null,null,null,null,null,null,null,null,null,null,null,null,null,null,null,null,null,null,null,null,"Chambres à coucher",null,null,null,null,null,null,null,null,null,null,null,null,null,null,null,null,null,null,null,null,null,null,null,null,null,null,null,null,null,null,null,null,null,null,null,null,null,null,null,null,null,null,null,null,null,null,null,null,null,null,null,null,null,null,null,null,null,null,null,null,null,null,null,null,null,null,null,null,null,null,null,null,null,null,null,null,null,null,null,null,"Emplacements"]
[]
[null,null,null,null,null,null,null,null,null,null,null,null,null,null,"CPE bien existant",null,null,"CPE du projet",null,null,null,"Programmation par cage d'escalier",null,null,null,null,"Programmation par immeuble",null,null,null,null,"Elements favorisants l'habitat"]
[]
[null,null,null,null,"Nom de l'immeuble collectif","surface terrain\n(ares)","n° de la parcelle cadastrale","numéro de rue","nom de la rue","code postal","localité","type de \nconstruction","nombre des étages du batiment","année de construction","Classe de performance énergétique \n[kWh/ m2a]","Classe d'isolation thermique [kWh/ m2a]","Classe de performance environnementale\n(émissions en CO2)\n [kg CO2/m2 année]","Classe de performance énergétique [kWh/ m2a]","Classe d'isolation thermique [kWh/ m2a]","Classe de performance environnementale\n(émissions en CO2)\n[kg CO2/m2 année]",null,"cage \nd'escalier","ascenseur","buanderie \ncommune ","local \npoubelle",null,"local vélos \n1 empl. vélo/ chambre","local poussette","local outil jardinage et nettoyage","gaines techniques superposées et regroupées",null,"salle polyvalente","chambre d'ami","local atelier/ bricolage","local télétravail","salle multifonctionnelle (jeux, biblio.) avec ouverture s/ l'extér.","buanderie commune avec ouverture et accès s/ l'extér.",null,null,null,null,null,"autres",null,"n° unité selon plan","n° cadastre vertical","bailleur\nsocial","étage","adapté PMR","logements\ncollectifs\n(hébergements)","affectation du logement",null,null,null,null,null,null,null,null,null,null,"typologie","destination du logement \n(vente / location)",null,"[SUH]",null,"[SUH \nmaximale CDC]","RATIOS",null,"[SCB_log]\nm2\n(par immeuble)","[SNA_log]\nm2\n(par immeuble)",null,"Typologie","ch 01\nm2","Typologie","ch 02\nm2","Typologie","ch 03\nm2","Typologie","ch 04\nm2","Typologie","ch 05\nm2","Typologie","ch 06\nm2","Typologie","ch 07\nm2","Typologie","ch 08\nm2","Typologie","ch 09\nm2","Typologie","ch 10\nm2","Typologie","ch 11\nm2","Typologie","ch 12\nm2","Typologie","ch 13\nm2","Typologie","ch 14\nm2","Typologie","ch 15\nm2","Typologie","ch 16\nm2","Typologie","ch 17\nm2","Typologie","ch 18\nm2","Typologie","ch 19\nm2","Typologie","ch 20\nm2","Typologie","ch 21\nm2","Typologie","ch 22\nm2","Typologie","ch 23\nm2","Typologie","ch 24\nm2","Typologie","ch 25\nm2",null,"débarras","niche vestiaire","cave privative","n° cadastrale cave","grenier privatif","n° cadastrale grenier",null,null,null,null,null,null,"espace\nextérieur\nprivatif","Pièce d'eau 1","Pièce d'eau 2","Pièce d'eau 3","Pièce d'eau 4",null,null,null,null,null,null,null,null,null,null,null,"cuisine\nsi log locatif",null," Σ nombre d'emplacements par appartement",null,"numéro\nunité selon plan 1","n° cadastre\nemplacement 1","type d'emplacement 1",null,"numéro\nunité selon plan 2","n° cadastre\nemplacement 2","type d'emplacement 2",null,"numéro\nunité selon plan 3","n° cadastre\nemplacement 3","type d'emplacement 3",null,"numéro\nunité selon plan 4","n° cadastre\nemplacement 4","type d'emplacement 4",null,"numéro\nunité selon plan 5","n° cadastre\nemplacement 5","type d'emplacement 5",null,"numéro\nunité selon plan 6","n° cadastre\nemplacement 6","type d'emplacement 6",null,"numéro\nunité selon plan 7","n° cadastre\nemplacement 7","type d'emplacement 7",null,"numéro\nunité selon plan 8","n° cadastre\nemplacement 8","type d'emplacement 8",null,"numéro\nunité selon plan 9","n° cadastre\nemplacement 9","type d'emplacement 9",null,"numéro\nunité selon plan 10","n° cadastre\nemplacement 10","type d'emplacement 10",null,"numéro\nunité selon plan 11","n° cadastre\nemplacement 11","type d'emplacement 11",null,"numéro\nunité selon plan 12","n° cadastre\nemplacement 12","type d'emplacement 12",null,"numéro\nunité selon plan 13","n° cadastre\nemplacement 13","type d'emplacement 13",null,"numéro\nunité selon plan 14","n° cadastre\nemplacement 14","type d'emplacement 14",null,"numéro\nunité selon plan 15","n° cadastre\nemplacement 15","type d'emplacement 15",null,"numéro\nunité selon plan 16","n° cadastre\nemplacement 16","type d'emplacement 16",null,"numéro\nunité selon plan 17","n° cadastre\nemplacement 17","type d'emplacement 17",null,"numéro\nunité selon plan 18","n° cadastre\nemplacement 18","type d'emplacement 18",null,"numéro\nunité selon plan 19","n° cadastre\nemplacement 19","type d'emplacement 19",null,"numéro\nunité selon plan 20","n° cadastre\nemplacement 20","type d'emplacement 20"]
[null,null,null,null,null,null,null,null,null,null,null,null,null,null,null,null,null,null,null,null,null,null,null,null,null,null,null,null,null,null,null,null,null,null,null,null,null,null,null,null,null,null,null,null,null,null,null,null,null,null,null,null,null,null,null,null,null,null,null,null,null,null,null,null,null,null,null,null,"[m2]"]
["  Σ  appartements",{"$f":"COUNTA(AS11:AS62)","v":0},null,null,null,null,null,null,null,null,null,null,null,null,null,null,null,null,null,null,null,null,null,null,null,null,null,null,null,null,null,null,null,null,null,null,null,null,null,null,null,null,null,null,null,null,null,null,null,null,null,null,null,null,null,null,null,null,null,null,null,null,null,null,null,null,{"$f":"IF(OR(AW11=\"\", AX11=\"\"), \"\",\n    IF(AND(AW11=\"non\", AX11=\"non\"), SUMIFS(typelogement[SUH max], typelogement[Type], BJ11),\n        IF(AND(AW11=\"oui\", AX11=\"non\"), SUMIFS(typelogement[SUH max], typelogement[Type], BJ11) * 1.1,\n            IF(AND(AW11=\"non\", AX11=\"oui\"), VLOOKUP(BJ11, data!$P$22:$S$54, 3, FALSE),\n                IF(AND(AW11=\"oui\", AX11=\"oui\"), VLOOKUP(BJ11, data!$V$22:$Y$54, 3, FALSE), \"\"\n                )\n            )\n        )\n    )\n)","v":""},"Σ [SUH] max CDC",{"$f":"SUM(BO11:BO62)","v":0}]
[null,null,null,null,null,null,null,null,null,null,null,null,null,null,null,null,null,null,null,null,null,null,null,null,null,null,null,null,null,null,null,null,null,null,null,null,null,null,null,null,null,null,null,null,null,null,null,null,null,null,null,null,null,null,null,null,null,null,null,null,null,null,null,null,null,null,{"$f":"IF(OR(AW12=\"\", AX12=\"\"), \"\",\n    IF(AND(AW12=\"non\", AX12=\"non\"), SUMIFS(typelogement[SUH max], typelogement[Type], BJ12),\n        IF(AND(AW12=\"oui\", AX12=\"non\"), SUMIFS(typelogement[SUH max], typelogement[Type], BJ12) * 1.1,\n            IF(AND(AW12=\"non\", AX12=\"oui\"), VLOOKUP(BJ12, data!$P$22:$S$54, 3, FALSE),\n                IF(AND(AW12=\"oui\", AX12=\"oui\"), VLOOKUP(BJ12, data!$V$22:$Y$54, 3, FALSE), \"\"\n                )\n            )\n        )\n    )\n)","v":""},"Σ [SUH]",{"$f":"SUM(BM11:BM62)","v":0}]
["Σ emplacements privés",{"$f":"SUM(EX11:EX62)","v":0},null,null,null,null,null,null,null,null,null,null,null,null,null,null,null,null,null,null,null,null,null,null,null,null,null,null,null,null,null,null,null,null,null,null,null,null,null,null,null,null,null,null,null,null,null,null,null,null,null,null,null,null,null,null,null,null,null,null,null,null,null,null,null,null,{"$f":"IF(OR(AW13=\"\", AX13=\"\"), \"\",\n    IF(AND(AW13=\"non\", AX13=\"non\"), SUMIFS(typelogement[SUH max], typelogement[Type], BJ13),\n        IF(AND(AW13=\"oui\", AX13=\"non\"), SUMIFS(typelogement[SUH max], typelogement[Type], BJ13) * 1.1,\n            IF(AND(AW13=\"non\", AX13=\"oui\"), VLOOKUP(BJ13, data!$P$22:$S$54, 3, FALSE),\n                IF(AND(AW13=\"oui\", AX13=\"oui\"), VLOOKUP(BJ13, data!$V$22:$Y$54, 3, FALSE), \"\"\n                )\n            )\n        )\n    )\n)","v":""},"Σ [SUH] + autres surfaces",{"$f":"SUM(BM11:BM62)+'autres surfaces'!L12","v":0}]
[null,null,null,null,null,null,null,null,null,null,null,null,null,null,null,null,null,null,null,null,null,null,null,null,null,null,null,null,null,null,null,null,null,null,null,null,null,null,null,null,null,null,null,null,null,null,null,null,null,null,null,null,null,null,null,null,null,null,null,null,null,null,null,null,null,null,{"$f":"IF(OR(AW14=\"\", AX14=\"\"), \"\",\n    IF(AND(AW14=\"non\", AX14=\"non\"), SUMIFS(typelogement[SUH max], typelogement[Type], BJ14),\n        IF(AND(AW14=\"oui\", AX14=\"non\"), SUMIFS(typelogement[SUH max], typelogement[Type], BJ14) * 1.1,\n            IF(AND(AW14=\"non\", AX14=\"oui\"), VLOOKUP(BJ14, data!$P$22:$S$54, 3, FALSE),\n                IF(AND(AW14=\"oui\", AX14=\"oui\"), VLOOKUP(BJ14, data!$V$22:$Y$54, 3, FALSE), \"\"\n                )\n            )\n        )\n    )\n)","v":""},"Σ [SCB_log]",{"$f":"SUM(BR11:BR62)","v":0}]
[null,null,null,null,null,null,null,null,null,null,null,null,null,null,null,null,null,null,null,null,null,null,null,null,null,null,null,null,null,null,null,null,null,null,null,null,null,null,null,null,null,null,null,null,null,null,null,null,null,null,null,null,null,null,null,null,null,null,null,null,null,null,null,null,null,null,{"$f":"IF(OR(AW15=\"\", AX15=\"\"), \"\",\n    IF(AND(AW15=\"non\", AX15=\"non\"), SUMIFS(typelogement[SUH max], typelogement[Type], BJ15),\n        IF(AND(AW15=\"oui\", AX15=\"non\"), SUMIFS(typelogement[SUH max], typelogement[Type], BJ15) * 1.1,\n            IF(AND(AW15=\"non\", AX15=\"oui\"), VLOOKUP(BJ15, data!$P$22:$S$54, 3, FALSE),\n                IF(AND(AW15=\"oui\", AX15=\"oui\"), VLOOKUP(BJ15, data!$V$22:$Y$54, 3, FALSE), \"\"\n                )\n            )\n        )\n    )\n)","v":""},"Σ [SNA_log]",{"$f":"SUM(BS11:BS62)","v":0}]
["0 chambre",{"$f":"IFERROR(SUM(COUNTIF(BJ11:BJ62,{\"0.1\"}))/B11,0)","v":0},{"$f":"IFERROR(SUM(COUNTIF(BJ11:BJ62,{\"0.1\"})),0)","v":0},null,null,null,null,null,null,null,null,null,null,null,null,null,null,null,null,null,null,null,null,null,null,null,null,null,null,null,null,null,null,null,null,null,null,null,null,null,null,null,null,null,null,null,null,null,null,null,null,null,null,null,null,null,null,null,null,null,null,null,null,null,null,null,{"$f":"IF(OR(AW16=\"\", AX16=\"\"), \"\",\n    IF(AND(AW16=\"non\", AX16=\"non\"), SUMIFS(typelogement[SUH max], typelogement[Type], BJ16),\n        IF(AND(AW16=\"oui\", AX16=\"non\"), SUMIFS(typelogement[SUH max], typelogement[Type], BJ16) * 1.1,\n            IF(AND(AW16=\"non\", AX16=\"oui\"), VLOOKUP(BJ16, data!$P$22:$S$54, 3, FALSE),\n                IF(AND(AW16=\"oui\", AX16=\"oui\"), VLOOKUP(BJ16, data!$V$22:$Y$54, 3, FALSE), \"\"\n                )\n            )\n        )\n    )\n)","v":""}]
["1 chambre",{"$f":"IFERROR(SUM(COUNTIF(BJ11:BJ62,{\"1.1\";\"1.2\"}))/B11,0)","v":0},{"$f":"IFERROR(SUM(COUNTIF(BJ11:BJ62,{\"1.1\";\"1.2\"})),0)","v":0},null,null,null,null,null,null,null,null,null,null,null,null,null,null,null,null,null,null,null,null,null,null,null,null,null,null,null,null,null,null,null,null,null,null,null,null,null,null,null,null,null,null,null,null,null,null,null,null,null,null,null,null,null,null,null,null,null,null,null,null,null,null,null,{"$f":"IF(OR(AW17=\"\", AX17=\"\"), \"\",\n    IF(AND(AW17=\"non\", AX17=\"non\"), SUMIFS(typelogement[SUH max], typelogement[Type], BJ17),\n        IF(AND(AW17=\"oui\", AX17=\"non\"), SUMIFS(typelogement[SUH max], typelogement[Type], BJ17) * 1.1,\n            IF(AND(AW17=\"non\", AX17=\"oui\"), VLOOKUP(BJ17, data!$P$22:$S$54, 3, FALSE),\n                IF(AND(AW17=\"oui\", AX17=\"oui\"), VLOOKUP(BJ17, data!$V$22:$Y$54, 3, FALSE), \"\"\n                )\n            )\n        )\n    )\n)","v":""},"% logement",{"$f":"BQ12/BQ13","v":{"$error":"#DIV/0!"}}]
["2 chambres",{"$f":"IFERROR(SUM(COUNTIF(BJ11:BJ62,{\"2.2\";\"2.3\";\"2.4\"}))/B11,0)","v":0},{"$f":"IFERROR(SUM(COUNTIF(BJ11:BJ62,{\"2.2\";\"2.3\";\"2.4\"})),0)","v":0},null,null,null,null,null,null,null,null,null,null,null,null,null,null,null,null,null,null,null,null,null,null,null,null,null,null,null,null,null,null,null,null,null,null,null,null,null,null,null,null,null,null,null,null,null,null,null,null,null,null,null,null,null,null,null,null,null,null,null,null,null,null,null,{"$f":"IF(OR(AW18=\"\", AX18=\"\"), \"\",\n    IF(AND(AW18=\"non\", AX18=\"non\"), SUMIFS(typelogement[SUH max], typelogement[Type], BJ18),\n        IF(AND(AW18=\"oui\", AX18=\"non\"), SUMIFS(typelogement[SUH max], typelogement[Type], BJ18) * 1.1,\n            IF(AND(AW18=\"non\", AX18=\"oui\"), VLOOKUP(BJ18, data!$P$22:$S$54, 3, FALSE),\n                IF(AND(AW18=\"oui\", AX18=\"oui\"), VLOOKUP(BJ18, data!$V$22:$Y$54, 3, FALSE), \"\"\n                )\n            )\n        )\n    )\n)","v":""},"Σ [SUH]/ Σ [SCB_log]",{"$f":"BQ12/BQ14","v":{"$error":"#DIV/0!"}}]
["3 chambres",{"$f":"IFERROR(SUM(COUNTIF(BJ11:BJ62,{\"3.3\";\"3.4\";\"3.5\";\"3.6\"}))/B11,0)","v":0},{"$f":"IFERROR(SUM(COUNTIF(BJ11:BJ62,{\"3.3\";\"3.4\";\"3.5\";\"3.6\"})),0)","v":0},null,null,null,null,null,null,null,null,null,null,null,null,null,null,null,null,null,null,null,null,null,null,null,null,null,null,null,null,null,null,null,null,null,null,null,null,null,null,null,null,null,null,null,null,null,null,null,null,null,null,null,null,null,null,null,null,null,null,null,null,null,null,null,{"$f":"IF(OR(AW19=\"\", AX19=\"\"), \"\",\n    IF(AND(AW19=\"non\", AX19=\"non\"), SUMIFS(typelogement[SUH max], typelogement[Type], BJ19),\n        IF(AND(AW19=\"oui\", AX19=\"non\"), SUMIFS(typelogement[SUH max], typelogement[Type], BJ19) * 1.1,\n            IF(AND(AW19=\"non\", AX19=\"oui\"), VLOOKUP(BJ19, data!$P$22:$S$54, 3, FALSE),\n                IF(AND(AW19=\"oui\", AX19=\"oui\"), VLOOKUP(BJ19, data!$V$22:$Y$54, 3, FALSE), \"\"\n                )\n            )\n        )\n    )\n)","v":""},"Σ [SNA_log]/ Σ [SCB_log]",{"$f":"BQ15/BQ14","v":{"$error":"#DIV/0!"}}]
["4 chambres",{"$f":"IFERROR(SUM(COUNTIF(BJ11:BJ62,{\"4.4\";\"4.5\";\"4.6\";\"4.7\";\"4.8\"}))/B11,0)","v":0},{"$f":"IFERROR(SUM(COUNTIF(BJ11:BJ62,{\"4.4\";\"4.5\";\"4.6\";\"4.7\";\"4.8\"})),0)","v":0},null,null,null,null,null,null,null,null,null,null,null,null,null,null,null,null,null,null,null,null,null,null,null,null,null,null,null,null,null,null,null,null,null,null,null,null,null,null,null,null,null,null,null,null,null,null,null,null,null,null,null,null,null,null,null,null,null,null,null,null,null,null,null,{"$f":"IF(OR(AW20=\"\", AX20=\"\"), \"\",\n    IF(AND(AW20=\"non\", AX20=\"non\"), SUMIFS(typelogement[SUH max], typelogement[Type], BJ20),\n        IF(AND(AW20=\"oui\", AX20=\"non\"), SUMIFS(typelogement[SUH max], typelogement[Type], BJ20) * 1.1,\n            IF(AND(AW20=\"non\", AX20=\"oui\"), VLOOKUP(BJ20, data!$P$22:$S$54, 3, FALSE),\n                IF(AND(AW20=\"oui\", AX20=\"oui\"), VLOOKUP(BJ20, data!$V$22:$Y$54, 3, FALSE), \"\"\n                )\n            )\n        )\n    )\n)","v":""}]
["5 chambres",{"$f":"IFERROR(SUM(COUNTIF(BJ11:BJ62,{\"5.5\";\"5.6\";\"5.7\";\"5.8\";\"5.9\";\"5.10\"}))/B11,0)","v":0},{"$f":"IFERROR(SUM(COUNTIF(BJ11:BJ62,{\"5.5\";\"5.6\";\"5.7\";\"5.8\";\"5.9\";\"5.10\"})),0)","v":0},null,null,null,null,null,null,null,null,null,null,null,null,null,null,null,null,null,null,null,null,null,null,null,null,null,null,null,null,null,null,null,null,null,null,null,null,null,null,null,null,null,null,null,null,null,null,null,null,null,null,null,null,null,null,null,null,null,null,null,null,null,null,null,{"$f":"IF(OR(AW21=\"\", AX21=\"\"), \"\",\n    IF(AND(AW21=\"non\", AX21=\"non\"), SUMIFS(typelogement[SUH max], typelogement[Type], BJ21),\n        IF(AND(AW21=\"oui\", AX21=\"non\"), SUMIFS(typelogement[SUH max], typelogement[Type], BJ21) * 1.1,\n            IF(AND(AW21=\"non\", AX21=\"oui\"), VLOOKUP(BJ21, data!$P$22:$S$54, 3, FALSE),\n                IF(AND(AW21=\"oui\", AX21=\"oui\"), VLOOKUP(BJ21, data!$V$22:$Y$54, 3, FALSE), \"\"\n                )\n            )\n        )\n    )\n)","v":""},"surfaces consolidées minimisées\n(case réservé au MLOGAT)"]
["6+ chambres",{"$f":"IFERROR(SUM(COUNTIF(BJ11:BJ62,{\"6.6\";\"6.7\";\"6.8\";\"6.9\"\"6.10\";\"7.7\";\"7.8\";\"7.9\";\"7.11\";\"8.8\";\"8.10\";\"8.12\";\"9.9\";\"9.13\";\"9.15\";\"10.10\";\"10.14\";\"10.18\";\"15.15\";\"15.20\";\"15.25\";\"20.20\";\"20.25\";\"20.30\"}))/B11,0)","v":0},{"$f":"IFERROR(SUM(COUNTIF(BJ11:BJ62,{\"6.6\";\"6.7\";\"6.8\";\"6.9\"\"6.10\";\"7.7\";\"7.8\";\"7.9\";\"7.11\";\"8.8\";\"8.10\";\"8.12\";\"9.9\";\"9.13\";\"9.15\";\"10.10\";\"10.14\";\"10.18\";\"15.15\";\"15.20\";\"15.25\";\"20.20\";\"20.25\";\"20.30\"})),0)","v":0},null,null,null,null,null,null,null,null,null,null,null,null,null,null,null,null,null,null,null,null,null,null,null,null,null,null,null,null,null,null,null,null,null,null,null,null,null,null,null,null,null,null,null,null,null,null,null,null,null,null,null,null,null,null,null,null,null,null,null,null,null,null,null,{"$f":"IF(OR(AW22=\"\", AX22=\"\"), \"\",\n    IF(AND(AW22=\"non\", AX22=\"non\"), SUMIFS(typelogement[SUH max], typelogement[Type], BJ22),\n        IF(AND(AW22=\"oui\", AX22=\"non\"), SUMIFS(typelogement[SUH max], typelogement[Type], BJ22) * 1.1,\n            IF(AND(AW22=\"non\", AX22=\"oui\"), VLOOKUP(BJ22, data!$P$22:$S$54, 3, FALSE),\n                IF(AND(AW22=\"oui\", AX22=\"oui\"), VLOOKUP(BJ22, data!$V$22:$Y$54, 3, FALSE), \"\"\n                )\n            )\n        )\n    )\n)","v":""}]
[null,null,null,null,null,null,null,null,null,null,null,null,null,null,null,null,null,null,null,null,null,null,null,null,null,null,null,null,null,null,null,null,null,null,null,null,null,null,null,null,null,null,null,null,null,null,null,null,null,null,null,null,null,null,null,null,null,null,null,null,null,null,null,null,null,null,{"$f":"IF(OR(AW23=\"\", AX23=\"\"), \"\",\n    IF(AND(AW23=\"non\", AX23=\"non\"), SUMIFS(typelogement[SUH max], typelogement[Type], BJ23),\n        IF(AND(AW23=\"oui\", AX23=\"non\"), SUMIFS(typelogement[SUH max], typelogement[Type], BJ23) * 1.1,\n            IF(AND(AW23=\"non\", AX23=\"oui\"), VLOOKUP(BJ23, data!$P$22:$S$54, 3, FALSE),\n                IF(AND(AW23=\"oui\", AX23=\"oui\"), VLOOKUP(BJ23, data!$V$22:$Y$54, 3, FALSE), \"\"\n                )\n            )\n        )\n    )\n)","v":""}]
["Logements adaptés PMR",{"$f":"COUNTIF(AW11:AW63,\"oui\")","v":0},null,null,null,null,null,null,null,null,null,null,null,null,null,null,null,null,null,null,null,null,null,null,null,null,null,null,null,null,null,null,null,null,null,null,null,null,null,null,null,null,null,null,null,null,null,null,null,null,null,null,null,null,null,null,null,null,null,null,null,null,null,null,null,null,{"$f":"IF(OR(AW24=\"\", AX24=\"\"), \"\",\n    IF(AND(AW24=\"non\", AX24=\"non\"), SUMIFS(typelogement[SUH max], typelogement[Type], BJ24),\n        IF(AND(AW24=\"oui\", AX24=\"non\"), SUMIFS(typelogement[SUH max], typelogement[Type], BJ24) * 1.1,\n            IF(AND(AW24=\"non\", AX24=\"oui\"), VLOOKUP(BJ24, data!$P$22:$S$54, 3, FALSE),\n                IF(AND(AW24=\"oui\", AX24=\"oui\"), VLOOKUP(BJ24, data!$V$22:$Y$54, 3, FALSE), \"\"\n                )\n            )\n        )\n    )\n)","v":""}]
[null,null,null,null,null,null,null,null,null,null,null,null,null,null,null,null,null,null,null,null,null,null,null,null,null,null,null,null,null,null,null,null,null,null,null,null,null,null,null,null,null,null,null,null,null,null,null,null,null,null,null,null,null,null,null,null,null,null,null,null,null,null,null,null,null,null,{"$f":"IF(OR(AW25=\"\", AX25=\"\"), \"\",\n    IF(AND(AW25=\"non\", AX25=\"non\"), SUMIFS(typelogement[SUH max], typelogement[Type], BJ25),\n        IF(AND(AW25=\"oui\", AX25=\"non\"), SUMIFS(typelogement[SUH max], typelogement[Type], BJ25) * 1.1,\n            IF(AND(AW25=\"non\", AX25=\"oui\"), VLOOKUP(BJ25, data!$P$22:$S$54, 3, FALSE),\n                IF(AND(AW25=\"oui\", AX25=\"oui\"), VLOOKUP(BJ25, data!$V$22:$Y$54, 3, FALSE), \"\"\n                )\n            )\n        )\n    )\n)","v":""}]
["Location",{"$f":"COUNTIF(BK11:BK62,\"location abordable\")","v":0},null,null,null,null,null,null,null,null,null,null,null,null,null,null,null,null,null,null,null,null,null,null,null,null,null,null,null,null,null,null,null,null,null,null,null,null,null,null,null,null,null,null,null,null,null,null,null,null,null,null,null,null,null,null,null,null,null,null,null,null,null,null,null,null,{"$f":"IF(OR(AW26=\"\", AX26=\"\"), \"\",\n    IF(AND(AW26=\"non\", AX26=\"non\"), SUMIFS(typelogement[SUH max], typelogement[Type], BJ26),\n        IF(AND(AW26=\"oui\", AX26=\"non\"), SUMIFS(typelogement[SUH max], typelogement[Type], BJ26) * 1.1,\n            IF(AND(AW26=\"non\", AX26=\"oui\"), VLOOKUP(BJ26, data!$P$22:$S$54, 3, FALSE),\n                IF(AND(AW26=\"oui\", AX26=\"oui\"), VLOOKUP(BJ26, data!$V$22:$Y$54, 3, FALSE), \"\"\n                )\n            )\n        )\n    )\n)","v":""}]
["Vente à coût modéré",{"$f":"COUNTIF(BK11:BK62,\"vente à coût modéré\")","v":0},null,null,null,null,null,null,null,null,null,null,null,null,null,null,null,null,null,null,null,null,null,null,null,null,null,null,null,null,null,null,null,null,null,null,null,null,null,null,null,null,null,null,null,null,null,null,null,null,null,null,null,null,null,null,null,null,null,null,null,null,null,null,null,null,{"$f":"IF(OR(AW27=\"\", AX27=\"\"), \"\",\n    IF(AND(AW27=\"non\", AX27=\"non\"), SUMIFS(typelogement[SUH max], typelogement[Type], BJ27),\n        IF(AND(AW27=\"oui\", AX27=\"non\"), SUMIFS(typelogement[SUH max], typelogement[Type], BJ27) * 1.1,\n            IF(AND(AW27=\"non\", AX27=\"oui\"), VLOOKUP(BJ27, data!$P$22:$S$54, 3, FALSE),\n                IF(AND(AW27=\"oui\", AX27=\"oui\"), VLOOKUP(BJ27, data!$V$22:$Y$54, 3, FALSE), \"\"\n                )\n            )\n        )\n    )\n)","v":""}]
["Vente abordable",{"$f":"COUNTIF(BK11:BK62,\"vente abordable\")","v":0},null,null,null,null,null,null,null,null,null,null,null,null,null,null,null,null,null,null,null,null,null,null,null,null,null,null,null,null,null,null,null,null,null,null,null,null,null,null,null,null,null,null,null,null,null,null,null,null,null,null,null,null,null,null,null,null,null,null,null,null,null,null,null,null,{"$f":"IF(OR(AW28=\"\", AX28=\"\"), \"\",\n    IF(AND(AW28=\"non\", AX28=\"non\"), SUMIFS(typelogement[SUH max], typelogement[Type], BJ28),\n        IF(AND(AW28=\"oui\", AX28=\"non\"), SUMIFS(typelogement[SUH max], typelogement[Type], BJ28) * 1.1,\n            IF(AND(AW28=\"non\", AX28=\"oui\"), VLOOKUP(BJ28, data!$P$22:$S$54, 3, FALSE),\n                IF(AND(AW28=\"oui\", AX28=\"oui\"), VLOOKUP(BJ28, data!$V$22:$Y$54, 3, FALSE), \"\"\n                )\n            )\n        )\n    )\n)","v":""}]
[null,null,null,null,null,null,null,null,null,null,null,null,null,null,null,null,null,null,null,null,null,null,null,null,null,null,null,null,null,null,null,null,null,null,null,null,null,null,null,null,null,null,null,null,null,null,null,null,null,null,null,null,null,null,null,null,null,null,null,null,null,null,null,null,null,null,{"$f":"IF(OR(AW29=\"\", AX29=\"\"), \"\",\n    IF(AND(AW29=\"non\", AX29=\"non\"), SUMIFS(typelogement[SUH max], typelogement[Type], BJ29),\n        IF(AND(AW29=\"oui\", AX29=\"non\"), SUMIFS(typelogement[SUH max], typelogement[Type], BJ29) * 1.1,\n            IF(AND(AW29=\"non\", AX29=\"oui\"), VLOOKUP(BJ29, data!$P$22:$S$54, 3, FALSE),\n                IF(AND(AW29=\"oui\", AX29=\"oui\"), VLOOKUP(BJ29, data!$V$22:$Y$54, 3, FALSE), \"\"\n                )\n            )\n        )\n    )\n)","v":""}]
["Ratio vente abordable",{"$f":"IFERROR(B28/SUM(B27:B28),\"\")","v":""},null,null,null,null,null,null,null,null,null,null,null,null,null,null,null,null,null,null,null,null,null,null,null,null,null,null,null,null,null,null,null,null,null,null,null,null,null,null,null,null,null,null,null,null,null,null,null,null,null,null,null,null,null,null,null,null,null,null,null,null,null,null,null,null,{"$f":"IF(OR(AW30=\"\", AX30=\"\"), \"\",\n    IF(AND(AW30=\"non\", AX30=\"non\"), SUMIFS(typelogement[SUH max], typelogement[Type], BJ30),\n        IF(AND(AW30=\"oui\", AX30=\"non\"), SUMIFS(typelogement[SUH max], typelogement[Type], BJ30) * 1.1,\n            IF(AND(AW30=\"non\", AX30=\"oui\"), VLOOKUP(BJ30, data!$P$22:$S$54, 3, FALSE),\n                IF(AND(AW30=\"oui\", AX30=\"oui\"), VLOOKUP(BJ30, data!$V$22:$Y$54, 3, FALSE), \"\"\n                )\n            )\n        )\n    )\n)","v":""}]
[null,null,null,null,null,null,null,null,null,null,null,null,null,null,null,null,null,null,null,null,null,null,null,null,null,null,null,null,null,null,null,null,null,null,null,null,null,null,null,null,null,null,null,null,null,null,null,null,null,null,null,null,null,null,null,null,null,null,null,null,null,null,null,null,null,null,{"$f":"IF(OR(AW31=\"\", AX31=\"\"), \"\",\n    IF(AND(AW31=\"non\", AX31=\"non\"), SUMIFS(typelogement[SUH max], typelogement[Type], BJ31),\n        IF(AND(AW31=\"oui\", AX31=\"non\"), SUMIFS(typelogement[SUH max], typelogement[Type], BJ31) * 1.1,\n            IF(AND(AW31=\"non\", AX31=\"oui\"), VLOOKUP(BJ31, data!$P$22:$S$54, 3, FALSE),\n                IF(AND(AW31=\"oui\", AX31=\"oui\"), VLOOKUP(BJ31, data!$V$22:$Y$54, 3, FALSE), \"\"\n                )\n            )\n        )\n    )\n)","v":""}]
["Σ surfaces terrains",{"$f":"SUM(F11:F62)","v":0},null,null,null,null,null,null,null,null,null,null,null,null,null,null,null,null,null,null,null,null,null,null,null,null,null,null,null,null,null,null,null,null,null,null,null,null,null,null,null,null,null,null,null,null,null,null,null,null,null,null,null,null,null,null,null,null,null,null,null,null,null,null,null,null,{"$f":"IF(OR(AW32=\"\", AX32=\"\"), \"\",\n    IF(AND(AW32=\"non\", AX32=\"non\"), SUMIFS(typelogement[SUH max], typelogement[Type], BJ32),\n        IF(AND(AW32=\"oui\", AX32=\"non\"), SUMIFS(typelogement[SUH max], typelogement[Type], BJ32) * 1.1,\n            IF(AND(AW32=\"non\", AX32=\"oui\"), VLOOKUP(BJ32, data!$P$22:$S$54, 3, FALSE),\n                IF(AND(AW32=\"oui\", AX32=\"oui\"), VLOOKUP(BJ32, data!$V$22:$Y$54, 3, FALSE), \"\"\n                )\n            )\n        )\n    )\n)","v":""}]
[null,null,null,null,null,null,null,null,null,null,null,null,null,null,null,null,null,null,null,null,null,null,null,null,null,null,null,null,null,null,null,null,null,null,null,null,null,null,null,null,null,null,null,null,null,null,null,null,null,null,null,null,null,null,null,null,null,null,null,null,null,null,null,null,null,null,{"$f":"IF(OR(AW33=\"\", AX33=\"\"), \"\",\n    IF(AND(AW33=\"non\", AX33=\"non\"), SUMIFS(typelogement[SUH max], typelogement[Type], BJ33),\n        IF(AND(AW33=\"oui\", AX33=\"non\"), SUMIFS(typelogement[SUH max], typelogement[Type], BJ33) * 1.1,\n            IF(AND(AW33=\"non\", AX33=\"oui\"), VLOOKUP(BJ33, data!$P$22:$S$54, 3, FALSE),\n                IF(AND(AW33=\"oui\", AX33=\"oui\"), VLOOKUP(BJ33, data!$V$22:$Y$54, 3, FALSE), \"\"\n                )\n            )\n        )\n    )\n)","v":""}]
[null,null,null,null,null,null,null,null,null,null,null,null,null,null,null,null,null,null,null,null,null,null,null,null,null,null,null,null,null,null,null,null,null,null,null,null,null,null,null,null,null,null,null,null,null,null,null,null,null,null,null,null,null,null,null,null,null,null,null,null,null,null,null,null,null,null,{"$f":"IF(OR(AW34=\"\", AX34=\"\"), \"\",\n    IF(AND(AW34=\"non\", AX34=\"non\"), SUMIFS(typelogement[SUH max], typelogement[Type], BJ34),\n        IF(AND(AW34=\"oui\", AX34=\"non\"), SUMIFS(typelogement[SUH max], typelogement[Type], BJ34) * 1.1,\n            IF(AND(AW34=\"non\", AX34=\"oui\"), VLOOKUP(BJ34, data!$P$22:$S$54, 3, FALSE),\n                IF(AND(AW34=\"oui\", AX34=\"oui\"), VLOOKUP(BJ34, data!$V$22:$Y$54, 3, FALSE), \"\"\n                )\n            )\n        )\n    )\n)","v":""}]
[null,null,null,null,null,null,null,null,null,null,null,null,null,null,null,null,null,null,null,null,null,null,null,null,null,null,null,null,null,null,null,null,null,null,null,null,null,null,null,null,null,null,null,null,null,null,null,null,null,null,null,null,null,null,null,null,null,null,null,null,null,null,null,null,null,null,{"$f":"IF(OR(AW35=\"\", AX35=\"\"), \"\",\n    IF(AND(AW35=\"non\", AX35=\"non\"), SUMIFS(typelogement[SUH max], typelogement[Type], BJ35),\n        IF(AND(AW35=\"oui\", AX35=\"non\"), SUMIFS(typelogement[SUH max], typelogement[Type], BJ35) * 1.1,\n            IF(AND(AW35=\"non\", AX35=\"oui\"), VLOOKUP(BJ35, data!$P$22:$S$54, 3, FALSE),\n                IF(AND(AW35=\"oui\", AX35=\"oui\"), VLOOKUP(BJ35, data!$V$22:$Y$54, 3, FALSE), \"\"\n                )\n            )\n        )\n    )\n)","v":""}]
[null,null,null,null,null,null,null,null,null,null,null,null,null,null,null,null,null,null,null,null,null,null,null,null,null,null,null,null,null,null,null,null,null,null,null,null,null,null,null,null,null,null,null,null,null,null,null,null,null,null,null,null,null,null,null,null,null,null,null,null,null,null,null,null,null,null,{"$f":"IF(OR(AW36=\"\", AX36=\"\"), \"\",\n    IF(AND(AW36=\"non\", AX36=\"non\"), SUMIFS(typelogement[SUH max], typelogement[Type], BJ36),\n        IF(AND(AW36=\"oui\", AX36=\"non\"), SUMIFS(typelogement[SUH max], typelogement[Type], BJ36) * 1.1,\n            IF(AND(AW36=\"non\", AX36=\"oui\"), VLOOKUP(BJ36, data!$P$22:$S$54, 3, FALSE),\n                IF(AND(AW36=\"oui\", AX36=\"oui\"), VLOOKUP(BJ36, data!$V$22:$Y$54, 3, FALSE), \"\"\n                )\n            )\n        )\n    )\n)","v":""}]
[null,null,null,null,null,null,null,null,null,null,null,null,null,null,null,null,null,null,null,null,null,null,null,null,null,null,null,null,null,null,null,null,null,null,null,null,null,null,null,null,null,null,null,null,null,null,null,null,null,null,null,null,null,null,null,null,null,null,null,null,null,null,null,null,null,null,{"$f":"IF(OR(AW37=\"\", AX37=\"\"), \"\",\n    IF(AND(AW37=\"non\", AX37=\"non\"), SUMIFS(typelogement[SUH max], typelogement[Type], BJ37),\n        IF(AND(AW37=\"oui\", AX37=\"non\"), SUMIFS(typelogement[SUH max], typelogement[Type], BJ37) * 1.1,\n            IF(AND(AW37=\"non\", AX37=\"oui\"), VLOOKUP(BJ37, data!$P$22:$S$54, 3, FALSE),\n                IF(AND(AW37=\"oui\", AX37=\"oui\"), VLOOKUP(BJ37, data!$V$22:$Y$54, 3, FALSE), \"\"\n                )\n            )\n        )\n    )\n)","v":""}]
[null,null,null,null,null,null,null,null,null,null,null,null,null,null,null,null,null,null,null,null,null,null,null,null,null,null,null,null,null,null,null,null,null,null,null,null,null,null,null,null,null,null,null,null,null,null,null,null,null,null,null,null,null,null,null,null,null,null,null,null,null,null,null,null,null,null,{"$f":"IF(OR(AW38=\"\", AX38=\"\"), \"\",\n    IF(AND(AW38=\"non\", AX38=\"non\"), SUMIFS(typelogement[SUH max], typelogement[Type], BJ38),\n        IF(AND(AW38=\"oui\", AX38=\"non\"), SUMIFS(typelogement[SUH max], typelogement[Type], BJ38) * 1.1,\n            IF(AND(AW38=\"non\", AX38=\"oui\"), VLOOKUP(BJ38, data!$P$22:$S$54, 3, FALSE),\n                IF(AND(AW38=\"oui\", AX38=\"oui\"), VLOOKUP(BJ38, data!$V$22:$Y$54, 3, FALSE), \"\"\n                )\n            )\n        )\n    )\n)","v":""}]
[null,null,null,null,null,null,null,null,null,null,null,null,null,null,null,null,null,null,null,null,null,null,null,null,null,null,null,null,null,null,null,null,null,null,null,null,null,null,null,null,null,null,null,null,null,null,null,null,null,null,null,null,null,null,null,null,null,null,null,null,null,null,null,null,null,null,{"$f":"IF(OR(AW39=\"\", AX39=\"\"), \"\",\n    IF(AND(AW39=\"non\", AX39=\"non\"), SUMIFS(typelogement[SUH max], typelogement[Type], BJ39),\n        IF(AND(AW39=\"oui\", AX39=\"non\"), SUMIFS(typelogement[SUH max], typelogement[Type], BJ39) * 1.1,\n            IF(AND(AW39=\"non\", AX39=\"oui\"), VLOOKUP(BJ39, data!$P$22:$S$54, 3, FALSE),\n                IF(AND(AW39=\"oui\", AX39=\"oui\"), VLOOKUP(BJ39, data!$V$22:$Y$54, 3, FALSE), \"\"\n                )\n            )\n        )\n    )\n)","v":""}]
[null,null,null,null,null,null,null,null,null,null,null,null,null,null,null,null,null,null,null,null,null,null,null,null,null,null,null,null,null,null,null,null,null,null,null,null,null,null,null,null,null,null,null,null,null,null,null,null,null,null,null,null,null,null,null,null,null,null,null,null,null,null,null,null,null,null,{"$f":"IF(OR(AW40=\"\", AX40=\"\"), \"\",\n    IF(AND(AW40=\"non\", AX40=\"non\"), SUMIFS(typelogement[SUH max], typelogement[Type], BJ40),\n        IF(AND(AW40=\"oui\", AX40=\"non\"), SUMIFS(typelogement[SUH max], typelogement[Type], BJ40) * 1.1,\n            IF(AND(AW40=\"non\", AX40=\"oui\"), VLOOKUP(BJ40, data!$P$22:$S$54, 3, FALSE),\n                IF(AND(AW40=\"oui\", AX40=\"oui\"), VLOOKUP(BJ40, data!$V$22:$Y$54, 3, FALSE), \"\"\n                )\n            )\n        )\n    )\n)","v":""}]
[null,null,null,null,null,null,null,null,null,null,null,null,null,null,null,null,null,null,null,null,null,null,null,null,null,null,null,null,null,null,null,null,null,null,null,null,null,null,null,null,null,null,null,null,null,null,null,null,null,null,null,null,null,null,null,null,null,null,null,null,null,null,null,null,null,null,{"$f":"IF(OR(AW41=\"\", AX41=\"\"), \"\",\n    IF(AND(AW41=\"non\", AX41=\"non\"), SUMIFS(typelogement[SUH max], typelogement[Type], BJ41),\n        IF(AND(AW41=\"oui\", AX41=\"non\"), SUMIFS(typelogement[SUH max], typelogement[Type], BJ41) * 1.1,\n            IF(AND(AW41=\"non\", AX41=\"oui\"), VLOOKUP(BJ41, data!$P$22:$S$54, 3, FALSE),\n                IF(AND(AW41=\"oui\", AX41=\"oui\"), VLOOKUP(BJ41, data!$V$22:$Y$54, 3, FALSE), \"\"\n                )\n            )\n        )\n    )\n)","v":""}]
[null,null,null,null,null,null,null,null,null,null,null,null,null,null,null,null,null,null,null,null,null,null,null,null,null,null,null,null,null,null,null,null,null,null,null,null,null,null,null,null,null,null,null,null,null,null,null,null,null,null,null,null,null,null,null,null,null,null,null,null,null,null,null,null,null,null,{"$f":"IF(OR(AW42=\"\", AX42=\"\"), \"\",\n    IF(AND(AW42=\"non\", AX42=\"non\"), SUMIFS(typelogement[SUH max], typelogement[Type], BJ42),\n        IF(AND(AW42=\"oui\", AX42=\"non\"), SUMIFS(typelogement[SUH max], typelogement[Type], BJ42) * 1.1,\n            IF(AND(AW42=\"non\", AX42=\"oui\"), VLOOKUP(BJ42, data!$P$22:$S$54, 3, FALSE),\n                IF(AND(AW42=\"oui\", AX42=\"oui\"), VLOOKUP(BJ42, data!$V$22:$Y$54, 3, FALSE), \"\"\n                )\n            )\n        )\n    )\n)","v":""}]
[null,null,null,null,null,null,null,null,null,null,null,null,null,null,null,null,null,null,null,null,null,null,null,null,null,null,null,null,null,null,null,null,null,null,null,null,null,null,null,null,null,null,null,null,null,null,null,null,null,null,null,null,null,null,null,null,null,null,null,null,null,null,null,null,null,null,{"$f":"IF(OR(AW43=\"\", AX43=\"\"), \"\",\n    IF(AND(AW43=\"non\", AX43=\"non\"), SUMIFS(typelogement[SUH max], typelogement[Type], BJ43),\n        IF(AND(AW43=\"oui\", AX43=\"non\"), SUMIFS(typelogement[SUH max], typelogement[Type], BJ43) * 1.1,\n            IF(AND(AW43=\"non\", AX43=\"oui\"), VLOOKUP(BJ43, data!$P$22:$S$54, 3, FALSE),\n                IF(AND(AW43=\"oui\", AX43=\"oui\"), VLOOKUP(BJ43, data!$V$22:$Y$54, 3, FALSE), \"\"\n                )\n            )\n        )\n    )\n)","v":""}]
[null,null,null,null,null,null,null,null,null,null,null,null,null,null,null,null,null,null,null,null,null,null,null,null,null,null,null,null,null,null,null,null,null,null,null,null,null,null,null,null,null,null,null,null,null,null,null,null,null,null,null,null,null,null,null,null,null,null,null,null,null,null,null,null,null,null,{"$f":"IF(OR(AW44=\"\", AX44=\"\"), \"\",\n    IF(AND(AW44=\"non\", AX44=\"non\"), SUMIFS(typelogement[SUH max], typelogement[Type], BJ44),\n        IF(AND(AW44=\"oui\", AX44=\"non\"), SUMIFS(typelogement[SUH max], typelogement[Type], BJ44) * 1.1,\n            IF(AND(AW44=\"non\", AX44=\"oui\"), VLOOKUP(BJ44, data!$P$22:$S$54, 3, FALSE),\n                IF(AND(AW44=\"oui\", AX44=\"oui\"), VLOOKUP(BJ44, data!$V$22:$Y$54, 3, FALSE), \"\"\n                )\n            )\n        )\n    )\n)","v":""}]
[null,null,null,null,null,null,null,null,null,null,null,null,null,null,null,null,null,null,null,null,null,null,null,null,null,null,null,null,null,null,null,null,null,null,null,null,null,null,null,null,null,null,null,null,null,null,null,null,null,null,null,null,null,null,null,null,null,null,null,null,null,null,null,null,null,null,{"$f":"IF(OR(AW45=\"\", AX45=\"\"), \"\",\n    IF(AND(AW45=\"non\", AX45=\"non\"), SUMIFS(typelogement[SUH max], typelogement[Type], BJ45),\n        IF(AND(AW45=\"oui\", AX45=\"non\"), SUMIFS(typelogement[SUH max], typelogement[Type], BJ45) * 1.1,\n            IF(AND(AW45=\"non\", AX45=\"oui\"), VLOOKUP(BJ45, data!$P$22:$S$54, 3, FALSE),\n                IF(AND(AW45=\"oui\", AX45=\"oui\"), VLOOKUP(BJ45, data!$V$22:$Y$54, 3, FALSE), \"\"\n                )\n            )\n        )\n    )\n)","v":""}]
[null,null,null,null,null,null,null,null,null,null,null,null,null,null,null,null,null,null,null,null,null,null,null,null,null,null,null,null,null,null,null,null,null,null,null,null,null,null,null,null,null,null,null,null,null,null,null,null,null,null,null,null,null,null,null,null,null,null,null,null,null,null,null,null,null,null,{"$f":"IF(OR(AW46=\"\", AX46=\"\"), \"\",\n    IF(AND(AW46=\"non\", AX46=\"non\"), SUMIFS(typelogement[SUH max], typelogement[Type], BJ46),\n        IF(AND(AW46=\"oui\", AX46=\"non\"), SUMIFS(typelogement[SUH max], typelogement[Type], BJ46) * 1.1,\n            IF(AND(AW46=\"non\", AX46=\"oui\"), VLOOKUP(BJ46, data!$P$22:$S$54, 3, FALSE),\n                IF(AND(AW46=\"oui\", AX46=\"oui\"), VLOOKUP(BJ46, data!$V$22:$Y$54, 3, FALSE), \"\"\n                )\n            )\n        )\n    )\n)","v":""}]
[null,null,null,null,null,null,null,null,null,null,null,null,null,null,null,null,null,null,null,null,null,null,null,null,null,null,null,null,null,null,null,null,null,null,null,null,null,null,null,null,null,null,null,null,null,null,null,null,null,null,null,null,null,null,null,null,null,null,null,null,null,null,null,null,null,null,{"$f":"IF(OR(AW47=\"\", AX47=\"\"), \"\",\n    IF(AND(AW47=\"non\", AX47=\"non\"), SUMIFS(typelogement[SUH max], typelogement[Type], BJ47),\n        IF(AND(AW47=\"oui\", AX47=\"non\"), SUMIFS(typelogement[SUH max], typelogement[Type], BJ47) * 1.1,\n            IF(AND(AW47=\"non\", AX47=\"oui\"), VLOOKUP(BJ47, data!$P$22:$S$54, 3, FALSE),\n                IF(AND(AW47=\"oui\", AX47=\"oui\"), VLOOKUP(BJ47, data!$V$22:$Y$54, 3, FALSE), \"\"\n                )\n            )\n        )\n    )\n)","v":""}]
[null,null,null,null,null,null,null,null,null,null,null,null,null,null,null,null,null,null,null,null,null,null,null,null,null,null,null,null,null,null,null,null,null,null,null,null,null,null,null,null,null,null,null,null,null,null,null,null,null,null,null,null,null,null,null,null,null,null,null,null,null,null,null,null,null,null,{"$f":"IF(OR(AW48=\"\", AX48=\"\"), \"\",\n    IF(AND(AW48=\"non\", AX48=\"non\"), SUMIFS(typelogement[SUH max], typelogement[Type], BJ48),\n        IF(AND(AW48=\"oui\", AX48=\"non\"), SUMIFS(typelogement[SUH max], typelogement[Type], BJ48) * 1.1,\n            IF(AND(AW48=\"non\", AX48=\"oui\"), VLOOKUP(BJ48, data!$P$22:$S$54, 3, FALSE),\n                IF(AND(AW48=\"oui\", AX48=\"oui\"), VLOOKUP(BJ48, data!$V$22:$Y$54, 3, FALSE), \"\"\n                )\n            )\n        )\n    )\n)","v":""}]
[null,null,null,null,null,null,null,null,null,null,null,null,null,null,null,null,null,null,null,null,null,null,null,null,null,null,null,null,null,null,null,null,null,null,null,null,null,null,null,null,null,null,null,null,null,null,null,null,null,null,null,null,null,null,null,null,null,null,null,null,null,null,null,null,null,null,{"$f":"IF(OR(AW49=\"\", AX49=\"\"), \"\",\n    IF(AND(AW49=\"non\", AX49=\"non\"), SUMIFS(typelogement[SUH max], typelogement[Type], BJ49),\n        IF(AND(AW49=\"oui\", AX49=\"non\"), SUMIFS(typelogement[SUH max], typelogement[Type], BJ49) * 1.1,\n            IF(AND(AW49=\"non\", AX49=\"oui\"), VLOOKUP(BJ49, data!$P$22:$S$54, 3, FALSE),\n                IF(AND(AW49=\"oui\", AX49=\"oui\"), VLOOKUP(BJ49, data!$V$22:$Y$54, 3, FALSE), \"\"\n                )\n            )\n        )\n    )\n)","v":""}]
[null,null,null,null,null,null,null,null,null,null,null,null,null,null,null,null,null,null,null,null,null,null,null,null,null,null,null,null,null,null,null,null,null,null,null,null,null,null,null,null,null,null,null,null,null,null,null,null,null,null,null,null,null,null,null,null,null,null,null,null,null,null,null,null,null,null,{"$f":"IF(OR(AW50=\"\", AX50=\"\"), \"\",\n    IF(AND(AW50=\"non\", AX50=\"non\"), SUMIFS(typelogement[SUH max], typelogement[Type], BJ50),\n        IF(AND(AW50=\"oui\", AX50=\"non\"), SUMIFS(typelogement[SUH max], typelogement[Type], BJ50) * 1.1,\n            IF(AND(AW50=\"non\", AX50=\"oui\"), VLOOKUP(BJ50, data!$P$22:$S$54, 3, FALSE),\n                IF(AND(AW50=\"oui\", AX50=\"oui\"), VLOOKUP(BJ50, data!$V$22:$Y$54, 3, FALSE), \"\"\n                )\n            )\n        )\n    )\n)","v":""}]
[null,null,null,null,null,null,null,null,null,null,null,null,null,null,null,null,null,null,null,null,null,null,null,null,null,null,null,null,null,null,null,null,null,null,null,null,null,null,null,null,null,null,null,null,null,null,null,null,null,null,null,null,null,null,null,null,null,null,null,null,null,null,null,null,null,null,{"$f":"IF(OR(AW51=\"\", AX51=\"\"), \"\",\n    IF(AND(AW51=\"non\", AX51=\"non\"), SUMIFS(typelogement[SUH max], typelogement[Type], BJ51),\n        IF(AND(AW51=\"oui\", AX51=\"non\"), SUMIFS(typelogement[SUH max], typelogement[Type], BJ51) * 1.1,\n            IF(AND(AW51=\"non\", AX51=\"oui\"), VLOOKUP(BJ51, data!$P$22:$S$54, 3, FALSE),\n                IF(AND(AW51=\"oui\", AX51=\"oui\"), VLOOKUP(BJ51, data!$V$22:$Y$54, 3, FALSE), \"\"\n                )\n            )\n        )\n    )\n)","v":""}]
[null,null,null,null,null,null,null,null,null,null,null,null,null,null,null,null,null,null,null,null,null,null,null,null,null,null,null,null,null,null,null,null,null,null,null,null,null,null,null,null,null,null,null,null,null,null,null,null,null,null,null,null,null,null,null,null,null,null,null,null,null,null,null,null,null,null,{"$f":"IF(OR(AW52=\"\", AX52=\"\"), \"\",\n    IF(AND(AW52=\"non\", AX52=\"non\"), SUMIFS(typelogement[SUH max], typelogement[Type], BJ52),\n        IF(AND(AW52=\"oui\", AX52=\"non\"), SUMIFS(typelogement[SUH max], typelogement[Type], BJ52) * 1.1,\n            IF(AND(AW52=\"non\", AX52=\"oui\"), VLOOKUP(BJ52, data!$P$22:$S$54, 3, FALSE),\n                IF(AND(AW52=\"oui\", AX52=\"oui\"), VLOOKUP(BJ52, data!$V$22:$Y$54, 3, FALSE), \"\"\n                )\n            )\n        )\n    )\n)","v":""}]
[null,null,null,null,null,null,null,null,null,null,null,null,null,null,null,null,null,null,null,null,null,null,null,null,null,null,null,null,null,null,null,null,null,null,null,null,null,null,null,null,null,null,null,null,null,null,null,null,null,null,null,null,null,null,null,null,null,null,null,null,null,null,null,null,null,null,{"$f":"IF(OR(AW53=\"\", AX53=\"\"), \"\",\n    IF(AND(AW53=\"non\", AX53=\"non\"), SUMIFS(typelogement[SUH max], typelogement[Type], BJ53),\n        IF(AND(AW53=\"oui\", AX53=\"non\"), SUMIFS(typelogement[SUH max], typelogement[Type], BJ53) * 1.1,\n            IF(AND(AW53=\"non\", AX53=\"oui\"), VLOOKUP(BJ53, data!$P$22:$S$54, 3, FALSE),\n                IF(AND(AW53=\"oui\", AX53=\"oui\"), VLOOKUP(BJ53, data!$V$22:$Y$54, 3, FALSE), \"\"\n                )\n            )\n        )\n    )\n)","v":""}]
[null,null,null,null,null,null,null,null,null,null,null,null,null,null,null,null,null,null,null,null,null,null,null,null,null,null,null,null,null,null,null,null,null,null,null,null,null,null,null,null,null,null,null,null,null,null,null,null,null,null,null,null,null,null,null,null,null,null,null,null,null,null,null,null,null,null,{"$f":"IF(OR(AW54=\"\", AX54=\"\"), \"\",\n    IF(AND(AW54=\"non\", AX54=\"non\"), SUMIFS(typelogement[SUH max], typelogement[Type], BJ54),\n        IF(AND(AW54=\"oui\", AX54=\"non\"), SUMIFS(typelogement[SUH max], typelogement[Type], BJ54) * 1.1,\n            IF(AND(AW54=\"non\", AX54=\"oui\"), VLOOKUP(BJ54, data!$P$22:$S$54, 3, FALSE),\n                IF(AND(AW54=\"oui\", AX54=\"oui\"), VLOOKUP(BJ54, data!$V$22:$Y$54, 3, FALSE), \"\"\n                )\n            )\n        )\n    )\n)","v":""}]
[null,null,null,null,null,null,null,null,null,null,null,null,null,null,null,null,null,null,null,null,null,null,null,null,null,null,null,null,null,null,null,null,null,null,null,null,null,null,null,null,null,null,null,null,null,null,null,null,null,null,null,null,null,null,null,null,null,null,null,null,null,null,null,null,null,null,{"$f":"IF(OR(AW55=\"\", AX55=\"\"), \"\",\n    IF(AND(AW55=\"non\", AX55=\"non\"), SUMIFS(typelogement[SUH max], typelogement[Type], BJ55),\n        IF(AND(AW55=\"oui\", AX55=\"non\"), SUMIFS(typelogement[SUH max], typelogement[Type], BJ55) * 1.1,\n            IF(AND(AW55=\"non\", AX55=\"oui\"), VLOOKUP(BJ55, data!$P$22:$S$54, 3, FALSE),\n                IF(AND(AW55=\"oui\", AX55=\"oui\"), VLOOKUP(BJ55, data!$V$22:$Y$54, 3, FALSE), \"\"\n                )\n            )\n        )\n    )\n)","v":""}]
[null,null,null,null,null,null,null,null,null,null,null,null,null,null,null,null,null,null,null,null,null,null,null,null,null,null,null,null,null,null,null,null,null,null,null,null,null,null,null,null,null,null,null,null,null,null,null,null,null,null,null,null,null,null,null,null,null,null,null,null,null,null,null,null,null,null,{"$f":"IF(OR(AW56=\"\", AX56=\"\"), \"\",\n    IF(AND(AW56=\"non\", AX56=\"non\"), SUMIFS(typelogement[SUH max], typelogement[Type], BJ56),\n        IF(AND(AW56=\"oui\", AX56=\"non\"), SUMIFS(typelogement[SUH max], typelogement[Type], BJ56) * 1.1,\n            IF(AND(AW56=\"non\", AX56=\"oui\"), VLOOKUP(BJ56, data!$P$22:$S$54, 3, FALSE),\n                IF(AND(AW56=\"oui\", AX56=\"oui\"), VLOOKUP(BJ56, data!$V$22:$Y$54, 3, FALSE), \"\"\n                )\n            )\n        )\n    )\n)","v":""}]
[null,null,null,null,null,null,null,null,null,null,null,null,null,null,null,null,null,null,null,null,null,null,null,null,null,null,null,null,null,null,null,null,null,null,null,null,null,null,null,null,null,null,null,null,null,null,null,null,null,null,null,null,null,null,null,null,null,null,null,null,null,null,null,null,null,null,{"$f":"IF(OR(AW57=\"\", AX57=\"\"), \"\",\n    IF(AND(AW57=\"non\", AX57=\"non\"), SUMIFS(typelogement[SUH max], typelogement[Type], BJ57),\n        IF(AND(AW57=\"oui\", AX57=\"non\"), SUMIFS(typelogement[SUH max], typelogement[Type], BJ57) * 1.1,\n            IF(AND(AW57=\"non\", AX57=\"oui\"), VLOOKUP(BJ57, data!$P$22:$S$54, 3, FALSE),\n                IF(AND(AW57=\"oui\", AX57=\"oui\"), VLOOKUP(BJ57, data!$V$22:$Y$54, 3, FALSE), \"\"\n                )\n            )\n        )\n    )\n)","v":""}]
[null,null,null,null,null,null,null,null,null,null,null,null,null,null,null,null,null,null,null,null,null,null,null,null,null,null,null,null,null,null,null,null,null,null,null,null,null,null,null,null,null,null,null,null,null,null,null,null,null,null,null,null,null,null,null,null,null,null,null,null,null,null,null,null,null,null,{"$f":"IF(OR(AW58=\"\", AX58=\"\"), \"\",\n    IF(AND(AW58=\"non\", AX58=\"non\"), SUMIFS(typelogement[SUH max], typelogement[Type], BJ58),\n        IF(AND(AW58=\"oui\", AX58=\"non\"), SUMIFS(typelogement[SUH max], typelogement[Type], BJ58) * 1.1,\n            IF(AND(AW58=\"non\", AX58=\"oui\"), VLOOKUP(BJ58, data!$P$22:$S$54, 3, FALSE),\n                IF(AND(AW58=\"oui\", AX58=\"oui\"), VLOOKUP(BJ58, data!$V$22:$Y$54, 3, FALSE), \"\"\n                )\n            )\n        )\n    )\n)","v":""}]
[null,null,null,null,null,null,null,null,null,null,null,null,null,null,null,null,null,null,null,null,null,null,null,null,null,null,null,null,null,null,null,null,null,null,null,null,null,null,null,null,null,null,null,null,null,null,null,null,null,null,null,null,null,null,null,null,null,null,null,null,null,null,null,null,null,null,{"$f":"IF(OR(AW59=\"\", AX59=\"\"), \"\",\n    IF(AND(AW59=\"non\", AX59=\"non\"), SUMIFS(typelogement[SUH max], typelogement[Type], BJ59),\n        IF(AND(AW59=\"oui\", AX59=\"non\"), SUMIFS(typelogement[SUH max], typelogement[Type], BJ59) * 1.1,\n            IF(AND(AW59=\"non\", AX59=\"oui\"), VLOOKUP(BJ59, data!$P$22:$S$54, 3, FALSE),\n                IF(AND(AW59=\"oui\", AX59=\"oui\"), VLOOKUP(BJ59, data!$V$22:$Y$54, 3, FALSE), \"\"\n                )\n            )\n        )\n    )\n)","v":""}]
[null,null,null,null,null,null,null,null,null,null,null,null,null,null,null,null,null,null,null,null,null,null,null,null,null,null,null,null,null,null,null,null,null,null,null,null,null,null,null,null,null,null,null,null,null,null,null,null,null,null,null,null,null,null,null,null,null,null,null,null,null,null,null,null,null,null,{"$f":"IF(OR(AW60=\"\", AX60=\"\"), \"\",\n    IF(AND(AW60=\"non\", AX60=\"non\"), SUMIFS(typelogement[SUH max], typelogement[Type], BJ60),\n        IF(AND(AW60=\"oui\", AX60=\"non\"), SUMIFS(typelogement[SUH max], typelogement[Type], BJ60) * 1.1,\n            IF(AND(AW60=\"non\", AX60=\"oui\"), VLOOKUP(BJ60, data!$P$22:$S$54, 3, FALSE),\n                IF(AND(AW60=\"oui\", AX60=\"oui\"), VLOOKUP(BJ60, data!$V$22:$Y$54, 3, FALSE), \"\"\n                )\n            )\n        )\n    )\n)","v":""}]
[null,null,null,null,null,null,null,null,null,null,null,null,null,null,null,null,null,null,null,null,null,null,null,null,null,null,null,null,null,null,null,null,null,null,null,null,null,null,null,null,null,null,null,null,null,null,null,null,null,null,null,null,null,null,null,null,null,null,null,null,null,null,null,null,null,null,{"$f":"IF(OR(AW61=\"\", AX61=\"\"), \"\",\n    IF(AND(AW61=\"non\", AX61=\"non\"), SUMIFS(typelogement[SUH max], typelogement[Type], BJ61),\n        IF(AND(AW61=\"oui\", AX61=\"non\"), SUMIFS(typelogement[SUH max], typelogement[Type], BJ61) * 1.1,\n            IF(AND(AW61=\"non\", AX61=\"oui\"), VLOOKUP(BJ61, data!$P$22:$S$54, 3, FALSE),\n                IF(AND(AW61=\"oui\", AX61=\"oui\"), VLOOKUP(BJ61, data!$V$22:$Y$54, 3, FALSE), \"\"\n                )\n            )\n        )\n    )\n)","v":""}]
[null,null,null,null,null,null,null,null,null,null,null,null,null,null,null,null,null,null,null,null,null,null,null,null,null,null,null,null,null,null,null,null,null,null,null,null,null,null,null,null,null,null,null,null,null,null,null,null,null,null,null,null,null,null,null,null,null,null,null,null,null,null,null,null,null,null,{"$f":"IF(OR(AW62=\"\", AX62=\"\"), \"\",\n    IF(AND(AW62=\"non\", AX62=\"non\"), SUMIFS(typelogement[SUH max], typelogement[Type], BJ62),\n        IF(AND(AW62=\"oui\", AX62=\"non\"), SUMIFS(typelogement[SUH max], typelogement[Type], BJ62) * 1.1,\n            IF(AND(AW62=\"non\", AX62=\"oui\"), VLOOKUP(BJ62, data!$P$22:$S$54, 3, FALSE),\n                IF(AND(AW62=\"oui\", AX62=\"oui\"), VLOOKUP(BJ62, data!$V$22:$Y$54, 3, FALSE), \"\"\n                )\n            )\n        )\n    )\n)","v":""}]
[]
[null,null,null,null,null,null,null,null,null,null,null,null,null,null,null,null,null,null,null,null,null,"Commentaires",null,null,null,null,"Commentaires",null,null,null,null,"Commentaires",null,null,null,null,null,null,null,null,null,null,null,null,null,null,null,null,null,null,null,null,null,null,null,null,null,null,null,null,null,null,null,null,null,null,null,null,null,null,null,null,null,null,null,null,null,null,null,null,null,null,null,null,null,null,null,null,null,null,null,null,null,null,null,null,null,null,null,null,null,null,null,null,null,null,null,null,null,null,null,null,null,null,null,null,null,null,null,null,null,null,null,"Commentaires"]

{"sheet":"autres surfaces","index":3,"n_rows":12,"n_cols":13,"rows_kept":12,"cut":false,"hidden":false,"merged":[[0,1,1,3]]}
[null,"autres surfaces"]
[]
[]
[null,"affectation à \nl' immeuble: ","type de surface utile\nhors logement abordable","n° unité\nselon plan","n° cadastre vertical","étage","adapté PMR","Bailleur social/ Personne morale mandatée (gestion)","surface utile\n m2",null,"Ratios","m2\ntotal","%"]
[null,null,null,null,null,null,null,null,null,null,"Σ SU Bureaux",{"$f":"SUMIF(C5:C57,\"Bureau\",I5:I57)","v":0},{"$f":"IFERROR(L5/$L$12,0)","v":0}]
[null,null,null,null,null,null,null,null,null,null,"Σ SU Commerces",{"$f":"SUMIF(C5:C57,\"Commerce\",I5:I57)","v":0},{"$f":"IFERROR(L6/$L$12,0)","v":0}]
[null,null,null,null,null,null,null,null,null,null,"Σ SU Emplacements",{"$f":"SUMIF(C5:C57,\"Emplacement\",I5:I57)","v":0},0]
[null,null,null,null,null,null,null,null,null,null,"Σ SU Salle divers",{"$f":"SUMIF(C5:C57,\"Salle divers\",I5:I57)","v":0},{"$f":"IFERROR(L8/$L$12,0)","v":0}]
[null,null,null,null,null,null,null,null,null,null,"Σ SU Bureaux/Commerces",{"$f":"SUMIF(C5:C57,\"Bureau/Commerce\",I5:I57)","v":0},{"$f":"IFERROR(L9/$L$12,0)","v":0}]
[null,null,null,null,null,null,null,null,null,null,"Σ SU Logement non-subventionné",{"$f":"SUMIF(C6:C58,\"Logement non-subventionné\",I6:I58)","v":0},{"$f":"IFERROR(L10/$L$12,0)","v":0}]
[null,null,null,null,null,null,null,null,null,null,"Σ SU Autres",{"$f":"SUMIF(C7:C59,\"Autres\",I7:I59)","v":0},{"$f":"IFERROR(L11/$L$12,0)","v":0}]
[null,null,null,null,null,null,null,null,null,null,"Σ total SU hors logement",{"$f":"SUM(L5:L11)","v":0},{"$f":"SUM(M5:M11)","v":0}]

{"sheet":"Vue Resumé","index":4,"n_rows":20,"n_cols":10,"rows_kept":20,"cut":false,"hidden":true,"merged":[[17,0,17,9],[0,0,0,9],[6,0,6,9],[12,0,12,9],[3,5,3,6],[15,5,15,6]]}
["Maison"]
[]
["n° lot","Type de logement","Typologie\nlogement","Destination","bailleur\nsocial","catégorie","dédié","[SUH]\nm2\nlogement","[SUH maximale]\nm2 CDC\nlogement"," Σ nombre d'emplacements \npar maison"]
[null,null,null,null,null,"si dédié - afficher sous-catégorie"]
[]
[]
["Immeuble collective"]
[]
["Nom de la résidence"," Σ nombre d'unités","Σ [SUH] totale","Destination (V/L/Mixte)","Espace favorisant l'habitat (O/N)","Ascenseur"]
[]
[]
[]
["Appartement"]
[]
["n° unité selon plan","Type de logement","Typologie\nlogement","Destination","bailleur\nsocial","catégorie","dédié","[SUH]\nm2\nlogement","[SUH maximale]\nm2 CDC\nlogement"," Σ nombre d'emplacements \npar maison"]
[null,null,null,null,null,"si dédié - afficher sous-catégorie"]
[]
["Autres surfaces"]
[]
["affectation à \nl' immeuble: ","Catégorie surface utile\nhors logement","étage","adapté PMR","Bailleur social/ Personne morale mandatée (gestion)","SU m2"]

{"sheet":"tableau recapitulatif M","index":5,"n_rows":115,"n_cols":22,"rows_kept":115,"cut":false,"hidden":false,"merged":[[102,2,102,3],[103,2,103,3],[104,2,104,3],[105,2,105,3],[106,2,106,3],[97,2,97,3],[98,2,98,3],[99,2,99,3],[100,2,100,3],[101,2,101,3],[92,2,92,3],[93,2,93,3],[94,2,94,3],[95,2,95,3],[96,2,96,3],[87,2,87,3],[88,2,88,3],[89,2,89,3],[90,2,90,3],[91,2,91,3],[82,2,82,3],[83,2,83,3],[84,2,84,3],[85,2,85,3],[86,2,86,3],[77,2,77,3],[78,2,78,3],[79,2,79,3],[80,2,80,3],[81,2,81,3],[72,2,72,3],[73,2,73,3],[74,2,74,3],[75,2,75,3],[76,2,76,3],[67,2,67,3],[68,2,68,3],[69,2,69,3],[70,2,70,3],[71,2,71,3],[62,2,62,3],[63,2,63,3],[64,2,64,3],[65,2,65,3],[66,2,66,3],[57,2,57,3],[58,2,58,3],[59,2,59,3],[60,2,60,3],[61,2,61,3],[51,2,51,3],[52,2,52,3],[53,2,53,3],[54,2,54,3],[56,2,56,3],[46,2,46,3],[47,2,47,3],[48,2,48,3],[49,2,49,3],[50,2,50,3],[41,2,41,3],[42,2,42,3],[43,2,43,3],[44,2,44,3],[45,2,45,3],[36,2,36,3],[37,2,37,3],[38,2,38,3],[39,2,39,3],[40,2,40,3],[19,2,19,3],[20,2,20,3],[31,2,31,3],[32,2,32,3],[33,2,33,3],[34,2,34,3],[35,2,35,3],[26,2,26,3],[27,2,27,3],[28,2,28,3],[29,2,29,3],[30,2,30,3],[0,0,0,19],[55,2,55,3],[2,2,2,3],[3,2,3,3],[4,2,4,3],[5,2,5,3],[6,2,6,3],[7,2,7,3],[8,2,8,3],[9,2,9,3],[10,2,10,3],[11,2,11,3],[12,2,12,3],[13,2,13,3],[14,2,14,3],[15,2,15,3],[21,2,21,3],[22,2,22,3],[23,2,23,3],[24,2,24,3],[25,2,25,3],[16,2,16,3],[17,2,17,3],[18,2,18,3]]}
["Unités de logements abordables"]
[]
["1.",null,"Unités de Logements",null,null,"N° cadastral",null,"Typologie\nlogement principal",null,"location/vente",null,"Bailleur social",null,"Catégorie",null,"PMR",null,"N° cadastral\nCave",null,"N° cadastral \nemplacement(s)",null,"-> Data -> Sort & Filter -> Reapply"]
[null,null,{"$f":"'maison(s)'!E10","v":0},null,null,{"$f":"'maison(s)'!H10","v":0},null,{"$f":"IF('maison(s)'!W10=\"Oui\", 'maison(s)'!Z10&\"h\",'maison(s)'!Z10)","v":0},null,{"$f":"'maison(s)'!N10","v":0},null,{"$f":"'maison(s)'!M10","v":0},null,{"$f":"'maison(s)'!Y10","v":0},null,{"$f":"'maison(s)'!V10","v":0},null,{"$f":"'maison(s)'!CP10","v":0},null,{"$f":"CONCATENATE('maison(s)'!DU10,\" \",'maison(s)'!DY10,\" \",'maison(s)'!EC10,\" \",'maison(s)'!EG10,\" \",'maison(s)'!EK10)","v":"    "}]
[null,null,{"$f":"'maison(s)'!E11","v":0},null,null,{"$f":"'maison(s)'!H11","v":0},null,{"$f":"IF('maison(s)'!W11=\"Oui\", 'maison(s)'!Z11&\"h\",'maison(s)'!Z11)","v":0},null,{"$f":"'maison(s)'!N11","v":0},null,{"$f":"'maison(s)'!M11","v":0},null,{"$f":"'maison(s)'!Y11","v":0},null,{"$f":"'maison(s)'!V11","v":0},null,{"$f":"'maison(s)'!CP11","v":0},null,{"$f":"CONCATENATE('maison(s)'!DU11,\" \",'maison(s)'!DY11,\" \",'maison(s)'!EC11,\" \",'maison(s)'!EG11,\" \",'maison(s)'!EK11)","v":"    "}]
[null,null,{"$f":"'maison(s)'!E12","v":0},null,null,{"$f":"'maison(s)'!H12","v":0},null,{"$f":"IF('maison(s)'!W12=\"Oui\", 'maison(s)'!Z12&\"h\",'maison(s)'!Z12)","v":0},null,{"$f":"'maison(s)'!N12","v":0},null,{"$f":"'maison(s)'!M12","v":0},null,{"$f":"'maison(s)'!Y12","v":0},null,{"$f":"'maison(s)'!V12","v":0},null,{"$f":"'maison(s)'!CP12","v":0},null,{"$f":"CONCATENATE('maison(s)'!DU12,\" \",'maison(s)'!DY12,\" \",'maison(s)'!EC12,\" \",'maison(s)'!EG12,\" \",'maison(s)'!EK12)","v":"    "}]
[null,null,{"$f":"'maison(s)'!E13","v":0},null,null,{"$f":"'maison(s)'!H13","v":0},null,{"$f":"IF('maison(s)'!W13=\"Oui\", 'maison(s)'!Z13&\"h\",'maison(s)'!Z13)","v":0},null,{"$f":"'maison(s)'!N13","v":0},null,{"$f":"'maison(s)'!M13","v":0},null,{"$f":"'maison(s)'!Y13","v":0},null,{"$f":"'maison(s)'!V13","v":0},null,{"$f":"'maison(s)'!CP13","v":0},null,{"$f":"CONCATENATE('maison(s)'!DU13,\" \",'maison(s)'!DY13,\" \",'maison(s)'!EC13,\" \",'maison(s)'!EG13,\" \",'maison(s)'!EK13)","v":"    "}]
[null,null,{"$f":"'maison(s)'!E14","v":0},null,null,{"$f":"'maison(s)'!H14","v":0},null,{"$f":"IF('maison(s)'!W14=\"Oui\", 'maison(s)'!Z14&\"h\",'maison(s)'!Z14)","v":0},null,{"$f":"'maison(s)'!N14","v":0},null,{"$f":"'maison(s)'!M14","v":0},null,{"$f":"'maison(s)'!Y14","v":0},null,{"$f":"'maison(s)'!V14","v":0},null,{"$f":"'maison(s)'!CP14","v":0},null,{"$f":"CONCATENATE('maison(s)'!DU14,\" \",'maison(s)'!DY14,\" \",'maison(s)'!EC14,\" \",'maison(s)'!EG14,\" \",'maison(s)'!EK14)","v":"    "}]
[null,null,{"$f":"'maison(s)'!E15","v":0},null,null,{"$f":"'maison(s)'!H15","v":0},null,{"$f":"IF('maison(s)'!W15=\"Oui\", 'maison(s)'!Z15&\"h\",'maison(s)'!Z15)","v":0},null,{"$f":"'maison(s)'!N15","v":0},null,{"$f":"'maison(s)'!M15","v":0},null,{"$f":"'maison(s)'!Y15","v":0},null,{"$f":"'maison(s)'!V15","v":0},null,{"$f":"'maison(s)'!CP15","v":0},null,{"$f":"CONCATENATE('maison(s)'!DU15,\" \",'maison(s)'!DY15,\" \",'maison(s)'!EC15,\" \",'maison(s)'!EG15,\" \",'maison(s)'!EK15)","v":"    "}]
[null,null,{"$f":"'maison(s)'!E16","v":0},null,null,{"$f":"'maison(s)'!H16","v":0},null,{"$f":"IF('maison(s)'!W16=\"Oui\", 'maison(s)'!Z16&\"h\",'maison(s)'!Z16)","v":0},null,{"$f":"'maison(s)'!N16","v":0},null,{"$f":"'maison(s)'!M16","v":0},null,{"$f":"'maison(s)'!Y16","v":0},null,{"$f":"'maison(s)'!V16","v":0},null,{"$f":"'maison(s)'!CP16","v":0},null,{"$f":"CONCATENATE('maison(s)'!DU16,\" \",'maison(s)'!DY16,\" \",'maison(s)'!EC16,\" \",'maison(s)'!EG16,\" \",'maison(s)'!EK16)","v":"    "}]
[null,null,{"$f":"'maison(s)'!E17","v":0},null,null,{"$f":"'maison(s)'!H17","v":0},null,{"$f":"IF('maison(s)'!W17=\"Oui\", 'maison(s)'!Z17&\"h\",'maison(s)'!Z17)","v":0},null,{"$f":"'maison(s)'!N17","v":0},null,{"$f":"'maison(s)'!M17","v":0},null,{"$f":"'maison(s)'!Y17","v":0},null,{"$f":"'maison(s)'!V17","v":0},null,{"$f":"'maison(s)'!CP17","v":0},null,{"$f":"CONCATENATE('maison(s)'!DU17,\" \",'maison(s)'!DY17,\" \",'maison(s)'!EC17,\" \",'maison(s)'!EG17,\" \",'maison(s)'!EK17)","v":"    "}]
[null,null,{"$f":"'maison(s)'!E18","v":0},null,null,{"$f":"'maison(s)'!H18","v":0},null,{"$f":"IF('maison(s)'!W18=\"Oui\", 'maison(s)'!Z18&\"h\",'maison(s)'!Z18)","v":0},null,{"$f":"'maison(s)'!N18","v":0},null,{"$f":"'maison(s)'!M18","v":0},null,{"$f":"'maison(s)'!Y18","v":0},null,{"$f":"'maison(s)'!V18","v":0},null,{"$f":"'maison(s)'!CP18","v":0},null,{"$f":"CONCATENATE('maison(s)'!DU18,\" \",'maison(s)'!DY18,\" \",'maison(s)'!EC18,\" \",'maison(s)'!EG18,\" \",'maison(s)'!EK18)","v":"    "}]
[null,null,{"$f":"'maison(s)'!E19","v":0},null,null,{"$f":"'maison(s)'!H19","v":0},null,{"$f":"IF('maison(s)'!W19=\"Oui\", 'maison(s)'!Z19&\"h\",'maison(s)'!Z19)","v":0},null,{"$f":"'maison(s)'!N19","v":0},null,{"$f":"'maison(s)'!M19","v":0},null,{"$f":"'maison(s)'!Y19","v":0},null,{"$f":"'maison(s)'!V19","v":0},null,{"$f":"'maison(s)'!CP19","v":0},null,{"$f":"CONCATENATE('maison(s)'!DU19,\" \",'maison(s)'!DY19,\" \",'maison(s)'!EC19,\" \",'maison(s)'!EG19,\" \",'maison(s)'!EK19)","v":"    "}]
[null,null,{"$f":"'maison(s)'!E20","v":0},null,null,{"$f":"'maison(s)'!H20","v":0},null,{"$f":"IF('maison(s)'!W20=\"Oui\", 'maison(s)'!Z20&\"h\",'maison(s)'!Z20)","v":0},null,{"$f":"'maison(s)'!N20","v":0},null,{"$f":"'maison(s)'!M20","v":0},null,{"$f":"'maison(s)'!Y20","v":0},null,{"$f":"'maison(s)'!V20","v":0},null,{"$f":"'maison(s)'!CP20","v":0},null,{"$f":"CONCATENATE('maison(s)'!DU20,\" \",'maison(s)'!DY20,\" \",'maison(s)'!EC20,\" \",'maison(s)'!EG20,\" \",'maison(s)'!EK20)","v":"    "}]
[null,null,{"$f":"'maison(s)'!E21","v":0},null,null,{"$f":"'maison(s)'!H21","v":0},null,{"$f":"IF('maison(s)'!W21=\"Oui\", 'maison(s)'!Z21&\"h\",'maison(s)'!Z21)","v":0},null,{"$f":"'maison(s)'!N21","v":0},null,{"$f":"'maison(s)'!M21","v":0},null,{"$f":"'maison(s)'!Y21","v":0},null,{"$f":"'maison(s)'!V21","v":0},null,{"$f":"'maison(s)'!CP21","v":0},null,{"$f":"CONCATENATE('maison(s)'!DU21,\" \",'maison(s)'!DY21,\" \",'maison(s)'!EC21,\" \",'maison(s)'!EG21,\" \",'maison(s)'!EK21)","v":"    "}]
[null,null,{"$f":"'maison(s)'!E22","v":0},null,null,{"$f":"'maison(s)'!H22","v":0},null,{"$f":"IF('maison(s)'!W22=\"Oui\", 'maison(s)'!Z22&\"h\",'maison(s)'!Z22)","v":0},null,{"$f":"'maison(s)'!N22","v":0},null,{"$f":"'maison(s)'!M22","v":0},null,{"$f":"'maison(s)'!Y22","v":0},null,{"$f":"'maison(s)'!V22","v":0},null,{"$f":"'maison(s)'!CP22","v":0},null,{"$f":"CONCATENATE('maison(s)'!DU22,\" \",'maison(s)'!DY22,\" \",'maison(s)'!EC22,\" \",'maison(s)'!EG22,\" \",'maison(s)'!EK22)","v":"    "}]
[null,null,{"$f":"'maison(s)'!E23","v":0},null,null,{"$f":"'maison(s)'!H23","v":0},null,{"$f":"IF('maison(s)'!W23=\"Oui\", 'maison(s)'!Z23&\"h\",'maison(s)'!Z23)","v":0},null,{"$f":"'maison(s)'!N23","v":0},null,{"$f":"'maison(s)'!M23","v":0},null,{"$f":"'maison(s)'!Y23","v":0},null,{"$f":"'maison(s)'!V23","v":0},null,{"$f":"'maison(s)'!CP23","v":0},null,{"$f":"CONCATENATE('maison(s)'!DU23,\" \",'maison(s)'!DY23,\" \",'maison(s)'!EC23,\" \",'maison(s)'!EG23,\" \",'maison(s)'!EK23)","v":"    "}]
[null,null,{"$f":"'maison(s)'!E24","v":0},null,null,{"$f":"'maison(s)'!H24","v":0},null,{"$f":"IF('maison(s)'!W24=\"Oui\", 'maison(s)'!Z24&\"h\",'maison(s)'!Z24)","v":0},null,{"$f":"'maison(s)'!N24","v":0},null,{"$f":"'maison(s)'!M24","v":0},null,{"$f":"'maison(s)'!Y24","v":0},null,{"$f":"'maison(s)'!V24","v":0},null,{"$f":"'maison(s)'!CP24","v":0},null,{"$f":"CONCATENATE('maison(s)'!DU24,\" \",'maison(s)'!DY24,\" \",'maison(s)'!EC24,\" \",'maison(s)'!EG24,\" \",'maison(s)'!EK24)","v":"    "}]
[null,null,{"$f":"'maison(s)'!E25","v":0},null,null,{"$f":"'maison(s)'!H25","v":0},null,{"$f":"IF('maison(s)'!W25=\"Oui\", 'maison(s)'!Z25&\"h\",'maison(s)'!Z25)","v":0},null,{"$f":"'maison(s)'!N25","v":0},null,{"$f":"'maison(s)'!M25","v":0},null,{"$f":"'maison(s)'!Y25","v":0},null,{"$f":"'maison(s)'!V25","v":0},null,{"$f":"'maison(s)'!CP25","v":0},null,{"$f":"CONCATENATE('maison(s)'!DU25,\" \",'maison(s)'!DY25,\" \",'maison(s)'!EC25,\" \",'maison(s)'!EG25,\" \",'maison(s)'!EK25)","v":"    "}]
[null,null,{"$f":"'maison(s)'!E26","v":0},null,null,{"$f":"'maison(s)'!H26","v":0},null,{"$f":"IF('maison(s)'!W26=\"Oui\", 'maison(s)'!Z26&\"h\",'maison(s)'!Z26)","v":0},null,{"$f":"'maison(s)'!N26","v":0},null,{"$f":"'maison(s)'!M26","v":0},null,{"$f":"'maison(s)'!Y26","v":0},null,{"$f":"'maison(s)'!V26","v":0},null,{"$f":"'maison(s)'!CP26","v":0},null,{"$f":"CONCATENATE('maison(s)'!DU26,\" \",'maison(s)'!DY26,\" \",'maison(s)'!EC26,\" \",'maison(s)'!EG26,\" \",'maison(s)'!EK26)","v":"    "}]
[null,null,{"$f":"'maison(s)'!E27","v":0},null,null,{"$f":"'maison(s)'!H27","v":0},null,{"$f":"IF('maison(s)'!W27=\"Oui\", 'maison(s)'!Z27&\"h\",'maison(s)'!Z27)","v":0},null,{"$f":"'maison(s)'!N27","v":0},null,{"$f":"'maison(s)'!M27","v":0},null,{"$f":"'maison(s)'!Y27","v":0},null,{"$f":"'maison(s)'!V27","v":0},null,{"$f":"'maison(s)'!CP27","v":0},null,{"$f":"CONCATENATE('maison(s)'!DU27,\" \",'maison(s)'!DY27,\" \",'maison(s)'!EC27,\" \",'maison(s)'!EG27,\" \",'maison(s)'!EK27)","v":"    "}]
[null,null,{"$f":"'maison(s)'!E28","v":0},null,null,{"$f":"'maison(s)'!H28","v":0},null,{"$f":"IF('maison(s)'!W28=\"Oui\", 'maison(s)'!Z28&\"h\",'maison(s)'!Z28)","v":0},null,{"$f":"'maison(s)'!N28","v":0},null,{"$f":"'maison(s)'!M28","v":0},null,{"$f":"'maison(s)'!Y28","v":0},null,{"$f":"'maison(s)'!V28","v":0},null,{"$f":"'maison(s)'!CP28","v":0},null,{"$f":"CONCATENATE('maison(s)'!DU28,\" \",'maison(s)'!DY28,\" \",'maison(s)'!EC28,\" \",'maison(s)'!EG28,\" \",'maison(s)'!EK28)","v":"    "}]
[null,null,{"$f":"'maison(s)'!E29","v":0},null,null,{"$f":"'maison(s)'!H29","v":0},null,{"$f":"IF('maison(s)'!W29=\"Oui\", 'maison(s)'!Z29&\"h\",'maison(s)'!Z29)","v":0},null,{"$f":"'maison(s)'!N29","v":0},null,{"$f":"'maison(s)'!M29","v":0},null,{"$f":"'maison(s)'!Y29","v":0},null,{"$f":"'maison(s)'!V29","v":0},null,{"$f":"'maison(s)'!CP29","v":0},null,{"$f":"CONCATENATE('maison(s)'!DU29,\" \",'maison(s)'!DY29,\" \",'maison(s)'!EC29,\" \",'maison(s)'!EG29,\" \",'maison(s)'!EK29)","v":"    "}]
[null,null,{"$f":"'maison(s)'!E30","v":0},null,null,{"$f":"'maison(s)'!H30","v":0},null,{"$f":"IF('maison(s)'!W30=\"Oui\", 'maison(s)'!Z30&\"h\",'maison(s)'!Z30)","v":0},null,{"$f":"'maison(s)'!N30","v":0},null,{"$f":"'maison(s)'!M30","v":0},null,{"$f":"'maison(s)'!Y30","v":0},null,{"$f":"'maison(s)'!V30","v":0},null,{"$f":"'maison(s)'!CP30","v":0},null,{"$f":"CONCATENATE('maison(s)'!DU30,\" \",'maison(s)'!DY30,\" \",'maison(s)'!EC30,\" \",'maison(s)'!EG30,\" \",'maison(s)'!EK30)","v":"    "}]
[null,null,{"$f":"'maison(s)'!E31","v":0},null,null,{"$f":"'maison(s)'!H31","v":0},null,{"$f":"IF('maison(s)'!W31=\"Oui\", 'maison(s)'!Z31&\"h\",'maison(s)'!Z31)","v":0},null,{"$f":"'maison(s)'!N31","v":0},null,{"$f":"'maison(s)'!M31","v":0},null,{"$f":"'maison(s)'!Y31","v":0},null,{"$f":"'maison(s)'!V31","v":0},null,{"$f":"'maison(s)'!CP31","v":0},null,{"$f":"CONCATENATE('maison(s)'!DU31,\" \",'maison(s)'!DY31,\" \",'maison(s)'!EC31,\" \",'maison(s)'!EG31,\" \",'maison(s)'!EK31)","v":"    "}]
[null,null,{"$f":"'maison(s)'!E32","v":0},null,null,{"$f":"'maison(s)'!H32","v":0},null,{"$f":"IF('maison(s)'!W32=\"Oui\", 'maison(s)'!Z32&\"h\",'maison(s)'!Z32)","v":0},null,{"$f":"'maison(s)'!N32","v":0},null,{"$f":"'maison(s)'!M32","v":0},null,{"$f":"'maison(s)'!Y32","v":0},null,{"$f":"'maison(s)'!V32","v":0},null,{"$f":"'maison(s)'!CP32","v":0},null,{"$f":"CONCATENATE('maison(s)'!DU32,\" \",'maison(s)'!DY32,\" \",'maison(s)'!EC32,\" \",'maison(s)'!EG32,\" \",'maison(s)'!EK32)","v":"    "}]
[null,null,{"$f":"'maison(s)'!E33","v":0},null,null,{"$f":"'maison(s)'!H33","v":0},null,{"$f":"IF('maison(s)'!W33=\"Oui\", 'maison(s)'!Z33&\"h\",'maison(s)'!Z33)","v":0},null,{"$f":"'maison(s)'!N33","v":0},null,{"$f":"'maison(s)'!M33","v":0},null,{"$f":"'maison(s)'!Y33","v":0},null,{"$f":"'maison(s)'!V33","v":0},null,{"$f":"'maison(s)'!CP33","v":0},null,{"$f":"CONCATENATE('maison(s)'!DU33,\" \",'maison(s)'!DY33,\" \",'maison(s)'!EC33,\" \",'maison(s)'!EG33,\" \",'maison(s)'!EK33)","v":"    "}]
[null,null,{"$f":"'maison(s)'!E34","v":0},null,null,{"$f":"'maison(s)'!H34","v":0},null,{"$f":"IF('maison(s)'!W34=\"Oui\", 'maison(s)'!Z34&\"h\",'maison(s)'!Z34)","v":0},null,{"$f":"'maison(s)'!N34","v":0},null,{"$f":"'maison(s)'!M34","v":0},null,{"$f":"'maison(s)'!Y34","v":0},null,{"$f":"'maison(s)'!V34","v":0},null,{"$f":"'maison(s)'!CP34","v":0},null,{"$f":"CONCATENATE('maison(s)'!DU34,\" \",'maison(s)'!DY34,\" \",'maison(s)'!EC34,\" \",'maison(s)'!EG34,\" \",'maison(s)'!EK34)","v":"    "}]
[null,null,{"$f":"'maison(s)'!E35","v":0},null,null,{"$f":"'maison(s)'!H35","v":0},null,{"$f":"IF('maison(s)'!W35=\"Oui\", 'maison(s)'!Z35&\"h\",'maison(s)'!Z35)","v":0},null,{"$f":"'maison(s)'!N35","v":0},null,{"$f":"'maison(s)'!M35","v":0},null,{"$f":"'maison(s)'!Y35","v":0},null,{"$f":"'maison(s)'!V35","v":0},null,{"$f":"'maison(s)'!CP35","v":0},null,{"$f":"CONCATENATE('maison(s)'!DU35,\" \",'maison(s)'!DY35,\" \",'maison(s)'!EC35,\" \",'maison(s)'!EG35,\" \",'maison(s)'!EK35)","v":"    "}]
[null,null,{"$f":"'maison(s)'!E36","v":0},null,null,{"$f":"'maison(s)'!H36","v":0},null,{"$f":"IF('maison(s)'!W36=\"Oui\", 'maison(s)'!Z36&\"h\",'maison(s)'!Z36)","v":0},null,{"$f":"'maison(s)'!N36","v":0},null,{"$f":"'maison(s)'!M36","v":0},null,{"$f":"'maison(s)'!Y36","v":0},null,{"$f":"'maison(s)'!V36","v":0},null,{"$f":"'maison(s)'!CP36","v":0},null,{"$f":"CONCATENATE('maison(s)'!DU36,\" \",'maison(s)'!DY36,\" \",'maison(s)'!EC36,\" \",'maison(s)'!EG36,\" \",'maison(s)'!EK36)","v":"    "}]
[null,null,{"$f":"'maison(s)'!E37","v":0},null,null,{"$f":"'maison(s)'!H37","v":0},null,{"$f":"IF('maison(s)'!W37=\"Oui\", 'maison(s)'!Z37&\"h\",'maison(s)'!Z37)","v":0},null,{"$f":"'maison(s)'!N37","v":0},null,{"$f":"'maison(s)'!M37","v":0},null,{"$f":"'maison(s)'!Y37","v":0},null,{"$f":"'maison(s)'!V37","v":0},null,{"$f":"'maison(s)'!CP37","v":0},null,{"$f":"CONCATENATE('maison(s)'!DU37,\" \",'maison(s)'!DY37,\" \",'maison(s)'!EC37,\" \",'maison(s)'!EG37,\" \",'maison(s)'!EK37)","v":"    "}]
[null,null,{"$f":"'maison(s)'!E38","v":0},null,null,{"$f":"'maison(s)'!H38","v":0},null,{"$f":"IF('maison(s)'!W38=\"Oui\", 'maison(s)'!Z38&\"h\",'maison(s)'!Z38)","v":0},null,{"$f":"'maison(s)'!N38","v":0},null,{"$f":"'maison(s)'!M38","v":0},null,{"$f":"'maison(s)'!Y38","v":0},null,{"$f":"'maison(s)'!V38","v":0},null,{"$f":"'maison(s)'!CP38","v":0},null,{"$f":"CONCATENATE('maison(s)'!DU38,\" \",'maison(s)'!DY38,\" \",'maison(s)'!EC38,\" \",'maison(s)'!EG38,\" \",'maison(s)'!EK38)","v":"    "}]
[null,null,{"$f":"'maison(s)'!E39","v":0},null,null,{"$f":"'maison(s)'!H39","v":0},null,{"$f":"IF('maison(s)'!W39=\"Oui\", 'maison(s)'!Z39&\"h\",'maison(s)'!Z39)","v":0},null,{"$f":"'maison(s)'!N39","v":0},null,{"$f":"'maison(s)'!M39","v":0},null,{"$f":"'maison(s)'!Y39","v":0},null,{"$f":"'maison(s)'!V39","v":0},null,{"$f":"'maison(s)'!CP39","v":0},null,{"$f":"CONCATENATE('maison(s)'!DU39,\" \",'maison(s)'!DY39,\" \",'maison(s)'!EC39,\" \",'maison(s)'!EG39,\" \",'maison(s)'!EK39)","v":"    "}]
[null,null,{"$f":"'maison(s)'!E40","v":0},null,null,{"$f":"'maison(s)'!H40","v":0},null,{"$f":"IF('maison(s)'!W40=\"Oui\", 'maison(s)'!Z40&\"h\",'maison(s)'!Z40)","v":0},null,{"$f":"'maison(s)'!N40","v":0},null,{"$f":"'maison(s)'!M40","v":0},null,{"$f":"'maison(s)'!Y40","v":0},null,{"$f":"'maison(s)'!V40","v":0},null,{"$f":"'maison(s)'!CP40","v":0},null,{"$f":"CONCATENATE('maison(s)'!DU40,\" \",'maison(s)'!DY40,\" \",'maison(s)'!EC40,\" \",'maison(s)'!EG40,\" \",'maison(s)'!EK40)","v":"    "}]
[null,null,{"$f":"'maison(s)'!E41","v":0},null,null,{"$f":"'maison(s)'!H41","v":0},null,{"$f":"IF('maison(s)'!W41=\"Oui\", 'maison(s)'!Z41&\"h\",'maison(s)'!Z41)","v":0},null,{"$f":"'maison(s)'!N41","v":0},null,{"$f":"'maison(s)'!M41","v":0},null,{"$f":"'maison(s)'!Y41","v":0},null,{"$f":"'maison(s)'!V41","v":0},null,{"$f":"'maison(s)'!CP41","v":0},null,{"$f":"CONCATENATE('maison(s)'!DU41,\" \",'maison(s)'!DY41,\" \",'maison(s)'!EC41,\" \",'maison(s)'!EG41,\" \",'maison(s)'!EK41)","v":"    "}]
[null,null,{"$f":"'maison(s)'!E42","v":0},null,null,{"$f":"'maison(s)'!H42","v":0},null,{"$f":"IF('maison(s)'!W42=\"Oui\", 'maison(s)'!Z42&\"h\",'maison(s)'!Z42)","v":0},null,{"$f":"'maison(s)'!N42","v":0},null,{"$f":"'maison(s)'!M42","v":0},null,{"$f":"'maison(s)'!Y42","v":0},null,{"$f":"'maison(s)'!V42","v":0},null,{"$f":"'maison(s)'!CP42","v":0},null,{"$f":"CONCATENATE('maison(s)'!DU42,\" \",'maison(s)'!DY42,\" \",'maison(s)'!EC42,\" \",'maison(s)'!EG42,\" \",'maison(s)'!EK42)","v":"    "}]
[null,null,{"$f":"'maison(s)'!E43","v":0},null,null,{"$f":"'maison(s)'!H43","v":0},null,{"$f":"IF('maison(s)'!W43=\"Oui\", 'maison(s)'!Z43&\"h\",'maison(s)'!Z43)","v":0},null,{"$f":"'maison(s)'!N43","v":0},null,{"$f":"'maison(s)'!M43","v":0},null,{"$f":"'maison(s)'!Y43","v":0},null,{"$f":"'maison(s)'!V43","v":0},null,{"$f":"'maison(s)'!CP43","v":0},null,{"$f":"CONCATENATE('maison(s)'!DU43,\" \",'maison(s)'!DY43,\" \",'maison(s)'!EC43,\" \",'maison(s)'!EG43,\" \",'maison(s)'!EK43)","v":"    "}]
[null,null,{"$f":"'maison(s)'!E44","v":0},null,null,{"$f":"'maison(s)'!H44","v":0},null,{"$f":"IF('maison(s)'!W44=\"Oui\", 'maison(s)'!Z44&\"h\",'maison(s)'!Z44)","v":0},null,{"$f":"'maison(s)'!N44","v":0},null,{"$f":"'maison(s)'!M44","v":0},null,{"$f":"'maison(s)'!Y44","v":0},null,{"$f":"'maison(s)'!V44","v":0},null,{"$f":"'maison(s)'!CP44","v":0},null,{"$f":"CONCATENATE('maison(s)'!DU44,\" \",'maison(s)'!DY44,\" \",'maison(s)'!EC44,\" \",'maison(s)'!EG44,\" \",'maison(s)'!EK44)","v":"    "}]
[null,null,{"$f":"'maison(s)'!E45","v":0},null,null,{"$f":"'maison(s)'!H45","v":0},null,{"$f":"IF('maison(s)'!W45=\"Oui\", 'maison(s)'!Z45&\"h\",'maison(s)'!Z45)","v":0},null,{"$f":"'maison(s)'!N45","v":0},null,{"$f":"'maison(s)'!M45","v":0},null,{"$f":"'maison(s)'!Y45","v":0},null,{"$f":"'maison(s)'!V45","v":0},null,{"$f":"'maison(s)'!CP45","v":0},null,{"$f":"CONCATENATE('maison(s)'!DU45,\" \",'maison(s)'!DY45,\" \",'maison(s)'!EC45,\" \",'maison(s)'!EG45,\" \",'maison(s)'!EK45)","v":"    "}]
[null,null,{"$f":"'maison(s)'!E46","v":0},null,null,{"$f":"'maison(s)'!H46","v":0},null,{"$f":"IF('maison(s)'!W46=\"Oui\", 'maison(s)'!Z46&\"h\",'maison(s)'!Z46)","v":0},null,{"$f":"'maison(s)'!N46","v":0},null,{"$f":"'maison(s)'!M46","v":0},null,{"$f":"'maison(s)'!Y46","v":0},null,{"$f":"'maison(s)'!V46","v":0},null,{"$f":"'maison(s)'!CP46","v":0},null,{"$f":"CONCATENATE('maison(s)'!DU46,\" \",'maison(s)'!DY46,\" \",'maison(s)'!EC46,\" \",'maison(s)'!EG46,\" \",'maison(s)'!EK46)","v":"    "}]
[null,null,{"$f":"'maison(s)'!E47","v":0},null,null,{"$f":"'maison(s)'!H47","v":0},null,{"$f":"IF('maison(s)'!W47=\"Oui\", 'maison(s)'!Z47&\"h\",'maison(s)'!Z47)","v":0},null,{"$f":"'maison(s)'!N47","v":0},null,{"$f":"'maison(s)'!M47","v":0},null,{"$f":"'maison(s)'!Y47","v":0},null,{"$f":"'maison(s)'!V47","v":0},null,{"$f":"'maison(s)'!CP47","v":0},null,{"$f":"CONCATENATE('maison(s)'!DU47,\" \",'maison(s)'!DY47,\" \",'maison(s)'!EC47,\" \",'maison(s)'!EG47,\" \",'maison(s)'!EK47)","v":"    "}]
[null,null,{"$f":"'maison(s)'!E48","v":0},null,null,{"$f":"'maison(s)'!H48","v":0},null,{"$f":"IF('maison(s)'!W48=\"Oui\", 'maison(s)'!Z48&\"h\",'maison(s)'!Z48)","v":0},null,{"$f":"'maison(s)'!N48","v":0},null,{"$f":"'maison(s)'!M48","v":0},null,{"$f":"'maison(s)'!Y48","v":0},null,{"$f":"'maison(s)'!V48","v":0},null,{"$f":"'maison(s)'!CP48","v":0},null,{"$f":"CONCATENATE('maison(s)'!DU48,\" \",'maison(s)'!DY48,\" \",'maison(s)'!EC48,\" \",'maison(s)'!EG48,\" \",'maison(s)'!EK48)","v":"    "}]
[null,null,{"$f":"'maison(s)'!E49","v":0},null,null,{"$f":"'maison(s)'!H49","v":0},null,{"$f":"IF('maison(s)'!W49=\"Oui\", 'maison(s)'!Z49&\"h\",'maison(s)'!Z49)","v":0},null,{"$f":"'maison(s)'!N49","v":0},null,{"$f":"'maison(s)'!M49","v":0},null,{"$f":"'maison(s)'!Y49","v":0},null,{"$f":"'maison(s)'!V49","v":0},null,{"$f":"'maison(s)'!CP49","v":0},null,{"$f":"CONCATENATE('maison(s)'!DU49,\" \",'maison(s)'!DY49,\" \",'maison(s)'!EC49,\" \",'maison(s)'!EG49,\" \",'maison(s)'!EK49)","v":"    "}]
[null,null,{"$f":"'maison(s)'!E50","v":0},null,null,{"$f":"'maison(s)'!H50","v":0},null,{"$f":"IF('maison(s)'!W50=\"Oui\", 'maison(s)'!Z50&\"h\",'maison(s)'!Z50)","v":0},null,{"$f":"'maison(s)'!N50","v":0},null,{"$f":"'maison(s)'!M50","v":0},null,{"$f":"'maison(s)'!Y50","v":0},null,{"$f":"'maison(s)'!V50","v":0},null,{"$f":"'maison(s)'!CP50","v":0},null,{"$f":"CONCATENATE('maison(s)'!DU50,\" \",'maison(s)'!DY50,\" \",'maison(s)'!EC50,\" \",'maison(s)'!EG50,\" \",'maison(s)'!EK50)","v":"    "}]
[null,null,{"$f":"'maison(s)'!E51","v":0},null,null,{"$f":"'maison(s)'!H51","v":0},null,{"$f":"IF('maison(s)'!W51=\"Oui\", 'maison(s)'!Z51&\"h\",'maison(s)'!Z51)","v":0},null,{"$f":"'maison(s)'!N51","v":0},null,{"$f":"'maison(s)'!M51","v":0},null,{"$f":"'maison(s)'!Y51","v":0},null,{"$f":"'maison(s)'!V51","v":0},null,{"$f":"'maison(s)'!CP51","v":0},null,{"$f":"CONCATENATE('maison(s)'!DU51,\" \",'maison(s)'!DY51,\" \",'maison(s)'!EC51,\" \",'maison(s)'!EG51,\" \",'maison(s)'!EK51)","v":"    "}]
[null,null,{"$f":"'maison(s)'!E52","v":0},null,null,{"$f":"'maison(s)'!H52","v":0},null,{"$f":"IF('maison(s)'!W52=\"Oui\", 'maison(s)'!Z52&\"h\",'maison(s)'!Z52)","v":0},null,{"$f":"'maison(s)'!N52","v":0},null,{"$f":"'maison(s)'!M52","v":0},null,{"$f":"'maison(s)'!Y52","v":0},null,{"$f":"'maison(s)'!V52","v":0},null,{"$f":"'maison(s)'!CP52","v":0},null,{"$f":"CONCATENATE('maison(s)'!DU52,\" \",'maison(s)'!DY52,\" \",'maison(s)'!EC52,\" \",'maison(s)'!EG52,\" \",'maison(s)'!EK52)","v":"    "}]
[null,null,{"$f":"'maison(s)'!E53","v":0},null,null,{"$f":"'maison(s)'!H53","v":0},null,{"$f":"IF('maison(s)'!W53=\"Oui\", 'maison(s)'!Z53&\"h\",'maison(s)'!Z53)","v":0},null,{"$f":"'maison(s)'!N53","v":0},null,{"$f":"'maison(s)'!M53","v":0},null,{"$f":"'maison(s)'!Y53","v":0},null,{"$f":"'maison(s)'!V53","v":0},null,{"$f":"'maison(s)'!CP53","v":0},null,{"$f":"CONCATENATE('maison(s)'!DU53,\" \",'maison(s)'!DY53,\" \",'maison(s)'!EC53,\" \",'maison(s)'!EG53,\" \",'maison(s)'!EK53)","v":"    "}]
[null,null,{"$f":"'maison(s)'!E54","v":0},null,null,{"$f":"'maison(s)'!H54","v":0},null,{"$f":"IF('maison(s)'!W54=\"Oui\", 'maison(s)'!Z54&\"h\",'maison(s)'!Z54)","v":0},null,{"$f":"'maison(s)'!N54","v":0},null,{"$f":"'maison(s)'!M54","v":0},null,{"$f":"'maison(s)'!Y54","v":0},null,{"$f":"'maison(s)'!V54","v":0},null,{"$f":"'maison(s)'!CP54","v":0},null,{"$f":"CONCATENATE('maison(s)'!DU54,\" \",'maison(s)'!DY54,\" \",'maison(s)'!EC54,\" \",'maison(s)'!EG54,\" \",'maison(s)'!EK54)","v":"    "}]
[null,null,{"$f":"'maison(s)'!E55","v":0},null,null,{"$f":"'maison(s)'!H55","v":0},null,{"$f":"IF('maison(s)'!W55=\"Oui\", 'maison(s)'!Z55&\"h\",'maison(s)'!Z55)","v":0},null,{"$f":"'maison(s)'!N55","v":0},null,{"$f":"'maison(s)'!M55","v":0},null,{"$f":"'maison(s)'!Y55","v":0},null,{"$f":"'maison(s)'!V55","v":0},null,{"$f":"'maison(s)'!CP55","v":0},null,{"$f":"CONCATENATE('maison(s)'!DU55,\" \",'maison(s)'!DY55,\" \",'maison(s)'!EC55,\" \",'maison(s)'!EG55,\" \",'maison(s)'!EK55)","v":"    "}]
[null,null,{"$f":"'maison(s)'!E56","v":0},null,null,{"$f":"'maison(s)'!H56","v":0},null,{"$f":"IF('maison(s)'!W56=\"Oui\", 'maison(s)'!Z56&\"h\",'maison(s)'!Z56)","v":0},null,{"$f":"'maison(s)'!N56","v":0},null,{"$f":"'maison(s)'!M56","v":0},null,{"$f":"'maison(s)'!Y56","v":0},null,{"$f":"'maison(s)'!V56","v":0},null,{"$f":"'maison(s)'!CP56","v":0},null,{"$f":"CONCATENATE('maison(s)'!DU56,\" \",'maison(s)'!DY56,\" \",'maison(s)'!EC56,\" \",'maison(s)'!EG56,\" \",'maison(s)'!EK56)","v":"    "}]
[null,null,{"$f":"'maison(s)'!E57","v":0},null,null,{"$f":"'maison(s)'!H57","v":0},null,{"$f":"IF('maison(s)'!W57=\"Oui\", 'maison(s)'!Z57&\"h\",'maison(s)'!Z57)","v":0},null,{"$f":"'maison(s)'!N57","v":0},null,{"$f":"'maison(s)'!M57","v":0},null,{"$f":"'maison(s)'!Y57","v":0},null,{"$f":"'maison(s)'!V57","v":0},null,{"$f":"'maison(s)'!CP57","v":0},null,{"$f":"CONCATENATE('maison(s)'!DU57,\" \",'maison(s)'!DY57,\" \",'maison(s)'!EC57,\" \",'maison(s)'!EG57,\" \",'maison(s)'!EK57)","v":"    "}]
[null,null,{"$f":"'maison(s)'!E58","v":0},null,null,{"$f":"'maison(s)'!H58","v":0},null,{"$f":"IF('maison(s)'!W58=\"Oui\", 'maison(s)'!Z58&\"h\",'maison(s)'!Z58)","v":0},null,{"$f":"'maison(s)'!N58","v":0},null,{"$f":"'maison(s)'!M58","v":0},null,{"$f":"'maison(s)'!Y58","v":0},null,{"$f":"'maison(s)'!V58","v":0},null,{"$f":"'maison(s)'!CP58","v":0},null,{"$f":"CONCATENATE('maison(s)'!DU58,\" \",'maison(s)'!DY58,\" \",'maison(s)'!EC58,\" \",'maison(s)'!EG58,\" \",'maison(s)'!EK58)","v":"    "}]
[null,null,{"$f":"'maison(s)'!E59","v":0},null,null,{"$f":"'maison(s)'!H59","v":0},null,{"$f":"IF('maison(s)'!W59=\"Oui\", 'maison(s)'!Z59&\"h\",'maison(s)'!Z59)","v":0},null,{"$f":"'maison(s)'!N59","v":0},null,{"$f":"'maison(s)'!M59","v":0},null,{"$f":"'maison(s)'!Y59","v":0},null,{"$f":"'maison(s)'!V59","v":0},null,{"$f":"'maison(s)'!CP59","v":0},null,{"$f":"CONCATENATE('maison(s)'!DU59,\" \",'maison(s)'!DY59,\" \",'maison(s)'!EC59,\" \",'maison(s)'!EG59,\" \",'maison(s)'!EK59)","v":"    "}]
[null,null,{"$f":"'maison(s)'!E60","v":0},null,null,{"$f":"'maison(s)'!H60","v":0},null,{"$f":"IF('maison(s)'!W60=\"Oui\", 'maison(s)'!Z60&\"h\",'maison(s)'!Z60)","v":0},null,{"$f":"'maison(s)'!N60","v":0},null,{"$f":"'maison(s)'!M60","v":0},null,{"$f":"'maison(s)'!Y60","v":0},null,{"$f":"'maison(s)'!V60","v":0},null,{"$f":"'maison(s)'!CP60","v":0},null,{"$f":"CONCATENATE('maison(s)'!DU60,\" \",'maison(s)'!DY60,\" \",'maison(s)'!EC60,\" \",'maison(s)'!EG60,\" \",'maison(s)'!EK60)","v":"    "}]
[null,null,{"$f":"'maison(s)'!E61","v":0},null,null,{"$f":"'maison(s)'!H61","v":0},null,{"$f":"IF('maison(s)'!W61=\"Oui\", 'maison(s)'!Z61&\"h\",'maison(s)'!Z61)","v":0},null,{"$f":"'maison(s)'!N61","v":0},null,{"$f":"'maison(s)'!M61","v":0},null,{"$f":"'maison(s)'!Y61","v":0},null,{"$f":"'maison(s)'!V61","v":0},null,{"$f":"'maison(s)'!CP61","v":0},null,{"$f":"CONCATENATE('maison(s)'!DU61,\" \",'maison(s)'!DY61,\" \",'maison(s)'!EC61,\" \",'maison(s)'!EG61,\" \",'maison(s)'!EK61)","v":"    "}]
["2.",null,"Autres surfaces",null,null,0]
[null,null,{"$f":"+IF('autres surfaces'!B5=\"\",'autres surfaces'!C5,\"\")","v":0},null,null,{"$f":"IF('autres surfaces'!B5=\"maison\",'autres surfaces'!E5,\"\")","v":""},null,null,null,null,null,{"$f":"IF('autres surfaces'!B5=\"maison\",'autres surfaces'!H5,\"\")","v":""},null,null,null,{"$f":"IF('autres surfaces'!B5=\"maison\",'autres surfaces'!G5,\"\")","v":""}]
[null,null,{"$f":"+IF('autres surfaces'!B6=\"\",'autres surfaces'!C6,\"\")","v":0},null,null,{"$f":"IF('autres surfaces'!B6=\"maison\",'autres surfaces'!E6,\"\")","v":""},null,null,null,null,null,{"$f":"IF('autres surfaces'!B6=\"maison\",'autres surfaces'!H6,\"\")","v":""},null,null,null,{"$f":"IF('autres surfaces'!B6=\"maison\",'autres surfaces'!G6,\"\")","v":""}]
[null,null,{"$f":"+IF('autres surfaces'!B7=\"\",'autres surfaces'!C7,\"\")","v":0},null,null,{"$f":"IF('autres surfaces'!B7=\"maison\",'autres surfaces'!E7,\"\")","v":""},null,null,null,null,null,{"$f":"IF('autres surfaces'!B7=\"maison\",'autres surfaces'!H7,\"\")","v":""},null,null,null,{"$f":"IF('autres surfaces'!B7=\"maison\",'autres surfaces'!G7,\"\")","v":""}]
[null,null,{"$f":"+IF('autres surfaces'!B8=\"\",'autres surfaces'!C8,\"\")","v":0},null,null,{"$f":"IF('autres surfaces'!B8=\"maison\",'autres surfaces'!E8,\"\")","v":""},null,null,null,null,null,{"$f":"IF('autres surfaces'!B8=\"maison\",'autres surfaces'!H8,\"\")","v":""},null,null,null,{"$f":"IF('autres surfaces'!B8=\"maison\",'autres surfaces'!G8,\"\")","v":""}]
[null,null,{"$f":"+IF('autres surfaces'!B9=\"\",'autres surfaces'!C9,\"\")","v":0},null,null,{"$f":"IF('autres surfaces'!B9=\"maison\",'autres surfaces'!E9,\"\")","v":""},null,null,null,null,null,{"$f":"IF('autres surfaces'!B9=\"maison\",'autres surfaces'!H9,\"\")","v":""},null,null,null,{"$f":"IF('autres surfaces'!B9=\"maison\",'autres surfaces'!G9,\"\")","v":""}]
[null,null,{"$f":"+IF('autres surfaces'!B10=\"\",'autres surfaces'!C10,\"\")","v":0},null,null,{"$f":"IF('autres surfaces'!B10=\"maison\",'autres surfaces'!E10,\"\")","v":""},null,null,null,null,null,{"$f":"IF('autres surfaces'!B10=\"maison\",'autres surfaces'!H10,\"\")","v":""},null,null,null,{"$f":"IF('autres surfaces'!B10=\"maison\",'autres surfaces'!G10,\"\")","v":""}]
[null,null,{"$f":"+IF('autres surfaces'!B11=\"\",'autres surfaces'!C11,\"\")","v":0},null,null,{"$f":"IF('autres surfaces'!B11=\"maison\",'autres surfaces'!E11,\"\")","v":""},null,null,null,null,null,{"$f":"IF('autres surfaces'!B11=\"maison\",'autres surfaces'!H11,\"\")","v":""},null,null,null,{"$f":"IF('autres surfaces'!B11=\"maison\",'autres surfaces'!G11,\"\")","v":""}]
[null,null,{"$f":"+IF('autres surfaces'!B12=\"\",'autres surfaces'!C12,\"\")","v":0},null,null,{"$f":"IF('autres surfaces'!B12=\"maison\",'autres surfaces'!E12,\"\")","v":""},null,null,null,null,null,{"$f":"IF('autres surfaces'!B12=\"maison\",'autres surfaces'!H12,\"\")","v":""},null,null,null,{"$f":"IF('autres surfaces'!B12=\"maison\",'autres surfaces'!G12,\"\")","v":""}]
[null,null,{"$f":"+IF('autres surfaces'!B13=\"\",'autres surfaces'!C13,\"\")","v":0},null,null,{"$f":"IF('autres surfaces'!B13=\"maison\",'autres surfaces'!E13,\"\")","v":""},null,null,null,null,null,{"$f":"IF('autres surfaces'!B13=\"maison\",'autres surfaces'!H13,\"\")","v":""},null,null,null,{"$f":"IF('autres surfaces'!B13=\"maison\",'autres surfaces'!G13,\"\")","v":""}]
[null,null,{"$f":"+IF('autres surfaces'!B14=\"\",'autres surfaces'!C14,\"\")","v":0},null,null,{"$f":"IF('autres surfaces'!B14=\"maison\",'autres surfaces'!E14,\"\")","v":""},null,null,null,null,null,{"$f":"IF('autres surfaces'!B14=\"maison\",'autres surfaces'!H14,\"\")","v":""},null,null,null,{"$f":"IF('autres surfaces'!B14=\"maison\",'autres surfaces'!G14,\"\")","v":""}]
[null,null,{"$f":"+IF('autres surfaces'!B15=\"\",'autres surfaces'!C15,\"\")","v":0},null,null,{"$f":"IF('autres surfaces'!B15=\"maison\",'autres surfaces'!E15,\"\")","v":""},null,null,null,null,null,{"$f":"IF('autres surfaces'!B15=\"maison\",'autres surfaces'!H15,\"\")","v":""},null,null,null,{"$f":"IF('autres surfaces'!B15=\"maison\",'autres surfaces'!G15,\"\")","v":""}]
[null,null,{"$f":"+IF('autres surfaces'!B16=\"\",'autres surfaces'!C16,\"\")","v":0},null,null,{"$f":"IF('autres surfaces'!B16=\"maison\",'autres surfaces'!E16,\"\")","v":""},null,null,null,null,null,{"$f":"IF('autres surfaces'!B16=\"maison\",'autres surfaces'!H16,\"\")","v":""},null,null,null,{"$f":"IF('autres surfaces'!B16=\"maison\",'autres surfaces'!G16,\"\")","v":""}]
[null,null,{"$f":"+IF('autres surfaces'!B17=\"\",'autres surfaces'!C17,\"\")","v":0},null,null,{"$f":"IF('autres surfaces'!B17=\"maison\",'autres surfaces'!E17,\"\")","v":""},null,null,null,null,null,{"$f":"IF('autres surfaces'!B17=\"maison\",'autres surfaces'!H17,\"\")","v":""},null,null,null,{"$f":"IF('autres surfaces'!B17=\"maison\",'autres surfaces'!G17,\"\")","v":""}]
[null,null,{"$f":"+IF('autres surfaces'!B18=\"\",'autres surfaces'!C18,\"\")","v":0},null,null,{"$f":"IF('autres surfaces'!B18=\"maison\",'autres surfaces'!E18,\"\")","v":""},null,null,null,null,null,{"$f":"IF('autres surfaces'!B18=\"maison\",'autres surfaces'!H18,\"\")","v":""},null,null,null,{"$f":"IF('autres surfaces'!B18=\"maison\",'autres surfaces'!G18,\"\")","v":""}]
[null,null,{"$f":"+IF('autres surfaces'!B19=\"\",'autres surfaces'!C19,\"\")","v":0},null,null,{"$f":"IF('autres surfaces'!B19=\"maison\",'autres surfaces'!E19,\"\")","v":""},null,null,null,null,null,{"$f":"IF('autres surfaces'!B19=\"maison\",'autres surfaces'!H19,\"\")","v":""},null,null,null,{"$f":"IF('autres surfaces'!B19=\"maison\",'autres surfaces'!G19,\"\")","v":""}]
[null,null,{"$f":"+IF('autres surfaces'!B20=\"\",'autres surfaces'!C20,\"\")","v":0},null,null,{"$f":"IF('autres surfaces'!B20=\"maison\",'autres surfaces'!E20,\"\")","v":""},null,null,null,null,null,{"$f":"IF('autres surfaces'!B20=\"maison\",'autres surfaces'!H20,\"\")","v":""},null,null,null,{"$f":"IF('autres surfaces'!B20=\"maison\",'autres surfaces'!G20,\"\")","v":""}]
[null,null,{"$f":"+IF('autres surfaces'!B21=\"\",'autres surfaces'!C21,\"\")","v":0},null,null,{"$f":"IF('autres surfaces'!B21=\"maison\",'autres surfaces'!E21,\"\")","v":""},null,null,null,null,null,{"$f":"IF('autres surfaces'!B21=\"maison\",'autres surfaces'!H21,\"\")","v":""},null,null,null,{"$f":"IF('autres surfaces'!B21=\"maison\",'autres surfaces'!G21,\"\")","v":""}]
[null,null,{"$f":"+IF('autres surfaces'!B22=\"\",'autres surfaces'!C22,\"\")","v":0},null,null,{"$f":"IF('autres surfaces'!B22=\"maison\",'autres surfaces'!E22,\"\")","v":""},null,null,null,null,null,{"$f":"IF('autres surfaces'!B22=\"maison\",'autres surfaces'!H22,\"\")","v":""},null,null,null,{"$f":"IF('autres surfaces'!B22=\"maison\",'autres surfaces'!G22,\"\")","v":""}]
[null,null,{"$f":"+IF('autres surfaces'!B23=\"\",'autres surfaces'!C23,\"\")","v":0},null,null,{"$f":"IF('autres surfaces'!B23=\"maison\",'autres surfaces'!E23,\"\")","v":""},null,null,null,null,null,{"$f":"IF('autres surfaces'!B23=\"maison\",'autres surfaces'!H23,\"\")","v":""},null,null,null,{"$f":"IF('autres surfaces'!B23=\"maison\",'autres surfaces'!G23,\"\")","v":""}]
[null,null,{"$f":"+IF('autres surfaces'!B24=\"\",'autres surfaces'!C24,\"\")","v":0},null,null,{"$f":"IF('autres surfaces'!B24=\"maison\",'autres surfaces'!E24,\"\")","v":""},null,null,null,null,null,{"$f":"IF('autres surfaces'!B24=\"maison\",'autres surfaces'!H24,\"\")","v":""},null,null,null,{"$f":"IF('autres surfaces'!B24=\"maison\",'autres surfaces'!G24,\"\")","v":""}]
[null,null,{"$f":"+IF('autres surfaces'!B25=\"\",'autres surfaces'!C25,\"\")","v":0},null,null,{"$f":"IF('autres surfaces'!B25=\"maison\",'autres surfaces'!E25,\"\")","v":""},null,null,null,null,null,{"$f":"IF('autres surfaces'!B25=\"maison\",'autres surfaces'!H25,\"\")","v":""},null,null,null,{"$f":"IF('autres surfaces'!B25=\"maison\",'autres surfaces'!G25,\"\")","v":""}]
[null,null,{"$f":"+IF('autres surfaces'!B26=\"\",'autres surfaces'!C26,\"\")","v":0},null,null,{"$f":"IF('autres surfaces'!B26=\"maison\",'autres surfaces'!E26,\"\")","v":""},null,null,null,null,null,{"$f":"IF('autres surfaces'!B26=\"maison\",'autres surfaces'!H26,\"\")","v":""},null,null,null,{"$f":"IF('autres surfaces'!B26=\"maison\",'autres surfaces'!G26,\"\")","v":""}]
[null,null,{"$f":"+IF('autres surfaces'!B27=\"\",'autres surfaces'!C27,\"\")","v":0},null,null,{"$f":"IF('autres surfaces'!B27=\"maison\",'autres surfaces'!E27,\"\")","v":""},null,null,null,null,null,{"$f":"IF('autres surfaces'!B27=\"maison\",'autres surfaces'!H27,\"\")","v":""},null,null,null,{"$f":"IF('autres surfaces'!B27=\"maison\",'autres surfaces'!G27,\"\")","v":""}]
[null,null,{"$f":"+IF('autres surfaces'!B28=\"\",'autres surfaces'!C28,\"\")","v":0},null,null,{"$f":"IF('autres surfaces'!B28=\"maison\",'autres surfaces'!E28,\"\")","v":""},null,null,null,null,null,{"$f":"IF('autres surfaces'!B28=\"maison\",'autres surfaces'!H28,\"\")","v":""},null,null,null,{"$f":"IF('autres surfaces'!B28=\"maison\",'autres surfaces'!G28,\"\")","v":""}]
[null,null,{"$f":"+IF('autres surfaces'!B29=\"\",'autres surfaces'!C29,\"\")","v":0},null,null,{"$f":"IF('autres surfaces'!B29=\"maison\",'autres surfaces'!E29,\"\")","v":""},null,null,null,null,null,{"$f":"IF('autres surfaces'!B29=\"maison\",'autres surfaces'!H29,\"\")","v":""},null,null,null,{"$f":"IF('autres surfaces'!B29=\"maison\",'autres surfaces'!G29,\"\")","v":""}]
[null,null,{"$f":"+IF('autres surfaces'!B30=\"\",'autres surfaces'!C30,\"\")","v":0},null,null,{"$f":"IF('autres surfaces'!B30=\"maison\",'autres surfaces'!E30,\"\")","v":""},null,null,null,null,null,{"$f":"IF('autres surfaces'!B30=\"maison\",'autres surfaces'!H30,\"\")","v":""},null,null,null,{"$f":"IF('autres surfaces'!B30=\"maison\",'autres surfaces'!G30,\"\")","v":""}]
[null,null,{"$f":"+IF('autres surfaces'!B31=\"\",'autres surfaces'!C31,\"\")","v":0},null,null,{"$f":"IF('autres surfaces'!B31=\"maison\",'autres surfaces'!E31,\"\")","v":""},null,null,null,null,null,{"$f":"IF('autres surfaces'!B31=\"maison\",'autres surfaces'!H31,\"\")","v":""},null,null,null,{"$f":"IF('autres surfaces'!B31=\"maison\",'autres surfaces'!G31,\"\")","v":""}]
[null,null,{"$f":"+IF('autres surfaces'!B32=\"\",'autres surfaces'!C32,\"\")","v":0},null,null,{"$f":"IF('autres surfaces'!B32=\"maison\",'autres surfaces'!E32,\"\")","v":""},null,null,null,null,null,{"$f":"IF('autres surfaces'!B32=\"maison\",'autres surfaces'!H32,\"\")","v":""},null,null,null,{"$f":"IF('autres surfaces'!B32=\"maison\",'autres surfaces'!G32,\"\")","v":""}]
[null,null,{"$f":"+IF('autres surfaces'!B33=\"\",'autres surfaces'!C33,\"\")","v":0},null,null,{"$f":"IF('autres surfaces'!B33=\"maison\",'autres surfaces'!E33,\"\")","v":""},null,null,null,null,null,{"$f":"IF('autres surfaces'!B33=\"maison\",'autres surfaces'!H33,\"\")","v":""},null,null,null,{"$f":"IF('autres surfaces'!B33=\"maison\",'autres surfaces'!G33,\"\")","v":""}]
[null,null,{"$f":"+IF('autres surfaces'!B34=\"\",'autres surfaces'!C34,\"\")","v":0},null,null,{"$f":"IF('autres surfaces'!B34=\"maison\",'autres surfaces'!E34,\"\")","v":""},null,null,null,null,null,{"$f":"IF('autres surfaces'!B34=\"maison\",'autres surfaces'!H34,\"\")","v":""},null,null,null,{"$f":"IF('autres surfaces'!B34=\"maison\",'autres surfaces'!G34,\"\")","v":""}]
[null,null,{"$f":"+IF('autres surfaces'!B35=\"\",'autres surfaces'!C35,\"\")","v":0},null,null,{"$f":"IF('autres surfaces'!B35=\"maison\",'autres surfaces'!E35,\"\")","v":""},null,null,null,null,null,{"$f":"IF('autres surfaces'!B35=\"maison\",'autres surfaces'!H35,\"\")","v":""},null,null,null,{"$f":"IF('autres surfaces'!B35=\"maison\",'autres surfaces'!G35,\"\")","v":""}]
[null,null,{"$f":"+IF('autres surfaces'!B36=\"\",'autres surfaces'!C36,\"\")","v":0},null,null,{"$f":"IF('autres surfaces'!B36=\"maison\",'autres surfaces'!E36,\"\")","v":""},null,null,null,null,null,{"$f":"IF('autres surfaces'!B36=\"maison\",'autres surfaces'!H36,\"\")","v":""},null,null,null,{"$f":"IF('autres surfaces'!B36=\"maison\",'autres surfaces'!G36,\"\")","v":""}]
[null,null,{"$f":"+IF('autres surfaces'!B37=\"\",'autres surfaces'!C37,\"\")","v":0},null,null,{"$f":"IF('autres surfaces'!B37=\"maison\",'autres surfaces'!E37,\"\")","v":""},null,null,null,null,null,{"$f":"IF('autres surfaces'!B37=\"maison\",'autres surfaces'!H37,\"\")","v":""},null,null,null,{"$f":"IF('autres surfaces'!B37=\"maison\",'autres surfaces'!G37,\"\")","v":""}]
[null,null,{"$f":"+IF('autres surfaces'!B38=\"\",'autres surfaces'!C38,\"\")","v":0},null,null,{"$f":"IF('autres surfaces'!B38=\"maison\",'autres surfaces'!E38,\"\")","v":""},null,null,null,null,null,{"$f":"IF('autres surfaces'!B38=\"maison\",'autres surfaces'!H38,\"\")","v":""},null,null,null,{"$f":"IF('autres surfaces'!B38=\"maison\",'autres surfaces'!G38,\"\")","v":""}]
[null,null,{"$f":"+IF('autres surfaces'!B39=\"\",'autres surfaces'!C39,\"\")","v":0},null,null,{"$f":"IF('autres surfaces'!B39=\"maison\",'autres surfaces'!E39,\"\")","v":""},null,null,null,null,null,{"$f":"IF('autres surfaces'!B39=\"maison\",'autres surfaces'!H39,\"\")","v":""},null,null,null,{"$f":"IF('autres surfaces'!B39=\"maison\",'autres surfaces'!G39,\"\")","v":""}]
[null,null,{"$f":"+IF('autres surfaces'!B40=\"\",'autres surfaces'!C40,\"\")","v":0},null,null,{"$f":"IF('autres surfaces'!B40=\"maison\",'autres surfaces'!E40,\"\")","v":""},null,null,null,null,null,{"$f":"IF('autres surfaces'!B40=\"maison\",'autres surfaces'!H40,\"\")","v":""},null,null,null,{"$f":"IF('autres surfaces'!B40=\"maison\",'autres surfaces'!G40,\"\")","v":""}]
[null,null,{"$f":"+IF('autres surfaces'!B41=\"\",'autres surfaces'!C41,\"\")","v":0},null,null,{"$f":"IF('autres surfaces'!B41=\"maison\",'autres surfaces'!E41,\"\")","v":""},null,null,null,null,null,{"$f":"IF('autres surfaces'!B41=\"maison\",'autres surfaces'!H41,\"\")","v":""},null,null,null,{"$f":"IF('autres surfaces'!B41=\"maison\",'autres surfaces'!G41,\"\")","v":""}]
[null,null,{"$f":"+IF('autres surfaces'!B42=\"\",'autres surfaces'!C42,\"\")","v":0},null,null,{"$f":"IF('autres surfaces'!B42=\"maison\",'autres surfaces'!E42,\"\")","v":""},null,null,null,null,null,{"$f":"IF('autres surfaces'!B42=\"maison\",'autres surfaces'!H42,\"\")","v":""},null,null,null,{"$f":"IF('autres surfaces'!B42=\"maison\",'autres surfaces'!G42,\"\")","v":""}]
[null,null,{"$f":"+IF('autres surfaces'!B43=\"\",'autres surfaces'!C43,\"\")","v":0},null,null,{"$f":"IF('autres surfaces'!B43=\"maison\",'autres surfaces'!E43,\"\")","v":""},null,null,null,null,null,{"$f":"IF('autres surfaces'!B43=\"maison\",'autres surfaces'!H43,\"\")","v":""},null,null,null,{"$f":"IF('autres surfaces'!B43=\"maison\",'autres surfaces'!G43,\"\")","v":""}]
[null,null,{"$f":"+IF('autres surfaces'!B44=\"\",'autres surfaces'!C44,\"\")","v":0},null,null,{"$f":"IF('autres surfaces'!B44=\"maison\",'autres surfaces'!E44,\"\")","v":""},null,null,null,null,null,{"$f":"IF('autres surfaces'!B44=\"maison\",'autres surfaces'!H44,\"\")","v":""},null,null,null,{"$f":"IF('autres surfaces'!B44=\"maison\",'autres surfaces'!G44,\"\")","v":""}]
[null,null,{"$f":"+IF('autres surfaces'!B45=\"\",'autres surfaces'!C45,\"\")","v":0},null,null,{"$f":"IF('autres surfaces'!B45=\"maison\",'autres surfaces'!E45,\"\")","v":""},null,null,null,null,null,{"$f":"IF('autres surfaces'!B45=\"maison\",'autres surfaces'!H45,\"\")","v":""},null,null,null,{"$f":"IF('autres surfaces'!B45=\"maison\",'autres surfaces'!G45,\"\")","v":""}]
[null,null,{"$f":"+IF('autres surfaces'!B46=\"\",'autres surfaces'!C46,\"\")","v":0},null,null,{"$f":"IF('autres surfaces'!B46=\"maison\",'autres surfaces'!E46,\"\")","v":""},null,null,null,null,null,{"$f":"IF('autres surfaces'!B46=\"maison\",'autres surfaces'!H46,\"\")","v":""},null,null,null,{"$f":"IF('autres surfaces'!B46=\"maison\",'autres surfaces'!G46,\"\")","v":""}]
[null,null,{"$f":"+IF('autres surfaces'!B47=\"\",'autres surfaces'!C47,\"\")","v":0},null,null,{"$f":"IF('autres surfaces'!B47=\"maison\",'autres surfaces'!E47,\"\")","v":""},null,null,null,null,null,{"$f":"IF('autres surfaces'!B47=\"maison\",'autres surfaces'!H47,\"\")","v":""},null,null,null,{"$f":"IF('autres surfaces'!B47=\"maison\",'autres surfaces'!G47,\"\")","v":""}]
[null,null,{"$f":"+IF('autres surfaces'!B48=\"\",'autres surfaces'!C48,\"\")","v":0},null,null,{"$f":"IF('autres surfaces'!B48=\"maison\",'autres surfaces'!E48,\"\")","v":""},null,null,null,null,null,{"$f":"IF('autres surfaces'!B48=\"maison\",'autres surfaces'!H48,\"\")","v":""},null,null,null,{"$f":"IF('autres surfaces'!B48=\"maison\",'autres surfaces'!G48,\"\")","v":""}]
[null,null,{"$f":"+IF('autres surfaces'!B49=\"\",'autres surfaces'!C49,\"\")","v":0},null,null,{"$f":"IF('autres surfaces'!B49=\"maison\",'autres surfaces'!E49,\"\")","v":""},null,null,null,null,null,{"$f":"IF('autres surfaces'!B49=\"maison\",'autres surfaces'!H49,\"\")","v":""},null,null,null,{"$f":"IF('autres surfaces'!B49=\"maison\",'autres surfaces'!G49,\"\")","v":""}]
[null,null,{"$f":"+IF('autres surfaces'!B50=\"\",'autres surfaces'!C50,\"\")","v":0},null,null,{"$f":"IF('autres surfaces'!B50=\"maison\",'autres surfaces'!E50,\"\")","v":""},null,null,null,null,null,{"$f":"IF('autres surfaces'!B50=\"maison\",'autres surfaces'!H50,\"\")","v":""},null,null,null,{"$f":"IF('autres surfaces'!B50=\"maison\",'autres surfaces'!G50,\"\")","v":""}]
[null,null,{"$f":"+IF('autres surfaces'!B51=\"\",'autres surfaces'!C51,\"\")","v":0},null,null,{"$f":"IF('autres surfaces'!B51=\"maison\",'autres surfaces'!E51,\"\")","v":""},null,null,null,null,null,{"$f":"IF('autres surfaces'!B51=\"maison\",'autres surfaces'!H51,\"\")","v":""},null,null,null,{"$f":"IF('autres surfaces'!B51=\"maison\",'autres surfaces'!G51,\"\")","v":""}]
[null,null,{"$f":"+IF('autres surfaces'!B52=\"\",'autres surfaces'!C52,\"\")","v":0},null,null,{"$f":"IF('autres surfaces'!B52=\"maison\",'autres surfaces'!E52,\"\")","v":""},null,null,null,null,null,{"$f":"IF('autres surfaces'!B52=\"maison\",'autres surfaces'!H52,\"\")","v":""},null,null,null,{"$f":"IF('autres surfaces'!B52=\"maison\",'autres surfaces'!G52,\"\")","v":""}]
[null,null,{"$f":"+IF('autres surfaces'!B53=\"\",'autres surfaces'!C53,\"\")","v":0},null,null,{"$f":"IF('autres surfaces'!B53=\"maison\",'autres surfaces'!E53,\"\")","v":""},null,null,null,null,null,{"$f":"IF('autres surfaces'!B53=\"maison\",'autres surfaces'!H53,\"\")","v":""},null,null,null,{"$f":"IF('autres surfaces'!B53=\"maison\",'autres surfaces'!G53,\"\")","v":""}]
[null,null,{"$f":"+IF('autres surfaces'!B54=\"\",'autres surfaces'!C54,\"\")","v":0},null,null,{"$f":"IF('autres surfaces'!B54=\"maison\",'autres surfaces'!E54,\"\")","v":""},null,null,null,null,null,{"$f":"IF('autres surfaces'!B54=\"maison\",'autres surfaces'!H54,\"\")","v":""},null,null,null,{"$f":"IF('autres surfaces'!B54=\"maison\",'autres surfaces'!G54,\"\")","v":""}]
[null,null,{"$f":"IF('autres surfaces'!B55=\"maison\",'autres surfaces'!C55,\"\")","v":""},null,null,{"$f":"IF('autres surfaces'!B55=\"maison\",'autres surfaces'!E55,\"\")","v":""},null,null,null,null,null,{"$f":"IF('autres surfaces'!B55=\"maison\",'autres surfaces'!H55,\"\")","v":""},null,null,null,{"$f":"IF('autres surfaces'!B55=\"maison\",'autres surfaces'!G55,\"\")","v":""}]
[]
[]
[]
[]
[]
[]
[]
[null,null,null,null,null,{"$f":"'autres surfaces'!E65","v":0}]

{"sheet":"tableau recapitulatif IC","index":6,"n_rows":115,"n_cols":24,"rows_kept":115,"cut":false,"hidden":false,"merged":[[0,0,0,21],[55,2,55,3],[2,2,2,3]]}
["Unités de logements abordables"]
[]
["1. ",null,"Unités de logements",null,null,"N° identification cadastre vertical",null,"Typologie",null,"Location/Vente",null,"Hébergements",null,"Bailleur social",null,"Catégorie",null,"PMR",null,"N° cadastral\nCave",null,"N° cadastral\nemplacement(s)",null,"-> Data -> Sort & Filter -> Reapply"]
[null,null,{"$f":"'immeuble(s) collectif(s)'!AS11","v":0},null,null,{"$f":"'immeuble(s) collectif(s)'!AT11","v":0},null,{"$f":"IF('immeuble(s) collectif(s)'!AX11=\"Oui\", 'immeuble(s) collectif(s)'!BJ11&\"h\",'immeuble(s) collectif(s)'!BJ11)","v":0},null,{"$f":"'immeuble(s) collectif(s)'!BK11","v":0},null,{"$f":"'immeuble(s) collectif(s)'!AX11","v":0},null,{"$f":"'immeuble(s) collectif(s)'!AU11","v":0},null,{"$f":"'immeuble(s) collectif(s)'!AY11","v":0},null,{"$f":"'immeuble(s) collectif(s)'!AW11","v":0},null,{"$f":"'immeuble(s) collectif(s)'!DW11","v":0},null,{"$f":"CONCATENATE('immeuble(s) collectif(s)'!FA11,\" \",'immeuble(s) collectif(s)'!FE11,\" \",'immeuble(s) collectif(s)'!FI11,\" \",'immeuble(s) collectif(s)'!FM11,\" \",'immeuble(s) collectif(s)'!FQ11)","v":"    "}]
[null,null,{"$f":"'immeuble(s) collectif(s)'!AS12","v":0},null,null,{"$f":"'immeuble(s) collectif(s)'!AT12","v":0},null,{"$f":"IF('immeuble(s) collectif(s)'!AX12=\"Oui\", 'immeuble(s) collectif(s)'!BJ12&\"h\",'immeuble(s) collectif(s)'!BJ12)","v":0},null,{"$f":"'immeuble(s) collectif(s)'!BK12","v":0},null,{"$f":"'immeuble(s) collectif(s)'!AX12","v":0},null,{"$f":"'immeuble(s) collectif(s)'!AU12","v":0},null,{"$f":"'immeuble(s) collectif(s)'!AY12","v":0},null,{"$f":"'immeuble(s) collectif(s)'!AW12","v":0},null,{"$f":"'immeuble(s) collectif(s)'!DW12","v":0},null,{"$f":"CONCATENATE('immeuble(s) collectif(s)'!FA12,\" \",'immeuble(s) collectif(s)'!FE12,\" \",'immeuble(s) collectif(s)'!FI12,\" \",'immeuble(s) collectif(s)'!FM12,\" \",'immeuble(s) collectif(s)'!FQ12)","v":"    "}]
[null,null,{"$f":"'immeuble(s) collectif(s)'!AS13","v":0},null,null,{"$f":"'immeuble(s) collectif(s)'!AT13","v":0},null,{"$f":"IF('immeuble(s) collectif(s)'!AX13=\"Oui\", 'immeuble(s) collectif(s)'!BJ13&\"h\",'immeuble(s) collectif(s)'!BJ13)","v":0},null,{"$f":"'immeuble(s) collectif(s)'!BK13","v":0},null,{"$f":"'immeuble(s) collectif(s)'!AX13","v":0},null,{"$f":"'immeuble(s) collectif(s)'!AU13","v":0},null,{"$f":"'immeuble(s) collectif(s)'!AY13","v":0},null,{"$f":"'immeuble(s) collectif(s)'!AW13","v":0},null,{"$f":"'immeuble(s) collectif(s)'!DW13","v":0},null,{"$f":"CONCATENATE('immeuble(s) collectif(s)'!FA13,\" \",'immeuble(s) collectif(s)'!FE13,\" \",'immeuble(s) collectif(s)'!FI13,\" \",'immeuble(s) collectif(s)'!FM13,\" \",'immeuble(s) collectif(s)'!FQ13)","v":"    "}]
[null,null,{"$f":"'immeuble(s) collectif(s)'!AS14","v":0},null,null,{"$f":"'immeuble(s) collectif(s)'!AT14","v":0},null,{"$f":"IF('immeuble(s) collectif(s)'!AX14=\"Oui\", 'immeuble(s) collectif(s)'!BJ14&\"h\",'immeuble(s) collectif(s)'!BJ14)","v":0},null,{"$f":"'immeuble(s) collectif(s)'!BK14","v":0},null,{"$f":"'immeuble(s) collectif(s)'!AX14","v":0},null,{"$f":"'immeuble(s) collectif(s)'!AU14","v":0},null,{"$f":"'immeuble(s) collectif(s)'!AY14","v":0},null,{"$f":"'immeuble(s) collectif(s)'!AW14","v":0},null,{"$f":"'immeuble(s) collectif(s)'!DW14","v":0},null,{"$f":"CONCATENATE('immeuble(s) collectif(s)'!FA14,\" \",'immeuble(s) collectif(s)'!FE14,\" \",'immeuble(s) collectif(s)'!FI14,\" \",'immeuble(s) collectif(s)'!FM14,\" \",'immeuble(s) collectif(s)'!FQ14)","v":"    "}]
[null,null,{"$f":"'immeuble(s) collectif(s)'!AS15","v":0},null,null,{"$f":"'immeuble(s) collectif(s)'!AT15","v":0},null,{"$f":"IF('immeuble(s) collectif(s)'!AX15=\"Oui\", 'immeuble(s) collectif(s)'!BJ15&\"h\",'immeuble(s) collectif(s)'!BJ15)","v":0},null,{"$f":"'immeuble(s) collectif(s)'!BK15","v":0},null,{"$f":"'immeuble(s) collectif(s)'!AX15","v":0},null,{"$f":"'immeuble(s) collectif(s)'!AU15","v":0},null,{"$f":"'immeuble(s) collectif(s)'!AY15","v":0},null,{"$f":"'immeuble(s) collectif(s)'!AW15","v":0},null,{"$f":"'immeuble(s) collectif(s)'!DW15","v":0},null,{"$f":"CONCATENATE('immeuble(s) collectif(s)'!FA15,\" \",'immeuble(s) collectif(s)'!FE15,\" \",'immeuble(s) collectif(s)'!FI15,\" \",'immeuble(s) collectif(s)'!FM15,\" \",'immeuble(s) collectif(s)'!FQ15)","v":"    "}]
[null,null,{"$f":"'immeuble(s) collectif(s)'!AS16","v":0},null,null,{"$f":"'immeuble(s) collectif(s)'!AT16","v":0},null,{"$f":"IF('immeuble(s) collectif(s)'!AX16=\"Oui\", 'immeuble(s) collectif(s)'!BJ16&\"h\",'immeuble(s) collectif(s)'!BJ16)","v":0},null,{"$f":"'immeuble(s) collectif(s)'!BK16","v":0},null,{"$f":"'immeuble(s) collectif(s)'!AX16","v":0},null,{"$f":"'immeuble(s) collectif(s)'!AU16","v":0},null,{"$f":"'immeuble(s) collectif(s)'!AY16","v":0},null,{"$f":"'immeuble(s) collectif(s)'!AW16","v":0},null,{"$f":"'immeuble(s) collectif(s)'!DW16","v":0},null,{"$f":"CONCATENATE('immeuble(s) collectif(s)'!FA16,\" \",'immeuble(s) collectif(s)'!FE16,\" \",'immeuble(s) collectif(s)'!FI16,\" \",'immeuble(s) collectif(s)'!FM16,\" \",'immeuble(s) collectif(s)'!FQ16)","v":"    "}]
[null,null,{"$f":"'immeuble(s) collectif(s)'!AS17","v":0},null,null,{"$f":"'immeuble(s) collectif(s)'!AT17","v":0},null,{"$f":"IF('immeuble(s) collectif(s)'!AX17=\"Oui\", 'immeuble(s) collectif(s)'!BJ17&\"h\",'immeuble(s) collectif(s)'!BJ17)","v":0},null,{"$f":"'immeuble(s) collectif(s)'!BK17","v":0},null,{"$f":"'immeuble(s) collectif(s)'!AX17","v":0},null,{"$f":"'immeuble(s) collectif(s)'!AU17","v":0},null,{"$f":"'immeuble(s) collectif(s)'!AY17","v":0},null,{"$f":"'immeuble(s) collectif(s)'!AW17","v":0},null,{"$f":"'immeuble(s) collectif(s)'!DW17","v":0},null,{"$f":"CONCATENATE('immeuble(s) collectif(s)'!FA17,\" \",'immeuble(s) collectif(s)'!FE17,\" \",'immeuble(s) collectif(s)'!FI17,\" \",'immeuble(s) collectif(s)'!FM17,\" \",'immeuble(s) collectif(s)'!FQ17)","v":"    "}]
[null,null,{"$f":"'immeuble(s) collectif(s)'!AS18","v":0},null,null,{"$f":"'immeuble(s) collectif(s)'!AT18","v":0},null,{"$f":"IF('immeuble(s) collectif(s)'!AX18=\"Oui\", 'immeuble(s) collectif(s)'!BJ18&\"h\",'immeuble(s) collectif(s)'!BJ18)","v":0},null,{"$f":"'immeuble(s) collectif(s)'!BK18","v":0},null,{"$f":"'immeuble(s) collectif(s)'!AX18","v":0},null,{"$f":"'immeuble(s) collectif(s)'!AU18","v":0},null,{"$f":"'immeuble(s) collectif(s)'!AY18","v":0},null,{"$f":"'immeuble(s) collectif(s)'!AW18","v":0},null,{"$f":"'immeuble(s) collectif(s)'!DW18","v":0},null,{"$f":"CONCATENATE('immeuble(s) collectif(s)'!FA18,\" \",'immeuble(s) collectif(s)'!FE18,\" \",'immeuble(s) collectif(s)'!FI18,\" \",'immeuble(s) collectif(s)'!FM18,\" \",'immeuble(s) collectif(s)'!FQ18)","v":"    "}]
[null,null,{"$f":"'immeuble(s) collectif(s)'!AS19","v":0},null,null,{"$f":"'immeuble(s) collectif(s)'!AT19","v":0},null,{"$f":"IF('immeuble(s) collectif(s)'!AX19=\"Oui\", 'immeuble(s) collectif(s)'!BJ19&\"h\",'immeuble(s) collectif(s)'!BJ19)","v":0},null,{"$f":"'immeuble(s) collectif(s)'!BK19","v":0},null,{"$f":"'immeuble(s) collectif(s)'!AX19","v":0},null,{"$f":"'immeuble(s) collectif(s)'!AU19","v":0},null,{"$f":"'immeuble(s) collectif(s)'!AY19","v":0},null,{"$f":"'immeuble(s) collectif(s)'!AW19","v":0},null,{"$f":"'immeuble(s) collectif(s)'!DW19","v":0},null,{"$f":"CONCATENATE('immeuble(s) collectif(s)'!FA19,\" \",'immeuble(s) collectif(s)'!FE19,\" \",'immeuble(s) collectif(s)'!FI19,\" \",'immeuble(s) collectif(s)'!FM19,\" \",'immeuble(s) collectif(s)'!FQ19)","v":"    "}]
[null,null,{"$f":"'immeuble(s) collectif(s)'!AS20","v":0},null,null,{"$f":"'immeuble(s) collectif(s)'!AT20","v":0},null,{"$f":"IF('immeuble(s) collectif(s)'!AX20=\"Oui\", 'immeuble(s) collectif(s)'!BJ20&\"h\",'immeuble(s) collectif(s)'!BJ20)","v":0},null,{"$f":"'immeuble(s) collectif(s)'!BK20","v":0},null,{"$f":"'immeuble(s) collectif(s)'!AX20","v":0},null,{"$f":"'immeuble(s) collectif(s)'!AU20","v":0},null,{"$f":"'immeuble(s) collectif(s)'!AY20","v":0},null,{"$f":"'immeuble(s) collectif(s)'!AW20","v":0},null,{"$f":"'immeuble(s) collectif(s)'!DW20","v":0},null,{"$f":"CONCATENATE('immeuble(s) collectif(s)'!FA20,\" \",'immeuble(s) collectif(s)'!FE20,\" \",'immeuble(s) collectif(s)'!FI20,\" \",'immeuble(s) collectif(s)'!FM20,\" \",'immeuble(s) collectif(s)'!FQ20)","v":"    "}]
[null,null,{"$f":"'immeuble(s) collectif(s)'!AS21","v":0},null,null,{"$f":"'immeuble(s) collectif(s)'!AT21","v":0},null,{"$f":"IF('immeuble(s) collectif(s)'!AX21=\"Oui\", 'immeuble(s) collectif(s)'!BJ21&\"h\",'immeuble(s) collectif(s)'!BJ21)","v":0},null,{"$f":"'immeuble(s) collectif(s)'!BK21","v":0},null,{"$f":"'immeuble(s) collectif(s)'!AX21","v":0},null,{"$f":"'immeuble(s) collectif(s)'!AU21","v":0},null,{"$f":"'immeuble(s) collectif(s)'!AY21","v":0},null,{"$f":"'immeuble(s) collectif(s)'!AW21","v":0},null,{"$f":"'immeuble(s) collectif(s)'!DW21","v":0},null,{"$f":"CONCATENATE('immeuble(s) collectif(s)'!FA21,\" \",'immeuble(s) collectif(s)'!FE21,\" \",'immeuble(s) collectif(s)'!FI21,\" \",'immeuble(s) collectif(s)'!FM21,\" \",'immeuble(s) collectif(s)'!FQ21)","v":"    "}]
[null,null,{"$f":"'immeuble(s) collectif(s)'!AS22","v":0},null,null,{"$f":"'immeuble(s) collectif(s)'!AT22","v":0},null,{"$f":"IF('immeuble(s) collectif(s)'!AX22=\"Oui\", 'immeuble(s) collectif(s)'!BJ22&\"h\",'immeuble(s) collectif(s)'!BJ22)","v":0},null,{"$f":"'immeuble(s) collectif(s)'!BK22","v":0},null,{"$f":"'immeuble(s) collectif(s)'!AX22","v":0},null,{"$f":"'immeuble(s) collectif(s)'!AU22","v":0},null,{"$f":"'immeuble(s) collectif(s)'!AY22","v":0},null,{"$f":"'immeuble(s) collectif(s)'!AW22","v":0},null,{"$f":"'immeuble(s) collectif(s)'!DW22","v":0},null,{"$f":"CONCATENATE('immeuble(s) collectif(s)'!FA22,\" \",'immeuble(s) collectif(s)'!FE22,\" \",'immeuble(s) collectif(s)'!FI22,\" \",'immeuble(s) collectif(s)'!FM22,\" \",'immeuble(s) collectif(s)'!FQ22)","v":"    "}]
[null,null,{"$f":"'immeuble(s) collectif(s)'!AS23","v":0},null,null,{"$f":"'immeuble(s) collectif(s)'!AT23","v":0},null,{"$f":"IF('immeuble(s) collectif(s)'!AX23=\"Oui\", 'immeuble(s) collectif(s)'!BJ23&\"h\",'immeuble(s) collectif(s)'!BJ23)","v":0},null,{"$f":"'immeuble(s) collectif(s)'!BK23","v":0},null,{"$f":"'immeuble(s) collectif(s)'!AX23","v":0},null,{"$f":"'immeuble(s) collectif(s)'!AU23","v":0},null,{"$f":"'immeuble(s) collectif(s)'!AY23","v":0},null,{"$f":"'immeuble(s) collectif(s)'!AW23","v":0},null,{"$f":"'immeuble(s) collectif(s)'!DW23","v":0},null,{"$f":"CONCATENATE('immeuble(s) collectif(s)'!FA23,\" \",'immeuble(s) collectif(s)'!FE23,\" \",'immeuble(s) collectif(s)'!FI23,\" \",'immeuble(s) collectif(s)'!FM23,\" \",'immeuble(s) collectif(s)'!FQ23)","v":"    "}]
[null,null,{"$f":"'immeuble(s) collectif(s)'!AS24","v":0},null,null,{"$f":"'immeuble(s) collectif(s)'!AT24","v":0},null,{"$f":"IF('immeuble(s) collectif(s)'!AX24=\"Oui\", 'immeuble(s) collectif(s)'!BJ24&\"h\",'immeuble(s) collectif(s)'!BJ24)","v":0},null,{"$f":"'immeuble(s) collectif(s)'!BK24","v":0},null,{"$f":"'immeuble(s) collectif(s)'!AX24","v":0},null,{"$f":"'immeuble(s) collectif(s)'!AU24","v":0},null,{"$f":"'immeuble(s) collectif(s)'!AY24","v":0},null,{"$f":"'immeuble(s) collectif(s)'!AW24","v":0},null,{"$f":"'immeuble(s) collectif(s)'!DW24","v":0},null,{"$f":"CONCATENATE('immeuble(s) collectif(s)'!FA24,\" \",'immeuble(s) collectif(s)'!FE24,\" \",'immeuble(s) collectif(s)'!FI24,\" \",'immeuble(s) collectif(s)'!FM24,\" \",'immeuble(s) collectif(s)'!FQ24)","v":"    "}]
[null,null,{"$f":"'immeuble(s) collectif(s)'!AS25","v":0},null,null,{"$f":"'immeuble(s) collectif(s)'!AT25","v":0},null,{"$f":"IF('immeuble(s) collectif(s)'!AX25=\"Oui\", 'immeuble(s) collectif(s)'!BJ25&\"h\",'immeuble(s) collectif(s)'!BJ25)","v":0},null,{"$f":"'immeuble(s) collectif(s)'!BK25","v":0},null,{"$f":"'immeuble(s) collectif(s)'!AX25","v":0},null,{"$f":"'immeuble(s) collectif(s)'!AU25","v":0},null,{"$f":"'immeuble(s) collectif(s)'!AY25","v":0},null,{"$f":"'immeuble(s) collectif(s)'!AW25","v":0},null,{"$f":"'immeuble(s) collectif(s)'!DW25","v":0},null,{"$f":"CONCATENATE('immeuble(s) collectif(s)'!FA25,\" \",'immeuble(s) collectif(s)'!FE25,\" \",'immeuble(s) collectif(s)'!FI25,\" \",'immeuble(s) collectif(s)'!FM25,\" \",'immeuble(s) collectif(s)'!FQ25)","v":"    "}]
[null,null,{"$f":"'immeuble(s) collectif(s)'!AS26","v":0},null,null,{"$f":"'immeuble(s) collectif(s)'!AT26","v":0},null,{"$f":"IF('immeuble(s) collectif(s)'!AX26=\"Oui\", 'immeuble(s) collectif(s)'!BJ26&\"h\",'immeuble(s) collectif(s)'!BJ26)","v":0},null,{"$f":"'immeuble(s) collectif(s)'!BK26","v":0},null,{"$f":"'immeuble(s) collectif(s)'!AX26","v":0},null,{"$f":"'immeuble(s) collectif(s)'!AU26","v":0},null,{"$f":"'immeuble(s) collectif(s)'!AY26","v":0},null,{"$f":"'immeuble(s) collectif(s)'!AW26","v":0},null,{"$f":"'immeuble(s) collectif(s)'!DW26","v":0},null,{"$f":"CONCATENATE('immeuble(s) collectif(s)'!FA26,\" \",'immeuble(s) collectif(s)'!FE26,\" \",'immeuble(s) collectif(s)'!FI26,\" \",'immeuble(s) collectif(s)'!FM26,\" \",'immeuble(s) collectif(s)'!FQ26)","v":"    "}]
[null,null,{"$f":"'immeuble(s) collectif(s)'!AS27","v":0},null,null,{"$f":"'immeuble(s) collectif(s)'!AT27","v":0},null,{"$f":"IF('immeuble(s) collectif(s)'!AX27=\"Oui\", 'immeuble(s) collectif(s)'!BJ27&\"h\",'immeuble(s) collectif(s)'!BJ27)","v":0},null,{"$f":"'immeuble(s) collectif(s)'!BK27","v":0},null,{"$f":"'immeuble(s) collectif(s)'!AX27","v":0},null,{"$f":"'immeuble(s) collectif(s)'!AU27","v":0},null,{"$f":"'immeuble(s) collectif(s)'!AY27","v":0},null,{"$f":"'immeuble(s) collectif(s)'!AW27","v":0},null,{"$f":"'immeuble(s) collectif(s)'!DW27","v":0},null,{"$f":"CONCATENATE('immeuble(s) collectif(s)'!FA27,\" \",'immeuble(s) collectif(s)'!FE27,\" \",'immeuble(s) collectif(s)'!FI27,\" \",'immeuble(s) collectif(s)'!FM27,\" \",'immeuble(s) collectif(s)'!FQ27)","v":"    "}]
[null,null,{"$f":"'immeuble(s) collectif(s)'!AS28","v":0},null,null,{"$f":"'immeuble(s) collectif(s)'!AT28","v":0},null,{"$f":"IF('immeuble(s) collectif(s)'!AX28=\"Oui\", 'immeuble(s) collectif(s)'!BJ28&\"h\",'immeuble(s) collectif(s)'!BJ28)","v":0},null,{"$f":"'immeuble(s) collectif(s)'!BK28","v":0},null,{"$f":"'immeuble(s) collectif(s)'!AX28","v":0},null,{"$f":"'immeuble(s) collectif(s)'!AU28","v":0},null,{"$f":"'immeuble(s) collectif(s)'!AY28","v":0},null,{"$f":"'immeuble(s) collectif(s)'!AW28","v":0},null,{"$f":"'immeuble(s) collectif(s)'!DW28","v":0},null,{"$f":"CONCATENATE('immeuble(s) collectif(s)'!FA28,\" \",'immeuble(s) collectif(s)'!FE28,\" \",'immeuble(s) collectif(s)'!FI28,\" \",'immeuble(s) collectif(s)'!FM28,\" \",'immeuble(s) collectif(s)'!FQ28)","v":"    "}]
[null,null,{"$f":"'immeuble(s) collectif(s)'!AS29","v":0},null,null,{"$f":"'immeuble(s) collectif(s)'!AT29","v":0},null,{"$f":"IF('immeuble(s) collectif(s)'!AX29=\"Oui\", 'immeuble(s) collectif(s)'!BJ29&\"h\",'immeuble(s) collectif(s)'!BJ29)","v":0},null,{"$f":"'immeuble(s) collectif(s)'!BK29","v":0},null,{"$f":"'immeuble(s) collectif(s)'!AX29","v":0},null,{"$f":"'immeuble(s) collectif(s)'!AU29","v":0},null,{"$f":"'immeuble(s) collectif(s)'!AY29","v":0},null,{"$f":"'immeuble(s) collectif(s)'!AW29","v":0},null,{"$f":"'immeuble(s) collectif(s)'!DW29","v":0},null,{"$f":"CONCATENATE('immeuble(s) collectif(s)'!FA29,\" \",'immeuble(s) collectif(s)'!FE29,\" \",'immeuble(s) collectif(s)'!FI29,\" \",'immeuble(s) collectif(s)'!FM29,\" \",'immeuble(s) collectif(s)'!FQ29)","v":"    "}]
[null,null,{"$f":"'immeuble(s) collectif(s)'!AS30","v":0},null,null,{"$f":"'immeuble(s) collectif(s)'!AT30","v":0},null,{"$f":"IF('immeuble(s) collectif(s)'!AX30=\"Oui\", 'immeuble(s) collectif(s)'!BJ30&\"h\",'immeuble(s) collectif(s)'!BJ30)","v":0},null,{"$f":"'immeuble(s) collectif(s)'!BK30","v":0},null,{"$f":"'immeuble(s) collectif(s)'!AX30","v":0},null,{"$f":"'immeuble(s) collectif(s)'!AU30","v":0},null,{"$f":"'immeuble(s) collectif(s)'!AY30","v":0},null,{"$f":"'immeuble(s) collectif(s)'!AW30","v":0},null,{"$f":"'immeuble(s) collectif(s)'!DW30","v":0},null,{"$f":"CONCATENATE('immeuble(s) collectif(s)'!FA30,\" \",'immeuble(s) collectif(s)'!FE30,\" \",'immeuble(s) collectif(s)'!FI30,\" \",'immeuble(s) collectif(s)'!FM30,\" \",'immeuble(s) collectif(s)'!FQ30)","v":"    "}]
[null,null,{"$f":"'immeuble(s) collectif(s)'!AS31","v":0},null,null,{"$f":"'immeuble(s) collectif(s)'!AT31","v":0},null,{"$f":"IF('immeuble(s) collectif(s)'!AX31=\"Oui\", 'immeuble(s) collectif(s)'!BJ31&\"h\",'immeuble(s) collectif(s)'!BJ31)","v":0},null,{"$f":"'immeuble(s) collectif(s)'!BK31","v":0},null,{"$f":"'immeuble(s) collectif(s)'!AX31","v":0},null,{"$f":"'immeuble(s) collectif(s)'!AU31","v":0},null,{"$f":"'immeuble(s) collectif(s)'!AY31","v":0},null,{"$f":"'immeuble(s) collectif(s)'!AW31","v":0},null,{"$f":"'immeuble(s) collectif(s)'!DW31","v":0},null,{"$f":"CONCATENATE('immeuble(s) collectif(s)'!FA31,\" \",'immeuble(s) collectif(s)'!FE31,\" \",'immeuble(s) collectif(s)'!FI31,\" \",'immeuble(s) collectif(s)'!FM31,\" \",'immeuble(s) collectif(s)'!FQ31)","v":"    "}]
[null,null,{"$f":"'immeuble(s) collectif(s)'!AS32","v":0},null,null,{"$f":"'immeuble(s) collectif(s)'!AT32","v":0},null,{"$f":"IF('immeuble(s) collectif(s)'!AX32=\"Oui\", 'immeuble(s) collectif(s)'!BJ32&\"h\",'immeuble(s) collectif(s)'!BJ32)","v":0},null,{"$f":"'immeuble(s) collectif(s)'!BK32","v":0},null,{"$f":"'immeuble(s) collectif(s)'!AX32","v":0},null,{"$f":"'immeuble(s) collectif(s)'!AU32","v":0},null,{"$f":"'immeuble(s) collectif(s)'!AY32","v":0},null,{"$f":"'immeuble(s) collectif(s)'!AW32","v":0},null,{"$f":"'immeuble(s) collectif(s)'!DW32","v":0},null,{"$f":"CONCATENATE('immeuble(s) collectif(s)'!FA32,\" \",'immeuble(s) collectif(s)'!FE32,\" \",'immeuble(s) collectif(s)'!FI32,\" \",'immeuble(s) collectif(s)'!FM32,\" \",'immeuble(s) collectif(s)'!FQ32)","v":"    "}]
[null,null,{"$f":"'immeuble(s) collectif(s)'!AS33","v":0},null,null,{"$f":"'immeuble(s) collectif(s)'!AT33","v":0},null,{"$f":"IF('immeuble(s) collectif(s)'!AX33=\"Oui\", 'immeuble(s) collectif(s)'!BJ33&\"h\",'immeuble(s) collectif(s)'!BJ33)","v":0},null,{"$f":"'immeuble(s) collectif(s)'!BK33","v":0},null,{"$f":"'immeuble(s) collectif(s)'!AX33","v":0},null,{"$f":"'immeuble(s) collectif(s)'!AU33","v":0},null,{"$f":"'immeuble(s) collectif(s)'!AY33","v":0},null,{"$f":"'immeuble(s) collectif(s)'!AW33","v":0},null,{"$f":"'immeuble(s) collectif(s)'!DW33","v":0},null,{"$f":"CONCATENATE('immeuble(s) collectif(s)'!FA33,\" \",'immeuble(s) collectif(s)'!FE33,\" \",'immeuble(s) collectif(s)'!FI33,\" \",'immeuble(s) collectif(s)'!FM33,\" \",'immeuble(s) collectif(s)'!FQ33)","v":"    "}]
[null,null,{"$f":"'immeuble(s) collectif(s)'!AS34","v":0},null,null,{"$f":"'immeuble(s) collectif(s)'!AT34","v":0},null,{"$f":"IF('immeuble(s) collectif(s)'!AX34=\"Oui\", 'immeuble(s) collectif(s)'!BJ34&\"h\",'immeuble(s) collectif(s)'!BJ34)","v":0},null,{"$f":"'immeuble(s) collectif(s)'!BK34","v":0},null,{"$f":"'immeuble(s) collectif(s)'!AX34","v":0},null,{"$f":"'immeuble(s) collectif(s)'!AU34","v":0},null,{"$f":"'immeuble(s) collectif(s)'!AY34","v":0},null,{"$f":"'immeuble(s) collectif(s)'!AW34","v":0},null,{"$f":"'immeuble(s) collectif(s)'!DW34","v":0},null,{"$f":"CONCATENATE('immeuble(s) collectif(s)'!FA34,\" \",'immeuble(s) collectif(s)'!FE34,\" \",'immeuble(s) collectif(s)'!FI34,\" \",'immeuble(s) collectif(s)'!FM34,\" \",'immeuble(s) collectif(s)'!FQ34)","v":"    "}]
[null,null,{"$f":"'immeuble(s) collectif(s)'!AS35","v":0},null,null,{"$f":"'immeuble(s) collectif(s)'!AT35","v":0},null,{"$f":"IF('immeuble(s) collectif(s)'!AX35=\"Oui\", 'immeuble(s) collectif(s)'!BJ35&\"h\",'immeuble(s) collectif(s)'!BJ35)","v":0},null,{"$f":"'immeuble(s) collectif(s)'!BK35","v":0},null,{"$f":"'immeuble(s) collectif(s)'!AX35","v":0},null,{"$f":"'immeuble(s) collectif(s)'!AU35","v":0},null,{"$f":"'immeuble(s) collectif(s)'!AY35","v":0},null,{"$f":"'immeuble(s) collectif(s)'!AW35","v":0},null,{"$f":"'immeuble(s) collectif(s)'!DW35","v":0},null,{"$f":"CONCATENATE('immeuble(s) collectif(s)'!FA35,\" \",'immeuble(s) collectif(s)'!FE35,\" \",'immeuble(s) collectif(s)'!FI35,\" \",'immeuble(s) collectif(s)'!FM35,\" \",'immeuble(s) collectif(s)'!FQ35)","v":"    "}]
[null,null,{"$f":"'immeuble(s) collectif(s)'!AS36","v":0},null,null,{"$f":"'immeuble(s) collectif(s)'!AT36","v":0},null,{"$f":"IF('immeuble(s) collectif(s)'!AX36=\"Oui\", 'immeuble(s) collectif(s)'!BJ36&\"h\",'immeuble(s) collectif(s)'!BJ36)","v":0},null,{"$f":"'immeuble(s) collectif(s)'!BK36","v":0},null,{"$f":"'immeuble(s) collectif(s)'!AX36","v":0},null,{"$f":"'immeuble(s) collectif(s)'!AU36","v":0},null,{"$f":"'immeuble(s) collectif(s)'!AY36","v":0},null,{"$f":"'immeuble(s) collectif(s)'!AW36","v":0},null,{"$f":"'immeuble(s) collectif(s)'!DW36","v":0},null,{"$f":"CONCATENATE('immeuble(s) collectif(s)'!FA36,\" \",'immeuble(s) collectif(s)'!FE36,\" \",'immeuble(s) collectif(s)'!FI36,\" \",'immeuble(s) collectif(s)'!FM36,\" \",'immeuble(s) collectif(s)'!FQ36)","v":"    "}]
[null,null,{"$f":"'immeuble(s) collectif(s)'!AS37","v":0},null,null,{"$f":"'immeuble(s) collectif(s)'!AT37","v":0},null,{"$f":"IF('immeuble(s) collectif(s)'!AX37=\"Oui\", 'immeuble(s) collectif(s)'!BJ37&\"h\",'immeuble(s) collectif(s)'!BJ37)","v":0},null,{"$f":"'immeuble(s) collectif(s)'!BK37","v":0},null,{"$f":"'immeuble(s) collectif(s)'!AX37","v":0},null,{"$f":"'immeuble(s) collectif(s)'!AU37","v":0},null,{"$f":"'immeuble(s) collectif(s)'!AY37","v":0},null,{"$f":"'immeuble(s) collectif(s)'!AW37","v":0},null,{"$f":"'immeuble(s) collectif(s)'!DW37","v":0},null,{"$f":"CONCATENATE('immeuble(s) collectif(s)'!FA37,\" \",'immeuble(s) collectif(s)'!FE37,\" \",'immeuble(s) collectif(s)'!FI37,\" \",'immeuble(s) collectif(s)'!FM37,\" \",'immeuble(s) collectif(s)'!FQ37)","v":"    "}]
[null,null,{"$f":"'immeuble(s) collectif(s)'!AS38","v":0},null,null,{"$f":"'immeuble(s) collectif(s)'!AT38","v":0},null,{"$f":"IF('immeuble(s) collectif(s)'!AX38=\"Oui\", 'immeuble(s) collectif(s)'!BJ38&\"h\",'immeuble(s) collectif(s)'!BJ38)","v":0},null,{"$f":"'immeuble(s) collectif(s)'!BK38","v":0},null,{"$f":"'immeuble(s) collectif(s)'!AX38","v":0},null,{"$f":"'immeuble(s) collectif(s)'!AU38","v":0},null,{"$f":"'immeuble(s) collectif(s)'!AY38","v":0},null,{"$f":"'immeuble(s) collectif(s)'!AW38","v":0},null,{"$f":"'immeuble(s) collectif(s)'!DW38","v":0},null,{"$f":"CONCATENATE('immeuble(s) collectif(s)'!FA38,\" \",'immeuble(s) collectif(s)'!FE38,\" \",'immeuble(s) collectif(s)'!FI38,\" \",'immeuble(s) collectif(s)'!FM38,\" \",'immeuble(s) collectif(s)'!FQ38)","v":"    "}]
[null,null,{"$f":"'immeuble(s) collectif(s)'!AS39","v":0},null,null,{"$f":"'immeuble(s) collectif(s)'!AT39","v":0},null,{"$f":"IF('immeuble(s) collectif(s)'!AX39=\"Oui\", 'immeuble(s) collectif(s)'!BJ39&\"h\",'immeuble(s) collectif(s)'!BJ39)","v":0},null,{"$f":"'immeuble(s) collectif(s)'!BK39","v":0},null,{"$f":"'immeuble(s) collectif(s)'!AX39","v":0},null,{"$f":"'immeuble(s) collectif(s)'!AU39","v":0},null,{"$f":"'immeuble(s) collectif(s)'!AY39","v":0},null,{"$f":"'immeuble(s) collectif(s)'!AW39","v":0},null,{"$f":"'immeuble(s) collectif(s)'!DW39","v":0},null,{"$f":"CONCATENATE('immeuble(s) collectif(s)'!FA39,\" \",'immeuble(s) collectif(s)'!FE39,\" \",'immeuble(s) collectif(s)'!FI39,\" \",'immeuble(s) collectif(s)'!FM39,\" \",'immeuble(s) collectif(s)'!FQ39)","v":"    "}]
[null,null,{"$f":"'immeuble(s) collectif(s)'!AS40","v":0},null,null,{"$f":"'immeuble(s) collectif(s)'!AT40","v":0},null,{"$f":"IF('immeuble(s) collectif(s)'!AX40=\"Oui\", 'immeuble(s) collectif(s)'!BJ40&\"h\",'immeuble(s) collectif(s)'!BJ40)","v":0},null,{"$f":"'immeuble(s) collectif(s)'!BK40","v":0},null,{"$f":"'immeuble(s) collectif(s)'!AX40","v":0},null,{"$f":"'immeuble(s) collectif(s)'!AU40","v":0},null,{"$f":"'immeuble(s) collectif(s)'!AY40","v":0},null,{"$f":"'immeuble(s) collectif(s)'!AW40","v":0},null,{"$f":"'immeuble(s) collectif(s)'!DW40","v":0},null,{"$f":"CONCATENATE('immeuble(s) collectif(s)'!FA40,\" \",'immeuble(s) collectif(s)'!FE40,\" \",'immeuble(s) collectif(s)'!FI40,\" \",'immeuble(s) collectif(s)'!FM40,\" \",'immeuble(s) collectif(s)'!FQ40)","v":"    "}]
[null,null,{"$f":"'immeuble(s) collectif(s)'!AS41","v":0},null,null,{"$f":"'immeuble(s) collectif(s)'!AT41","v":0},null,{"$f":"IF('immeuble(s) collectif(s)'!AX41=\"Oui\", 'immeuble(s) collectif(s)'!BJ41&\"h\",'immeuble(s) collectif(s)'!BJ41)","v":0},null,{"$f":"'immeuble(s) collectif(s)'!BK41","v":0},null,{"$f":"'immeuble(s) collectif(s)'!AX41","v":0},null,{"$f":"'immeuble(s) collectif(s)'!AU41","v":0},null,{"$f":"'immeuble(s) collectif(s)'!AY41","v":0},null,{"$f":"'immeuble(s) collectif(s)'!AW41","v":0},null,{"$f":"'immeuble(s) collectif(s)'!DW41","v":0},null,{"$f":"CONCATENATE('immeuble(s) collectif(s)'!FA41,\" \",'immeuble(s) collectif(s)'!FE41,\" \",'immeuble(s) collectif(s)'!FI41,\" \",'immeuble(s) collectif(s)'!FM41,\" \",'immeuble(s) collectif(s)'!FQ41)","v":"    "}]
[null,null,{"$f":"'immeuble(s) collectif(s)'!AS42","v":0},null,null,{"$f":"'immeuble(s) collectif(s)'!AT42","v":0},null,{"$f":"IF('immeuble(s) collectif(s)'!AX42=\"Oui\", 'immeuble(s) collectif(s)'!BJ42&\"h\",'immeuble(s) collectif(s)'!BJ42)","v":0},null,{"$f":"'immeuble(s) collectif(s)'!BK42","v":0},null,{"$f":"'immeuble(s) collectif(s)'!AX42","v":0},null,{"$f":"'immeuble(s) collectif(s)'!AU42","v":0},null,{"$f":"'immeuble(s) collectif(s)'!AY42","v":0},null,{"$f":"'immeuble(s) collectif(s)'!AW42","v":0},null,{"$f":"'immeuble(s) collectif(s)'!DW42","v":0},null,{"$f":"CONCATENATE('immeuble(s) collectif(s)'!FA42,\" \",'immeuble(s) collectif(s)'!FE42,\" \",'immeuble(s) collectif(s)'!FI42,\" \",'immeuble(s) collectif(s)'!FM42,\" \",'immeuble(s) collectif(s)'!FQ42)","v":"    "}]
[null,null,{"$f":"'immeuble(s) collectif(s)'!AS43","v":0},null,null,{"$f":"'immeuble(s) collectif(s)'!AT43","v":0},null,{"$f":"IF('immeuble(s) collectif(s)'!AX43=\"Oui\", 'immeuble(s) collectif(s)'!BJ43&\"h\",'immeuble(s) collectif(s)'!BJ43)","v":0},null,{"$f":"'immeuble(s) collectif(s)'!BK43","v":0},null,{"$f":"'immeuble(s) collectif(s)'!AX43","v":0},null,{"$f":"'immeuble(s) collectif(s)'!AU43","v":0},null,{"$f":"'immeuble(s) collectif(s)'!AY43","v":0},null,{"$f":"'immeuble(s) collectif(s)'!AW43","v":0},null,{"$f":"'immeuble(s) collectif(s)'!DW43","v":0},null,{"$f":"CONCATENATE('immeuble(s) collectif(s)'!FA43,\" \",'immeuble(s) collectif(s)'!FE43,\" \",'immeuble(s) collectif(s)'!FI43,\" \",'immeuble(s) collectif(s)'!FM43,\" \",'immeuble(s) collectif(s)'!FQ43)","v":"    "}]
[null,null,{"$f":"'immeuble(s) collectif(s)'!AS44","v":0},null,null,{"$f":"'immeuble(s) collectif(s)'!AT44","v":0},null,{"$f":"IF('immeuble(s) collectif(s)'!AX44=\"Oui\", 'immeuble(s) collectif(s)'!BJ44&\"h\",'immeuble(s) collectif(s)'!BJ44)","v":0},null,{"$f":"'immeuble(s) collectif(s)'!BK44","v":0},null,{"$f":"'immeuble(s) collectif(s)'!AX44","v":0},null,{"$f":"'immeuble(s) collectif(s)'!AU44","v":0},null,{"$f":"'immeuble(s) collectif(s)'!AY44","v":0},null,{"$f":"'immeuble(s) collectif(s)'!AW44","v":0},null,{"$f":"'immeuble(s) collectif(s)'!DW44","v":0},null,{"$f":"CONCATENATE('immeuble(s) collectif(s)'!FA44,\" \",'immeuble(s) collectif(s)'!FE44,\" \",'immeuble(s) collectif(s)'!FI44,\" \",'immeuble(s) collectif(s)'!FM44,\" \",'immeuble(s) collectif(s)'!FQ44)","v":"    "}]
[null,null,{"$f":"'immeuble(s) collectif(s)'!AS45","v":0},null,null,{"$f":"'immeuble(s) collectif(s)'!AT45","v":0},null,{"$f":"IF('immeuble(s) collectif(s)'!AX45=\"Oui\", 'immeuble(s) collectif(s)'!BJ45&\"h\",'immeuble(s) collectif(s)'!BJ45)","v":0},null,{"$f":"'immeuble(s) collectif(s)'!BK45","v":0},null,{"$f":"'immeuble(s) collectif(s)'!AX45","v":0},null,{"$f":"'immeuble(s) collectif(s)'!AU45","v":0},null,{"$f":"'immeuble(s) collectif(s)'!AY45","v":0},null,{"$f":"'immeuble(s) collectif(s)'!AW45","v":0},null,{"$f":"'immeuble(s) collectif(s)'!DW45","v":0},null,{"$f":"CONCATENATE('immeuble(s) collectif(s)'!FA45,\" \",'immeuble(s) collectif(s)'!FE45,\" \",'immeuble(s) collectif(s)'!FI45,\" \",'immeuble(s) collectif(s)'!FM45,\" \",'immeuble(s) collectif(s)'!FQ45)","v":"    "}]
[null,null,{"$f":"'immeuble(s) collectif(s)'!AS46","v":0},null,null,{"$f":"'immeuble(s) collectif(s)'!AT46","v":0},null,{"$f":"IF('immeuble(s) collectif(s)'!AX46=\"Oui\", 'immeuble(s) collectif(s)'!BJ46&\"h\",'immeuble(s) collectif(s)'!BJ46)","v":0},null,{"$f":"'immeuble(s) collectif(s)'!BK46","v":0},null,{"$f":"'immeuble(s) collectif(s)'!AX46","v":0},null,{"$f":"'immeuble(s) collectif(s)'!AU46","v":0},null,{"$f":"'immeuble(s) collectif(s)'!AY46","v":0},null,{"$f":"'immeuble(s) collectif(s)'!AW46","v":0},null,{"$f":"'immeuble(s) collectif(s)'!DW46","v":0},null,{"$f":"CONCATENATE('immeuble(s) collectif(s)'!FA46,\" \",'immeuble(s) collectif(s)'!FE46,\" \",'immeuble(s) collectif(s)'!FI46,\" \",'immeuble(s) collectif(s)'!FM46,\" \",'immeuble(s) collectif(s)'!FQ46)","v":"    "}]
[null,null,{"$f":"'immeuble(s) collectif(s)'!AS47","v":0},null,null,{"$f":"'immeuble(s) collectif(s)'!AT47","v":0},null,{"$f":"IF('immeuble(s) collectif(s)'!AX47=\"Oui\", 'immeuble(s) collectif(s)'!BJ47&\"h\",'immeuble(s) collectif(s)'!BJ47)","v":0},null,{"$f":"'immeuble(s) collectif(s)'!BK47","v":0},null,{"$f":"'immeuble(s) collectif(s)'!AX47","v":0},null,{"$f":"'immeuble(s) collectif(s)'!AU47","v":0},null,{"$f":"'immeuble(s) collectif(s)'!AY47","v":0},null,{"$f":"'immeuble(s) collectif(s)'!AW47","v":0},null,{"$f":"'immeuble(s) collectif(s)'!DW47","v":0},null,{"$f":"CONCATENATE('immeuble(s) collectif(s)'!FA47,\" \",'immeuble(s) collectif(s)'!FE47,\" \",'immeuble(s) collectif(s)'!FI47,\" \",'immeuble(s) collectif(s)'!FM47,\" \",'immeuble(s) collectif(s)'!FQ47)","v":"    "}]
[null,null,{"$f":"'immeuble(s) collectif(s)'!AS48","v":0},null,null,{"$f":"'immeuble(s) collectif(s)'!AT48","v":0},null,{"$f":"IF('immeuble(s) collectif(s)'!AX48=\"Oui\", 'immeuble(s) collectif(s)'!BJ48&\"h\",'immeuble(s) collectif(s)'!BJ48)","v":0},null,{"$f":"'immeuble(s) collectif(s)'!BK48","v":0},null,{"$f":"'immeuble(s) collectif(s)'!AX48","v":0},null,{"$f":"'immeuble(s) collectif(s)'!AU48","v":0},null,{"$f":"'immeuble(s) collectif(s)'!AY48","v":0},null,{"$f":"'immeuble(s) collectif(s)'!AW48","v":0},null,{"$f":"'immeuble(s) collectif(s)'!DW48","v":0},null,{"$f":"CONCATENATE('immeuble(s) collectif(s)'!FA48,\" \",'immeuble(s) collectif(s)'!FE48,\" \",'immeuble(s) collectif(s)'!FI48,\" \",'immeuble(s) collectif(s)'!FM48,\" \",'immeuble(s) collectif(s)'!FQ48)","v":"    "}]
[null,null,{"$f":"'immeuble(s) collectif(s)'!AS49","v":0},null,null,{"$f":"'immeuble(s) collectif(s)'!AT49","v":0},null,{"$f":"IF('immeuble(s) collectif(s)'!AX49=\"Oui\", 'immeuble(s) collectif(s)'!BJ49&\"h\",'immeuble(s) collectif(s)'!BJ49)","v":0},null,{"$f":"'immeuble(s) collectif(s)'!BK49","v":0},null,{"$f":"'immeuble(s) collectif(s)'!AX49","v":0},null,{"$f":"'immeuble(s) collectif(s)'!AU49","v":0},null,{"$f":"'immeuble(s) collectif(s)'!AY49","v":0},null,{"$f":"'immeuble(s) collectif(s)'!AW49","v":0},null,{"$f":"'immeuble(s) collectif(s)'!DW49","v":0},null,{"$f":"CONCATENATE('immeuble(s) collectif(s)'!FA49,\" \",'immeuble(s) collectif(s)'!FE49,\" \",'immeuble(s) collectif(s)'!FI49,\" \",'immeuble(s) collectif(s)'!FM49,\" \",'immeuble(s) collectif(s)'!FQ49)","v":"    "}]
[null,null,{"$f":"'immeuble(s) collectif(s)'!AS50","v":0},null,null,{"$f":"'immeuble(s) collectif(s)'!AT50","v":0},null,{"$f":"IF('immeuble(s) collectif(s)'!AX50=\"Oui\", 'immeuble(s) collectif(s)'!BJ50&\"h\",'immeuble(s) collectif(s)'!BJ50)","v":0},null,{"$f":"'immeuble(s) collectif(s)'!BK50","v":0},null,{"$f":"'immeuble(s) collectif(s)'!AX50","v":0},null,{"$f":"'immeuble(s) collectif(s)'!AU50","v":0},null,{"$f":"'immeuble(s) collectif(s)'!AY50","v":0},null,{"$f":"'immeuble(s) collectif(s)'!AW50","v":0},null,{"$f":"'immeuble(s) collectif(s)'!DW50","v":0},null,{"$f":"CONCATENATE('immeuble(s) collectif(s)'!FA50,\" \",'immeuble(s) collectif(s)'!FE50,\" \",'immeuble(s) collectif(s)'!FI50,\" \",'immeuble(s) collectif(s)'!FM50,\" \",'immeuble(s) collectif(s)'!FQ50)","v":"    "}]
[null,null,{"$f":"'immeuble(s) collectif(s)'!AS51","v":0},null,null,{"$f":"'immeuble(s) collectif(s)'!AT51","v":0},null,{"$f":"IF('immeuble(s) collectif(s)'!AX51=\"Oui\", 'immeuble(s) collectif(s)'!BJ51&\"h\",'immeuble(s) collectif(s)'!BJ51)","v":0},null,{"$f":"'immeuble(s) collectif(s)'!BK51","v":0},null,{"$f":"'immeuble(s) collectif(s)'!AX51","v":0},null,{"$f":"'immeuble(s) collectif(s)'!AU51","v":0},null,{"$f":"'immeuble(s) collectif(s)'!AY51","v":0},null,{"$f":"'immeuble(s) collectif(s)'!AW51","v":0},null,{"$f":"'immeuble(s) collectif(s)'!DW51","v":0},null,{"$f":"CONCATENATE('immeuble(s) collectif(s)'!FA51,\" \",'immeuble(s) collectif(s)'!FE51,\" \",'immeuble(s) collectif(s)'!FI51,\" \",'immeuble(s) collectif(s)'!FM51,\" \",'immeuble(s) collectif(s)'!FQ51)","v":"    "}]
[null,null,{"$f":"'immeuble(s) collectif(s)'!AS52","v":0},null,null,{"$f":"'immeuble(s) collectif(s)'!AT52","v":0},null,{"$f":"IF('immeuble(s) collectif(s)'!AX52=\"Oui\", 'immeuble(s) collectif(s)'!BJ52&\"h\",'immeuble(s) collectif(s)'!BJ52)","v":0},null,{"$f":"'immeuble(s) collectif(s)'!BK52","v":0},null,{"$f":"'immeuble(s) collectif(s)'!AX52","v":0},null,{"$f":"'immeuble(s) collectif(s)'!AU52","v":0},null,{"$f":"'immeuble(s) collectif(s)'!AY52","v":0},null,{"$f":"'immeuble(s) collectif(s)'!AW52","v":0},null,{"$f":"'immeuble(s) collectif(s)'!DW52","v":0},null,{"$f":"CONCATENATE('immeuble(s) collectif(s)'!FA52,\" \",'immeuble(s) collectif(s)'!FE52,\" \",'immeuble(s) collectif(s)'!FI52,\" \",'immeuble(s) collectif(s)'!FM52,\" \",'immeuble(s) collectif(s)'!FQ52)","v":"    "}]
[null,null,{"$f":"'immeuble(s) collectif(s)'!AS53","v":0},null,null,{"$f":"'immeuble(s) collectif(s)'!AT53","v":0},null,{"$f":"IF('immeuble(s) collectif(s)'!AX53=\"Oui\", 'immeuble(s) collectif(s)'!BJ53&\"h\",'immeuble(s) collectif(s)'!BJ53)","v":0},null,{"$f":"'immeuble(s) collectif(s)'!BK53","v":0},null,{"$f":"'immeuble(s) collectif(s)'!AX53","v":0},null,{"$f":"'immeuble(s) collectif(s)'!AU53","v":0},null,{"$f":"'immeuble(s) collectif(s)'!AY53","v":0},null,{"$f":"'immeuble(s) collectif(s)'!AW53","v":0},null,{"$f":"'immeuble(s) collectif(s)'!DW53","v":0},null,{"$f":"CONCATENATE('immeuble(s) collectif(s)'!FA53,\" \",'immeuble(s) collectif(s)'!FE53,\" \",'immeuble(s) collectif(s)'!FI53,\" \",'immeuble(s) collectif(s)'!FM53,\" \",'immeuble(s) collectif(s)'!FQ53)","v":"    "}]
[null,null,{"$f":"'immeuble(s) collectif(s)'!AS54","v":0},null,null,{"$f":"'immeuble(s) collectif(s)'!AT54","v":0},null,{"$f":"IF('immeuble(s) collectif(s)'!AX54=\"Oui\", 'immeuble(s) collectif(s)'!BJ54&\"h\",'immeuble(s) collectif(s)'!BJ54)","v":0},null,{"$f":"'immeuble(s) collectif(s)'!BK54","v":0},null,{"$f":"'immeuble(s) collectif(s)'!AX54","v":0},null,{"$f":"'immeuble(s) collectif(s)'!AU54","v":0},null,{"$f":"'immeuble(s) collectif(s)'!AY54","v":0},null,{"$f":"'immeuble(s) collectif(s)'!AW54","v":0},null,{"$f":"'immeuble(s) collectif(s)'!DW54","v":0},null,{"$f":"CONCATENATE('immeuble(s) collectif(s)'!FA54,\" \",'immeuble(s) collectif(s)'!FE54,\" \",'immeuble(s) collectif(s)'!FI54,\" \",'immeuble(s) collectif(s)'!FM54,\" \",'immeuble(s) collectif(s)'!FQ54)","v":"    "}]
[null,null,{"$f":"'immeuble(s) collectif(s)'!AS55","v":0},null,null,{"$f":"'immeuble(s) collectif(s)'!AT55","v":0},null,{"$f":"IF('immeuble(s) collectif(s)'!AX55=\"Oui\", 'immeuble(s) collectif(s)'!BJ55&\"h\",'immeuble(s) collectif(s)'!BJ55)","v":0},null,{"$f":"'immeuble(s) collectif(s)'!BK55","v":0},null,{"$f":"'immeuble(s) collectif(s)'!AX55","v":0},null,{"$f":"'immeuble(s) collectif(s)'!AU55","v":0},null,{"$f":"'immeuble(s) collectif(s)'!AY55","v":0},null,{"$f":"'immeuble(s) collectif(s)'!AW55","v":0},null,{"$f":"'immeuble(s) collectif(s)'!DW55","v":0},null,{"$f":"CONCATENATE('immeuble(s) collectif(s)'!FA55,\" \",'immeuble(s) collectif(s)'!FE55,\" \",'immeuble(s) collectif(s)'!FI55,\" \",'immeuble(s) collectif(s)'!FM55,\" \",'immeuble(s) collectif(s)'!FQ55)","v":"    "}]
[null,null,{"$f":"'immeuble(s) collectif(s)'!AS56","v":0},null,null,{"$f":"'immeuble(s) collectif(s)'!AT56","v":0},null,{"$f":"IF('immeuble(s) collectif(s)'!AX56=\"Oui\", 'immeuble(s) collectif(s)'!BJ56&\"h\",'immeuble(s) collectif(s)'!BJ56)","v":0},null,{"$f":"'immeuble(s) collectif(s)'!BK56","v":0},null,{"$f":"'immeuble(s) collectif(s)'!AX56","v":0},null,{"$f":"'immeuble(s) collectif(s)'!AU56","v":0},null,{"$f":"'immeuble(s) collectif(s)'!AY56","v":0},null,{"$f":"'immeuble(s) collectif(s)'!AW56","v":0},null,{"$f":"'immeuble(s) collectif(s)'!DW56","v":0},null,{"$f":"CONCATENATE('immeuble(s) collectif(s)'!FA56,\" \",'immeuble(s) collectif(s)'!FE56,\" \",'immeuble(s) collectif(s)'!FI56,\" \",'immeuble(s) collectif(s)'!FM56,\" \",'immeuble(s) collectif(s)'!FQ56)","v":"    "}]
[null,null,{"$f":"'immeuble(s) collectif(s)'!AS57","v":0},null,null,{"$f":"'immeuble(s) collectif(s)'!AT57","v":0},null,{"$f":"IF('immeuble(s) collectif(s)'!AX57=\"Oui\", 'immeuble(s) collectif(s)'!BJ57&\"h\",'immeuble(s) collectif(s)'!BJ57)","v":0},null,{"$f":"'immeuble(s) collectif(s)'!BK57","v":0},null,{"$f":"'immeuble(s) collectif(s)'!AX57","v":0},null,{"$f":"'immeuble(s) collectif(s)'!AU57","v":0},null,{"$f":"'immeuble(s) collectif(s)'!AY57","v":0},null,{"$f":"'immeuble(s) collectif(s)'!AW57","v":0},null,{"$f":"'immeuble(s) collectif(s)'!DW57","v":0},null,{"$f":"CONCATENATE('immeuble(s) collectif(s)'!FA57,\" \",'immeuble(s) collectif(s)'!FE57,\" \",'immeuble(s) collectif(s)'!FI57,\" \",'immeuble(s) collectif(s)'!FM57,\" \",'immeuble(s) collectif(s)'!FQ57)","v":"    "}]
[null,null,{"$f":"'immeuble(s) collectif(s)'!AS58","v":0},null,null,{"$f":"'immeuble(s) collectif(s)'!AT58","v":0},null,{"$f":"IF('immeuble(s) collectif(s)'!AX58=\"Oui\", 'immeuble(s) collectif(s)'!BJ58&\"h\",'immeuble(s) collectif(s)'!BJ58)","v":0},null,{"$f":"'immeuble(s) collectif(s)'!BK58","v":0},null,{"$f":"'immeuble(s) collectif(s)'!AX58","v":0},null,{"$f":"'immeuble(s) collectif(s)'!AU58","v":0},null,{"$f":"'immeuble(s) collectif(s)'!AY58","v":0},null,{"$f":"'immeuble(s) collectif(s)'!AW58","v":0},null,{"$f":"'immeuble(s) collectif(s)'!DW58","v":0},null,{"$f":"CONCATENATE('immeuble(s) collectif(s)'!FA58,\" \",'immeuble(s) collectif(s)'!FE58,\" \",'immeuble(s) collectif(s)'!FI58,\" \",'immeuble(s) collectif(s)'!FM58,\" \",'immeuble(s) collectif(s)'!FQ58)","v":"    "}]
[null,null,{"$f":"'immeuble(s) collectif(s)'!AS59","v":0},null,null,{"$f":"'immeuble(s) collectif(s)'!AT59","v":0},null,{"$f":"IF('immeuble(s) collectif(s)'!AX59=\"Oui\", 'immeuble(s) collectif(s)'!BJ59&\"h\",'immeuble(s) collectif(s)'!BJ59)","v":0},null,{"$f":"'immeuble(s) collectif(s)'!BK59","v":0},null,{"$f":"'immeuble(s) collectif(s)'!AX59","v":0},null,{"$f":"'immeuble(s) collectif(s)'!AU59","v":0},null,{"$f":"'immeuble(s) collectif(s)'!AY59","v":0},null,{"$f":"'immeuble(s) collectif(s)'!AW59","v":0},null,{"$f":"'immeuble(s) collectif(s)'!DW59","v":0},null,{"$f":"CONCATENATE('immeuble(s) collectif(s)'!FA59,\" \",'immeuble(s) collectif(s)'!FE59,\" \",'immeuble(s) collectif(s)'!FI59,\" \",'immeuble(s) collectif(s)'!FM59,\" \",'immeuble(s) collectif(s)'!FQ59)","v":"    "}]
[null,null,{"$f":"'immeuble(s) collectif(s)'!AS60","v":0},null,null,{"$f":"'immeuble(s) collectif(s)'!AT60","v":0},null,{"$f":"IF('immeuble(s) collectif(s)'!AX60=\"Oui\", 'immeuble(s) collectif(s)'!BJ60&\"h\",'immeuble(s) collectif(s)'!BJ60)","v":0},null,{"$f":"'immeuble(s) collectif(s)'!BK60","v":0},null,{"$f":"'immeuble(s) collectif(s)'!AX60","v":0},null,{"$f":"'immeuble(s) collectif(s)'!AU60","v":0},null,{"$f":"'immeuble(s) collectif(s)'!AY60","v":0},null,{"$f":"'immeuble(s) collectif(s)'!AW60","v":0},null,{"$f":"'immeuble(s) collectif(s)'!DW60","v":0},null,{"$f":"CONCATENATE('immeuble(s) collectif(s)'!FA60,\" \",'immeuble(s) collectif(s)'!FE60,\" \",'immeuble(s) collectif(s)'!FI60,\" \",'immeuble(s) collectif(s)'!FM60,\" \",'immeuble(s) collectif(s)'!FQ60)","v":"    "}]
[null,null,{"$f":"'immeuble(s) collectif(s)'!AS61","v":0},null,null,{"$f":"'immeuble(s) collectif(s)'!AT61","v":0},null,{"$f":"IF('immeuble(s) collectif(s)'!AX61=\"Oui\", 'immeuble(s) collectif(s)'!BJ61&\"h\",'immeuble(s) collectif(s)'!BJ61)","v":0},null,{"$f":"'immeuble(s) collectif(s)'!BK61","v":0},null,{"$f":"'immeuble(s) collectif(s)'!AX61","v":0},null,{"$f":"'immeuble(s) collectif(s)'!AU61","v":0},null,{"$f":"'immeuble(s) collectif(s)'!AY61","v":0},null,{"$f":"'immeuble(s) collectif(s)'!AW61","v":0},null,{"$f":"'immeuble(s) collectif(s)'!DW61","v":0},null,{"$f":"CONCATENATE('immeuble(s) collectif(s)'!FA61,\" \",'immeuble(s) collectif(s)'!FE61,\" \",'immeuble(s) collectif(s)'!FI61,\" \",'immeuble(s) collectif(s)'!FM61,\" \",'immeuble(s) collectif(s)'!FQ61)","v":"    "}]
[null,null,{"$f":"'immeuble(s) collectif(s)'!AS62","v":0},null,null,{"$f":"'immeuble(s) collectif(s)'!AT62","v":0},null,{"$f":"IF('immeuble(s) collectif(s)'!AX62=\"Oui\", 'immeuble(s) collectif(s)'!BJ62&\"h\",'immeuble(s) collectif(s)'!BJ62)","v":0},null,{"$f":"'immeuble(s) collectif(s)'!BK62","v":0},null,{"$f":"'immeuble(s) collectif(s)'!AX62","v":0},null,{"$f":"'immeuble(s) collectif(s)'!AU62","v":0},null,{"$f":"'immeuble(s) collectif(s)'!AY62","v":0},null,{"$f":"'immeuble(s) collectif(s)'!AW62","v":0},null,{"$f":"'immeuble(s) collectif(s)'!DW62","v":0},null,{"$f":"CONCATENATE('immeuble(s) collectif(s)'!FA62,\" \",'immeuble(s) collectif(s)'!FE62,\" \",'immeuble(s) collectif(s)'!FI62,\" \",'immeuble(s) collectif(s)'!FM62,\" \",'immeuble(s) collectif(s)'!FQ62)","v":"    "}]
["2.",null,"Autres surfaces",null,null,0]
[null,null,{"$f":"IF('autres surfaces'!B5=\"\",\"\",'autres surfaces'!C5)","v":""},null,null,{"$f":"IF('autres surfaces'!B5=\"immeuble collectif\",'autres surfaces'!E5,\"\")","v":""},null,null,null,null,null,null,null,{"$f":"IF('autres surfaces'!B5=\"immeuble collectif\",'autres surfaces'!H5,\"\")","v":""},null,null,null,{"$f":"IF('autres surfaces'!B5=\"immeuble collectif\",'autres surfaces'!G5,\"\")","v":""}]
[null,null,{"$f":"IF('autres surfaces'!B6=\"\",\"\",'autres surfaces'!C6)","v":""},null,null,{"$f":"IF('autres surfaces'!B6=\"immeuble collectif\",'autres surfaces'!E6,\"\")","v":""},null,null,null,null,null,null,null,{"$f":"IF('autres surfaces'!B6=\"immeuble collectif\",'autres surfaces'!H6,\"\")","v":""},null,null,null,{"$f":"IF('autres surfaces'!B6=\"immeuble collectif\",'autres surfaces'!G6,\"\")","v":""}]
[null,null,{"$f":"IF('autres surfaces'!B7=\"\",\"\",'autres surfaces'!C7)","v":""},null,null,{"$f":"IF('autres surfaces'!B7=\"immeuble collectif\",'autres surfaces'!E7,\"\")","v":""},null,null,null,null,null,null,null,{"$f":"IF('autres surfaces'!B7=\"immeuble collectif\",'autres surfaces'!H7,\"\")","v":""},null,null,null,{"$f":"IF('autres surfaces'!B7=\"immeuble collectif\",'autres surfaces'!G7,\"\")","v":""}]
[null,null,{"$f":"IF('autres surfaces'!B8=\"\",\"\",'autres surfaces'!C8)","v":""},null,null,{"$f":"IF('autres surfaces'!B8=\"immeuble collectif\",'autres surfaces'!E8,\"\")","v":""},null,null,null,null,null,null,null,{"$f":"IF('autres surfaces'!B8=\"immeuble collectif\",'autres surfaces'!H8,\"\")","v":""},null,null,null,{"$f":"IF('autres surfaces'!B8=\"immeuble collectif\",'autres surfaces'!G8,\"\")","v":""}]
[null,null,{"$f":"IF('autres surfaces'!B9=\"\",\"\",'autres surfaces'!C9)","v":""},null,null,{"$f":"IF('autres surfaces'!B9=\"immeuble collectif\",'autres surfaces'!E9,\"\")","v":""},null,null,null,null,null,null,null,{"$f":"IF('autres surfaces'!B9=\"immeuble collectif\",'autres surfaces'!H9,\"\")","v":""},null,null,null,{"$f":"IF('autres surfaces'!B9=\"immeuble collectif\",'autres surfaces'!G9,\"\")","v":""}]
[null,null,{"$f":"IF('autres surfaces'!B10=\"\",\"\",'autres surfaces'!C10)","v":""},null,null,{"$f":"IF('autres surfaces'!B12=\"immeuble collectif\",'autres surfaces'!E12,\"\")","v":""},null,null,null,null,null,null,null,{"$f":"IF('autres surfaces'!B12=\"immeuble collectif\",'autres surfaces'!H12,\"\")","v":""},null,null,null,{"$f":"IF('autres surfaces'!B12=\"immeuble collectif\",'autres surfaces'!G12,\"\")","v":""}]
[null,null,{"$f":"IF('autres surfaces'!B11=\"\",\"\",'autres surfaces'!C11)","v":""},null,null,{"$f":"IF('autres surfaces'!B13=\"immeuble collectif\",'autres surfaces'!E13,\"\")","v":""},null,null,null,null,null,null,null,{"$f":"IF('autres surfaces'!B13=\"immeuble collectif\",'autres surfaces'!H13,\"\")","v":""},null,null,null,{"$f":"IF('autres surfaces'!B13=\"immeuble collectif\",'autres surfaces'!G13,\"\")","v":""}]
[null,null,{"$f":"IF('autres surfaces'!B12=\"\",\"\",'autres surfaces'!C12)","v":""},null,null,{"$f":"IF('autres surfaces'!B14=\"immeuble collectif\",'autres surfaces'!E14,\"\")","v":""},null,null,null,null,null,null,null,{"$f":"IF('autres surfaces'!B14=\"immeuble collectif\",'autres surfaces'!H14,\"\")","v":""},null,null,null,{"$f":"IF('autres surfaces'!B14=\"immeuble collectif\",'autres surfaces'!G14,\"\")","v":""}]
[null,null,{"$f":"IF('autres surfaces'!B13=\"\",\"\",'autres surfaces'!C13)","v":""},null,null,{"$f":"IF('autres surfaces'!B15=\"immeuble collectif\",'autres surfaces'!E15,\"\")","v":""},null,null,null,null,null,null,null,{"$f":"IF('autres surfaces'!B15=\"immeuble collectif\",'autres surfaces'!H15,\"\")","v":""},null,null,null,{"$f":"IF('autres surfaces'!B15=\"immeuble collectif\",'autres surfaces'!G15,\"\")","v":""}]
[null,null,{"$f":"IF('autres surfaces'!B14=\"\",\"\",'autres surfaces'!C14)","v":""},null,null,{"$f":"IF('autres surfaces'!B16=\"immeuble collectif\",'autres surfaces'!E16,\"\")","v":""},null,null,null,null,null,null,null,{"$f":"IF('autres surfaces'!B16=\"immeuble collectif\",'autres surfaces'!H16,\"\")","v":""},null,null,null,{"$f":"IF('autres surfaces'!B16=\"immeuble collectif\",'autres surfaces'!G16,\"\")","v":""}]
[null,null,{"$f":"IF('autres surfaces'!B15=\"\",\"\",'autres surfaces'!C15)","v":""},null,null,{"$f":"IF('autres surfaces'!B17=\"immeuble collectif\",'autres surfaces'!E17,\"\")","v":""},null,null,null,null,null,null,null,{"$f":"IF('autres surfaces'!B17=\"immeuble collectif\",'autres surfaces'!H17,\"\")","v":""},null,null,null,{"$f":"IF('autres surfaces'!B17=\"immeuble collectif\",'autres surfaces'!G17,\"\")","v":""}]
[null,null,{"$f":"IF('autres surfaces'!B16=\"\",\"\",'autres surfaces'!C16)","v":""},null,null,{"$f":"IF('autres surfaces'!B18=\"immeuble collectif\",'autres surfaces'!E18,\"\")","v":""},null,null,null,null,null,null,null,{"$f":"IF('autres surfaces'!B18=\"immeuble collectif\",'autres surfaces'!H18,\"\")","v":""},null,null,null,{"$f":"IF('autres surfaces'!B18=\"immeuble collectif\",'autres surfaces'!G18,\"\")","v":""}]
[null,null,{"$f":"IF('autres surfaces'!B17=\"\",\"\",'autres surfaces'!C17)","v":""},null,null,{"$f":"IF('autres surfaces'!B19=\"immeuble collectif\",'autres surfaces'!E19,\"\")","v":""},null,null,null,null,null,null,null,{"$f":"IF('autres surfaces'!B19=\"immeuble collectif\",'autres surfaces'!H19,\"\")","v":""},null,null,null,{"$f":"IF('autres surfaces'!B19=\"immeuble collectif\",'autres surfaces'!G19,\"\")","v":""}]
[null,null,{"$f":"IF('autres surfaces'!B18=\"\",\"\",'autres surfaces'!C18)","v":""},null,null,{"$f":"IF('autres surfaces'!B20=\"immeuble collectif\",'autres surfaces'!E20,\"\")","v":""},null,null,null,null,null,null,null,{"$f":"IF('autres surfaces'!B20=\"immeuble collectif\",'autres surfaces'!H20,\"\")","v":""},null,null,null,{"$f":"IF('autres surfaces'!B20=\"immeuble collectif\",'autres surfaces'!G20,\"\")","v":""}]
[null,null,{"$f":"IF('autres surfaces'!B19=\"\",\"\",'autres surfaces'!C19)","v":""},null,null,{"$f":"IF('autres surfaces'!B21=\"immeuble collectif\",'autres surfaces'!E21,\"\")","v":""},null,null,null,null,null,null,null,{"$f":"IF('autres surfaces'!B21=\"immeuble collectif\",'autres surfaces'!H21,\"\")","v":""},null,null,null,{"$f":"IF('autres surfaces'!B21=\"immeuble collectif\",'autres surfaces'!G21,\"\")","v":""}]
[null,null,{"$f":"IF('autres surfaces'!B20=\"\",\"\",'autres surfaces'!C20)","v":""},null,null,{"$f":"IF('autres surfaces'!B22=\"immeuble collectif\",'autres surfaces'!E22,\"\")","v":""},null,null,null,null,null,null,null,{"$f":"IF('autres surfaces'!B22=\"immeuble collectif\",'autres surfaces'!H22,\"\")","v":""},null,null,null,{"$f":"IF('autres surfaces'!B22=\"immeuble collectif\",'autres surfaces'!G22,\"\")","v":""}]
[null,null,{"$f":"IF('autres surfaces'!B21=\"\",\"\",'autres surfaces'!C21)","v":""},null,null,{"$f":"IF('autres surfaces'!B23=\"immeuble collectif\",'autres surfaces'!E23,\"\")","v":""},null,null,null,null,null,null,null,{"$f":"IF('autres surfaces'!B23=\"immeuble collectif\",'autres surfaces'!H23,\"\")","v":""},null,null,null,{"$f":"IF('autres surfaces'!B23=\"immeuble collectif\",'autres surfaces'!G23,\"\")","v":""}]
[null,null,{"$f":"IF('autres surfaces'!B22=\"\",\"\",'autres surfaces'!C22)","v":""},null,null,{"$f":"IF('autres surfaces'!B24=\"immeuble collectif\",'autres surfaces'!E24,\"\")","v":""},null,null,null,null,null,null,null,{"$f":"IF('autres surfaces'!B24=\"immeuble collectif\",'autres surfaces'!H24,\"\")","v":""},null,null,null,{"$f":"IF('autres surfaces'!B24=\"immeuble collectif\",'autres surfaces'!G24,\"\")","v":""}]
[null,null,{"$f":"IF('autres surfaces'!B23=\"\",\"\",'autres surfaces'!C23)","v":""},null,null,{"$f":"IF('autres surfaces'!B25=\"immeuble collectif\",'autres surfaces'!E25,\"\")","v":""},null,null,null,null,null,null,null,{"$f":"IF('autres surfaces'!B25=\"immeuble collectif\",'autres surfaces'!H25,\"\")","v":""},null,null,null,{"$f":"IF('autres surfaces'!B25=\"immeuble collectif\",'autres surfaces'!G25,\"\")","v":""}]
[null,null,{"$f":"IF('autres surfaces'!B24=\"\",\"\",'autres surfaces'!C24)","v":""},null,null,{"$f":"IF('autres surfaces'!B26=\"immeuble collectif\",'autres surfaces'!E26,\"\")","v":""},null,null,null,null,null,null,null,{"$f":"IF('autres surfaces'!B26=\"immeuble collectif\",'autres surfaces'!H26,\"\")","v":""},null,null,null,{"$f":"IF('autres surfaces'!B26=\"immeuble collectif\",'autres surfaces'!G26,\"\")","v":""}]
[null,null,{"$f":"IF('autres surfaces'!B25=\"\",\"\",'autres surfaces'!C25)","v":""},null,null,{"$f":"IF('autres surfaces'!B27=\"immeuble collectif\",'autres surfaces'!E27,\"\")","v":""},null,null,null,null,null,null,null,{"$f":"IF('autres surfaces'!B27=\"immeuble collectif\",'autres surfaces'!H27,\"\")","v":""},null,null,null,{"$f":"IF('autres surfaces'!B27=\"immeuble collectif\",'autres surfaces'!G27,\"\")","v":""}]
[null,null,{"$f":"IF('autres surfaces'!B26=\"\",\"\",'autres surfaces'!C26)","v":""},null,null,{"$f":"IF('autres surfaces'!B28=\"immeuble collectif\",'autres surfaces'!E28,\"\")","v":""},null,null,null,null,null,null,null,{"$f":"IF('autres surfaces'!B28=\"immeuble collectif\",'autres surfaces'!H28,\"\")","v":""},null,null,null,{"$f":"IF('autres surfaces'!B28=\"immeuble collectif\",'autres surfaces'!G28,\"\")","v":""}]
[null,null,{"$f":"IF('autres surfaces'!B27=\"\",\"\",'autres surfaces'!C27)","v":""},null,null,{"$f":"IF('autres surfaces'!B29=\"immeuble collectif\",'autres surfaces'!E29,\"\")","v":""},null,null,null,null,null,null,null,{"$f":"IF('autres surfaces'!B29=\"immeuble collectif\",'autres surfaces'!H29,\"\")","v":""},null,null,null,{"$f":"IF('autres surfaces'!B29=\"immeuble collectif\",'autres surfaces'!G29,\"\")","v":""}]
[null,null,{"$f":"IF('autres surfaces'!B28=\"\",\"\",'autres surfaces'!C28)","v":""},null,null,{"$f":"IF('autres surfaces'!B30=\"immeuble collectif\",'autres surfaces'!E30,\"\")","v":""},null,null,null,null,null,null,null,{"$f":"IF('autres surfaces'!B30=\"immeuble collectif\",'autres surfaces'!H30,\"\")","v":""},null,null,null,{"$f":"IF('autres surfaces'!B30=\"immeuble collectif\",'autres surfaces'!G30,\"\")","v":""}]
[null,null,{"$f":"IF('autres surfaces'!B29=\"\",\"\",'autres surfaces'!C29)","v":""},null,null,{"$f":"IF('autres surfaces'!B31=\"immeuble collectif\",'autres surfaces'!E31,\"\")","v":""},null,null,null,null,null,null,null,{"$f":"IF('autres surfaces'!B31=\"immeuble collectif\",'autres surfaces'!H31,\"\")","v":""},null,null,null,{"$f":"IF('autres surfaces'!B31=\"immeuble collectif\",'autres surfaces'!G31,\"\")","v":""}]
[null,null,{"$f":"IF('autres surfaces'!B30=\"\",\"\",'autres surfaces'!C30)","v":""},null,null,{"$f":"IF('autres surfaces'!B32=\"immeuble collectif\",'autres surfaces'!E32,\"\")","v":""},null,null,null,null,null,null,null,{"$f":"IF('autres surfaces'!B32=\"immeuble collectif\",'autres surfaces'!H32,\"\")","v":""},null,null,null,{"$f":"IF('autres surfaces'!B32=\"immeuble collectif\",'autres surfaces'!G32,\"\")","v":""}]
[null,null,{"$f":"IF('autres surfaces'!B31=\"\",\"\",'autres surfaces'!C31)","v":""},null,null,{"$f":"IF('autres surfaces'!B33=\"immeuble collectif\",'autres surfaces'!E33,\"\")","v":""},null,null,null,null,null,null,null,{"$f":"IF('autres surfaces'!B33=\"immeuble collectif\",'autres surfaces'!H33,\"\")","v":""},null,null,null,{"$f":"IF('autres surfaces'!B33=\"immeuble collectif\",'autres surfaces'!G33,\"\")","v":""}]
[null,null,{"$f":"IF('autres surfaces'!B32=\"\",\"\",'autres surfaces'!C32)","v":""},null,null,{"$f":"IF('autres surfaces'!B34=\"immeuble collectif\",'autres surfaces'!E34,\"\")","v":""},null,null,null,null,null,null,null,{"$f":"IF('autres surfaces'!B34=\"immeuble collectif\",'autres surfaces'!H34,\"\")","v":""},null,null,null,{"$f":"IF('autres surfaces'!B34=\"immeuble collectif\",'autres surfaces'!G34,\"\")","v":""}]
[null,null,{"$f":"IF('autres surfaces'!B33=\"\",\"\",'autres surfaces'!C33)","v":""},null,null,{"$f":"IF('autres surfaces'!B35=\"immeuble collectif\",'autres surfaces'!E35,\"\")","v":""},null,null,null,null,null,null,null,{"$f":"IF('autres surfaces'!B35=\"immeuble collectif\",'autres surfaces'!H35,\"\")","v":""},null,null,null,{"$f":"IF('autres surfaces'!B35=\"immeuble collectif\",'autres surfaces'!G35,\"\")","v":""}]
[null,null,{"$f":"IF('autres surfaces'!B34=\"\",\"\",'autres surfaces'!C34)","v":""},null,null,{"$f":"IF('autres surfaces'!B36=\"immeuble collectif\",'autres surfaces'!E36,\"\")","v":""},null,null,null,null,null,null,null,{"$f":"IF('autres surfaces'!B36=\"immeuble collectif\",'autres surfaces'!H36,\"\")","v":""},null,null,null,{"$f":"IF('autres surfaces'!B36=\"immeuble collectif\",'autres surfaces'!G36,\"\")","v":""}]
[null,null,{"$f":"IF('autres surfaces'!B35=\"\",\"\",'autres surfaces'!C35)","v":""},null,null,{"$f":"IF('autres surfaces'!B37=\"immeuble collectif\",'autres surfaces'!E37,\"\")","v":""},null,null,null,null,null,null,null,{"$f":"IF('autres surfaces'!B37=\"immeuble collectif\",'autres surfaces'!H37,\"\")","v":""},null,null,null,{"$f":"IF('autres surfaces'!B37=\"immeuble collectif\",'autres surfaces'!G37,\"\")","v":""}]
[null,null,{"$f":"IF('autres surfaces'!B36=\"\",\"\",'autres surfaces'!C36)","v":""},null,null,{"$f":"IF('autres surfaces'!B38=\"immeuble collectif\",'autres surfaces'!E38,\"\")","v":""},null,null,null,null,null,null,null,{"$f":"IF('autres surfaces'!B38=\"immeuble collectif\",'autres surfaces'!H38,\"\")","v":""},null,null,null,{"$f":"IF('autres surfaces'!B38=\"immeuble collectif\",'autres surfaces'!G38,\"\")","v":""}]
[null,null,{"$f":"IF('autres surfaces'!B37=\"\",\"\",'autres surfaces'!C37)","v":""},null,null,{"$f":"IF('autres surfaces'!B39=\"immeuble collectif\",'autres surfaces'!E39,\"\")","v":""},null,null,null,null,null,null,null,{"$f":"IF('autres surfaces'!B39=\"immeuble collectif\",'autres surfaces'!H39,\"\")","v":""},null,null,null,{"$f":"IF('autres surfaces'!B39=\"immeuble collectif\",'autres surfaces'!G39,\"\")","v":""}]
[null,null,{"$f":"IF('autres surfaces'!B38=\"\",\"\",'autres surfaces'!C38)","v":""},null,null,{"$f":"IF('autres surfaces'!B40=\"immeuble collectif\",'autres surfaces'!E40,\"\")","v":""},null,null,null,null,null,null,null,{"$f":"IF('autres surfaces'!B40=\"immeuble collectif\",'autres surfaces'!H40,\"\")","v":""},null,null,null,{"$f":"IF('autres surfaces'!B40=\"immeuble collectif\",'autres surfaces'!G40,\"\")","v":""}]
[null,null,{"$f":"IF('autres surfaces'!B39=\"\",\"\",'autres surfaces'!C39)","v":""},null,null,{"$f":"IF('autres surfaces'!B41=\"immeuble collectif\",'autres surfaces'!E41,\"\")","v":""},null,null,null,null,null,null,null,{"$f":"IF('autres surfaces'!B41=\"immeuble collectif\",'autres surfaces'!H41,\"\")","v":""},null,null,null,{"$f":"IF('autres surfaces'!B41=\"immeuble collectif\",'autres surfaces'!G41,\"\")","v":""}]
[null,null,{"$f":"IF('autres surfaces'!B40=\"\",\"\",'autres surfaces'!C40)","v":""},null,null,{"$f":"IF('autres surfaces'!B42=\"immeuble collectif\",'autres surfaces'!E42,\"\")","v":""},null,null,null,null,null,null,null,{"$f":"IF('autres surfaces'!B42=\"immeuble collectif\",'autres surfaces'!H42,\"\")","v":""},null,null,null,{"$f":"IF('autres surfaces'!B42=\"immeuble collectif\",'autres surfaces'!G42,\"\")","v":""}]
[null,null,{"$f":"IF('autres surfaces'!B41=\"\",\"\",'autres surfaces'!C41)","v":""},null,null,{"$f":"IF('autres surfaces'!B43=\"immeuble collectif\",'autres surfaces'!E43,\"\")","v":""},null,null,null,null,null,null,null,{"$f":"IF('autres surfaces'!B43=\"immeuble collectif\",'autres surfaces'!H43,\"\")","v":""},null,null,null,{"$f":"IF('autres surfaces'!B43=\"immeuble collectif\",'autres surfaces'!G43,\"\")","v":""}]
[null,null,{"$f":"IF('autres surfaces'!B42=\"\",\"\",'autres surfaces'!C42)","v":""},null,null,{"$f":"IF('autres surfaces'!B44=\"immeuble collectif\",'autres surfaces'!E44,\"\")","v":""},null,null,null,null,null,null,null,{"$f":"IF('autres surfaces'!B44=\"immeuble collectif\",'autres surfaces'!H44,\"\")","v":""},null,null,null,{"$f":"IF('autres surfaces'!B44=\"immeuble collectif\",'autres surfaces'!G44,\"\")","v":""}]
[null,null,{"$f":"IF('autres surfaces'!B43=\"\",\"\",'autres surfaces'!C43)","v":""},null,null,{"$f":"IF('autres surfaces'!B45=\"immeuble collectif\",'autres surfaces'!E45,\"\")","v":""},null,null,null,null,null,null,null,{"$f":"IF('autres surfaces'!B45=\"immeuble collectif\",'autres surfaces'!H45,\"\")","v":""},null,null,null,{"$f":"IF('autres surfaces'!B45=\"immeuble collectif\",'autres surfaces'!G45,\"\")","v":""}]
[null,null,{"$f":"IF('autres surfaces'!B44=\"\",\"\",'autres surfaces'!C44)","v":""},null,null,{"$f":"IF('autres surfaces'!B46=\"immeuble collectif\",'autres surfaces'!E46,\"\")","v":""},null,null,null,null,null,null,null,{"$f":"IF('autres surfaces'!B46=\"immeuble collectif\",'autres surfaces'!H46,\"\")","v":""},null,null,null,{"$f":"IF('autres surfaces'!B46=\"immeuble collectif\",'autres surfaces'!G46,\"\")","v":""}]
[null,null,{"$f":"IF('autres surfaces'!B45=\"\",\"\",'autres surfaces'!C45)","v":""},null,null,{"$f":"IF('autres surfaces'!B47=\"immeuble collectif\",'autres surfaces'!E47,\"\")","v":""},null,null,null,null,null,null,null,{"$f":"IF('autres surfaces'!B47=\"immeuble collectif\",'autres surfaces'!H47,\"\")","v":""},null,null,null,{"$f":"IF('autres surfaces'!B47=\"immeuble collectif\",'autres surfaces'!G47,\"\")","v":""}]
[null,null,{"$f":"IF('autres surfaces'!B46=\"\",\"\",'autres surfaces'!C46)","v":""},null,null,{"$f":"IF('autres surfaces'!B48=\"immeuble collectif\",'autres surfaces'!E48,\"\")","v":""},null,null,null,null,null,null,null,{"$f":"IF('autres surfaces'!B48=\"immeuble collectif\",'autres surfaces'!H48,\"\")","v":""},null,null,null,{"$f":"IF('autres surfaces'!B48=\"immeuble collectif\",'autres surfaces'!G48,\"\")","v":""}]
[null,null,{"$f":"IF('autres surfaces'!B47=\"\",\"\",'autres surfaces'!C47)","v":""},null,null,{"$f":"IF('autres surfaces'!B49=\"immeuble collectif\",'autres surfaces'!E49,\"\")","v":""},null,null,null,null,null,null,null,{"$f":"IF('autres surfaces'!B49=\"immeuble collectif\",'autres surfaces'!H49,\"\")","v":""},null,null,null,{"$f":"IF('autres surfaces'!B49=\"immeuble collectif\",'autres surfaces'!G49,\"\")","v":""}]
[null,null,{"$f":"IF('autres surfaces'!B48=\"\",\"\",'autres surfaces'!C48)","v":""},null,null,{"$f":"IF('autres surfaces'!B50=\"immeuble collectif\",'autres surfaces'!E50,\"\")","v":""},null,null,null,null,null,null,null,{"$f":"IF('autres surfaces'!B50=\"immeuble collectif\",'autres surfaces'!H50,\"\")","v":""},null,null,null,{"$f":"IF('autres surfaces'!B50=\"immeuble collectif\",'autres surfaces'!G50,\"\")","v":""}]
[null,null,{"$f":"IF('autres surfaces'!B49=\"\",\"\",'autres surfaces'!C49)","v":""},null,null,{"$f":"IF('autres surfaces'!B51=\"immeuble collectif\",'autres surfaces'!E51,\"\")","v":""},null,null,null,null,null,null,null,{"$f":"IF('autres surfaces'!B51=\"immeuble collectif\",'autres surfaces'!H51,\"\")","v":""},null,null,null,{"$f":"IF('autres surfaces'!B51=\"immeuble collectif\",'autres surfaces'!G51,\"\")","v":""}]
[null,null,{"$f":"IF('autres surfaces'!B50=\"\",\"\",'autres surfaces'!C50)","v":""},null,null,{"$f":"IF('autres surfaces'!B52=\"immeuble collectif\",'autres surfaces'!E52,\"\")","v":""},null,null,null,null,null,null,null,{"$f":"IF('autres surfaces'!B52=\"immeuble collectif\",'autres surfaces'!H52,\"\")","v":""},null,null,null,{"$f":"IF('autres surfaces'!B52=\"immeuble collectif\",'autres surfaces'!G52,\"\")","v":""}]
[null,null,{"$f":"IF('autres surfaces'!B51=\"\",\"\",'autres surfaces'!C51)","v":""},null,null,{"$f":"IF('autres surfaces'!B53=\"immeuble collectif\",'autres surfaces'!E53,\"\")","v":""},null,null,null,null,null,null,null,{"$f":"IF('autres surfaces'!B53=\"immeuble collectif\",'autres surfaces'!H53,\"\")","v":""},null,null,null,{"$f":"IF('autres surfaces'!B53=\"immeuble collectif\",'autres surfaces'!G53,\"\")","v":""}]
[null,null,{"$f":"IF('autres surfaces'!B52=\"\",\"\",'autres surfaces'!C52)","v":""},null,null,{"$f":"IF('autres surfaces'!B54=\"immeuble collectif\",'autres surfaces'!E54,\"\")","v":""},null,null,null,null,null,null,null,{"$f":"IF('autres surfaces'!B54=\"immeuble collectif\",'autres surfaces'!H54,\"\")","v":""},null,null,null,{"$f":"IF('autres surfaces'!B54=\"immeuble collectif\",'autres surfaces'!G54,\"\")","v":""}]
[null,null,{"$f":"IF('autres surfaces'!B53=\"\",\"\",'autres surfaces'!C53)","v":""},null,null,{"$f":"IF('autres surfaces'!B55=\"immeuble collectif\",'autres surfaces'!E55,\"\")","v":""},null,null,null,null,null,null,null,{"$f":"IF('autres surfaces'!B55=\"immeuble collectif\",'autres surfaces'!H55,\"\")","v":""},null,null,null,{"$f":"IF('autres surfaces'!B55=\"immeuble collectif\",'autres surfaces'!G55,\"\")","v":""}]
[null,null,{"$f":"IF('autres surfaces'!B54=\"\",\"\",'autres surfaces'!C54)","v":""},null,null,{"$f":"IF('autres surfaces'!B56=\"immeuble collectif\",'autres surfaces'!E56,\"\")","v":""},null,null,null,null,null,null,null,{"$f":"IF('autres surfaces'!B56=\"immeuble collectif\",'autres surfaces'!H56,\"\")","v":""},null,null,null,{"$f":"IF('autres surfaces'!B56=\"immeuble collectif\",'autres surfaces'!G56,\"\")","v":""}]
[null,null,{"$f":"IF('autres surfaces'!B57=\"immeuble collectif\",'autres surfaces'!C57,\"\")","v":""},null,null,{"$f":"IF('autres surfaces'!B57=\"immeuble collectif\",'autres surfaces'!E57,\"\")","v":""},null,null,null,null,null,null,null,{"$f":"IF('autres surfaces'!B57=\"immeuble collectif\",'autres surfaces'!H57,\"\")","v":""},null,null,null,{"$f":"IF('autres surfaces'!B57=\"immeuble collectif\",'autres surfaces'!G57,\"\")","v":""}]
[]
[]
[]
[]
[]
[]
[]
[null,null,null,null,null,{"$f":"'autres surfaces'!E65","v":0}]

{"sheet":"data","index":7,"n_rows":282,"n_cols":33,"rows_kept":282,"cut":false,"hidden":true,"merged":[]}
["localisation","CPE","cage d'escalier","ascenseur","sdd/sdb","WC","Affirmation","murs mitoyens privatifs","prime house","logement intégré","CPE","stade du projet","SUH nonlog","ratio surfaces immeuble collectif",null,null,null,"emplacements privés","pas d'emplacement","car-port double",null,"surfaces","espaces ext","Cat","caves m2",null,"autres surfaces dropdown",null,null,null,"emplacement list",null,"Piece d'eau"]
["Rez-1 / Rez de jardin",null,"A","pas d'ascenseur","salle d'eau (a)",null,"oui","oui","oui","oui","A","APS","Commerce","SUH/SCB",0.7,null,null,1,0,2,null,"oui","Oui, >4 m2","tous publics",">4 m2",null,{"$f":"_xlfn.VSTACK(_xlfn._xlws.FILTER('maison(s)'!E10:E150,'maison(s)'!E10:E150 <> \" \"),_xlfn._xlws.FILTER('immeuble(s) collectif(s)'!E11:E150, 'immeuble(s) collectif(s)'!E11:E150 <> \" \"))","v":0},{"$f":"_xlfn.UNIQUE(_xlfn.ANCHORARRAY(AA2))","v":0},null,null,"emplacement intérieur",null,"salle d'eau (a)"]
["Rez / Rez de rue","à préciser","B","> 8 unités","salle d'eau (b)",null,"non","non","non","non","B","APD","Bureau","SNA/SCB",0.4,null,null,2,null,null,null,"non","Oui, <4m2","dédié-DPI","<4 m2",null,0,null,null,null,"emplacement extérieur",null,"salle d'eau (b)"]
["Rez+1",null,"C","< 8 unités","wc séparé (a)",null,"commentaire","à préciser","à préciser",null,"C","PdB","Emplacement",null,null,null,null,3,null,null,null,null,"Non","dédié-étudiant",null,null,0,null,null,null,"carport simple",null,"wc séparé (a)"]
["Rez +2",null,"D","commentaire","wc séparé (b)",null,null,null,null,null,"D","en construction","Salle divers",null,null,null,null,null,null,null,null,null,null,"dédié-accomp.soc.",null,null,0,null,null,null,"auvent",null,"wc séparé (b)"]
["Rez +3",null,"E",null,"salle d'eau (a) en suite",null,null,null,null,null,"E","construction terminée","Bureau/Commerce",null,null,null,null,null,null,null,null,null,null,"dédié-jeunes",null,null,0]
["Rez +4",null,"F",null,"salle d'eau (b) en suite",null,null,null,null,null,"F","Bien existant marché libre","Logement non-subventionné",null,null,null,null,null,null,null,null,null,null,"dédié-pers.agées",null,null,0]
["Rez +5",null,null,null,"wc séparé (a) en suite",null,null,null,null,null,"G","Bien existant art.72","Autres",null,null,null,null,null,null,null,null,null,null,"dédié-soc.coopérat.",null,null,0]
["Rez +6",null,null,null,"wc séparé (b) en suite",null,null,null,null,null,"H",null,null,null,null,null,null,null,null,null,null,null,null,"dédié-salarié",null,null,0]
["Rez +7",null,null,null,null,null,null,null,null,null,"I",null,null,null,null,null,null,null,null,null,null,null,null,"dédié-réserve",null,null,0]
["Rez +8",null,null,null,null,null,null,null,null,null,null,null,null,null,null,null,null,null,null,null,null,null,null,null,null,null,0]
["Rez +9",null,null,null,null,null,null,null,null,null,null,null,null,null,null,null,null,null,null,null,null,null,null,"vente abordable",null,null,0]
["Rez +10",null,null,null,null,null,null,null,null,null,null,null,null,null,null,null,null,null,null,null,null,null,null,"vente à coût moderé",null,null,0]
["adapté PMR","taille des pièces de séjour",null,null,null,null,null,null,null,null,null,null,null,null,null,null,null,null,null,null,null,"immeuble collectif",null,null,null,null,0]
["oui","adaptée",null,null,null,null,null,null,null,null,null,null,null,null,null,null,null,null,null,null,null,"maison",null,null,null,null,0]
["non","non adaptée",null,null,null,null,null,null,null,null,null,null,null,null,null,null,null,null,null,null,null,null,null,null,null,null,0]
["à vérifier",null,null,null,null,null,null,null,null,null,null,null,null,null,null,null,null,null,null,null,null,null,null,null,null,null,0]
[null,null,null,null,null,null,null,null,null,null,null,null,null,null,null,null,null,null,null,null,null,null,null,null,null,null,0]
[null,null,null,null,null,null,null,null,null,null,null,null,null,null,null,null,null,null,null,null,null,null,null,null,null,null,0]
["immeuble collectif",null,null,"équipements sanitaires",null,"Quote-part du nombre total d’appartements","type",null,null,"PMR",null,null,null,null,null,null,null,"WG",null,null,null,null,null,"PMR+WG",null,null,0]
["Type","SUH min","SUH max","Column1","Column2",null,"Immeuble collectif",null,null,null,null,null,null,null,null,"typologie","min","raisonable","max",null,null,"typologie","min","raisonable","max",null,0]
["0.1",30,45,"sdd_1","x","+/- 15%","Bi-familial",null,"0.1",{"$f":"B22*1.1","v":33},{"$f":"C22*1.1","v":49.500000000000007},null,null,"0.1",null,"2.2",55,59,68,null,null,"2.2",{"$f":"Q22*1.1","v":60.500000000000007},{"$f":"R22*1.1","v":64.900000000000006},{"$f":"S22*1.1","v":74.800000000000011},null,0]
["1.1",45,50,"sdd_1","x",null,null,null,"1.1",{"$f":"B23*1.1","v":49.500000000000007},{"$f":"C23*1.1","v":55.000000000000007},null,null,"0.2",null,"2.3",70,76,84,null,null,"2.3",{"$f":"Q23*1.1","v":77},{"$f":"R23*1.1","v":83.600000000000009},{"$f":"S23*1.1","v":92.4},null,0]
["1.2",50,60,"sdd_1,sdb_1","x",null,null,null,"1.2",55.000000000000007,66,null,null,null,null,"2.4",85,92,100,null,null,"2.4",{"$f":"Q24*1.1","v":93.500000000000014},101.2,{"$f":"S24*1.1","v":110.00000000000001},null,0]
["2.2",60,70,"sdd_1,sdb_1","x","+/- 35%",null,null,"2.2",66,77,null,null,2,null,"3.3",74,81,93,null,null,"3.3",{"$f":"Q25*1.1","v":81.400000000000006},89.100000000000009,102.30000000000001,null,0]
["2.3",70,80,"sdd_1,sdb_1","wc_1",null,null,null,"2.3",77,88,null,null,null,null,"3.5",105,113,126,null,null,"3.5",{"$f":"Q26*1.1","v":115.50000000000001},124.30000000000001,138.60000000000002,null,0]
["2.4",80,90,"sdd_1,sdb_1","wc_1",null,null,null,"2.4",88,99.000000000000014,null,null,null,null,"3.6",120,130,142,null,null,"3.6",{"$f":"Q27*1.1","v":132},143,156.20000000000002,null,0]
["3.4",90,100,"sdd_1,sdb_1","wc_1","+/- 35%",null,null,"3.4",99.000000000000014,110.00000000000001,null,null,null,null,"4.4",94,103,119,null,null,"4.4",{"$f":"Q28*1.1","v":103.4},113.30000000000001,130.9,null,0]
["3.5",100,110,"sdd_1,sdb_1","wc_2",null,null,null,"3.5",110.00000000000001,121.00000000000001,null,null,null,null,"4.6",124,135,152,null,null,"4.6",136.4,148.5,167.20000000000002,null,0]
["3.6",110,115,"sdd_1,sdb_1","wc_2",null,null,null,"3.6",121.00000000000001,126.50000000000001,null,null,null,null,"4.8",154,167,184,null,null,"4.8",169.4,183.70000000000002,202.4,null,0]
["4.5",115,120,"sdd_2,sdb_2","wc_2","+/- 10%",null,null,"4.5",126.50000000000001,132,null,null,null,null,"5.5",113,124,145,null,null,"5.5",124.30000000000001,136.4,159.5,null,0]
["4.6",120,125,"sdd_2,sdb_2","wc_2",null,null,null,"4.6",132,137.5,null,null,null,null,"5.7",144,157,178,null,null,"5.7",158.4,172.70000000000002,195.8,null,0]
["4.7",120,125,"sdd_2,sdb_2","wc_2","< 5%",null,null,"4.7",132,137.5,null,null,null,null,"5.9",187,202,223,null,null,"5.9",205.70000000000002,222.20000000000002,245.3,null,0]
["4.8",120,125,"sdd_2,sdb_2","wc_2",null,null,null,"4.8",132,137.5,null,null,null,null,"6.6",133,146,171,null,null,"6.6",146.30000000000001,160.60000000000002,188.10000000000002,null,0]
["5.7",125,130,"sdd_2,sdb_2","wc_2",null,null,null,"5.7",137.5,143,null,null,null,null,"6.8",163,178,204,null,null,"6.8",179.3,195.8,224.4,null,0]
["5.8",130,140,"sdd_2,sdb_2","wc_2",null,null,null,"5.8",143,154,null,null,null,null,"6.10",206,224,249,null,null,"6.10",226.60000000000002,246.40000000000003,273.90000000000003,null,0]
["5.9",130,140,"sdd_2,sdb_2","wc_2",null,null,null,"5.9",143,154,null,null,null,null,"7.7",152,167,197,null,null,"7.7",167.20000000000002,183.70000000000002,216.70000000000002,null,0]
["5.10",130,140,"sdd_2,sdb_2","wc_2",null,null,null,"5.10",143,154,null,null,null,null,"7.9",195,213,243,null,null,"7.9",214.50000000000003,234.3,267.3,null,0]
["6.7",140,145,"sdd_2,sdb_2","wc_2",null,null,null,"6.7",154,159.5,null,null,null,null,"7.11",226,245,275,null,null,"7.11",248.60000000000002,269.5,302.5,null,0]
["6.8",150,155,"sdd_2,sdb_2","wc_2",null,null,null,"6.8",165,170.5,null,null,null,null,"8.8",172,189,223,null,null,"8.8",189.20000000000002,207.9,245.3,null,0]
[null,null,null,null,null,null,null,null,null,null,null,null,null,null,null,"8.10",215,234,268,null,null,"8.10",236.50000000000003,257.40000000000003,294.8,null,0]
["maisons",null,null,"équipements sanitaires",null,"Quote-part du nombre total des maisons",null,null,null,null,null,null,null,null,null,"8.12",245,267,301,null,null,"8.12",269.5,293.70000000000005,331.1,null,0]
["Type","SUH min","SUH max","Column1","Column2",null,"Type de maison",null,null,null,null,null,null,null,null,"9.9",204,224,262,null,null,"9.9",224.4,246.40000000000003,288.20000000000005,null,0]
["2.3",65,90,"sdd_1,sdb_1","wc_1",null,"Maison en bande",null,"2.3",{"$f":"Table5[[#This Row],[SUH min]]*1.1","v":71.5},{"$f":"Table5[[#This Row],[SUH max]]*1.1","v":99.000000000000014},null,null,null,null,"9.13",265,288,327,null,null,"9.13",291.5,316.8,359.70000000000005,null,0]
["2.4",90,105,"sdd_1,sdb_1","wc_2",null,"Maison jumelée",null,"2.4",{"$f":"Table5[[#This Row],[SUH min]]*1.1","v":99.000000000000014},{"$f":"Table5[[#This Row],[SUH max]]*1.1","v":115.50000000000001},null,null,null,null,"9.15",295,321,359,null,null,"9.15",324.5,353.1,394.90000000000003,null,0]
["3.4",105,125,"sdd_2,sdb_2","wc_1",null,"Maison comme logement collectif",null,"3.4",{"$f":"Table5[[#This Row],[SUH min]]*1.1","v":115.50000000000001},{"$f":"Table5[[#This Row],[SUH max]]*1.1","v":137.5},null,null,null,null,"10.10",224,245,288,null,null,"10.10",246.40000000000003,269.5,316.8,null,0]
["3.5",125,140,"sdd_2,sdb_2","wc_2",null,"Maison avec logement intégré",null,"3.5",{"$f":"Table5[[#This Row],[SUH min]]*1.1","v":137.5},{"$f":"Table5[[#This Row],[SUH max]]*1.1","v":154},null,null,null,null,"10.14",284,310,353,null,null,"10.14",312.40000000000003,341,388.3,null,0]
["3.6",125,140,"sdd_2,sdb_2","wc_2",null,"Logement intégré",null,"3.6",{"$f":"Table5[[#This Row],[SUH min]]*1.1","v":137.5},{"$f":"Table5[[#This Row],[SUH max]]*1.1","v":154},null,null,null,null,"10.18",357,388,430,null,null,"10.18",392.70000000000005,426.8,473.00000000000006,null,0]
["4.5",125,140,"sdd_2,sdb_2","wc_2",null,"Maison isolée",null,"4.5",{"$f":"Table5[[#This Row],[SUH min]]*1.1","v":137.5},{"$f":"Table5[[#This Row],[SUH max]]*1.1","v":154},null,null,null,null,"15.15",320,353,417,null,null,"15.15",352,388.3,458.70000000000005,null,0]
["4.6",140,145,"sdd_2,sdb_2","wc_2",null,null,null,"4.6",{"$f":"Table5[[#This Row],[SUH min]]*1.1","v":154},{"$f":"Table5[[#This Row],[SUH max]]*1.1","v":159.5},null,null,null,null,"15.20",409,447,511,null,null,"15.20",449.90000000000003,491.70000000000005,562.1,null,0]
["4.7",145,155,"sdd_2,sdb_2","wc_2",null,null,null,"4.7",{"$f":"Table5[[#This Row],[SUH min]]*1.1","v":159.5},{"$f":"Table5[[#This Row],[SUH max]]*1.1","v":170.5},null,null,null,null,"15.25",498,541,605,null,null,"15.25",547.80000000000007,595.1,665.5,null,0]
["4.8",145,155,"sdd_2,sdb_2","wc_2",null,null,null,"4.8",{"$f":"Table5[[#This Row],[SUH min]]*1.1","v":159.5},{"$f":"Table5[[#This Row],[SUH max]]*1.1","v":170.5},null,null,null,null,"20.20",431,474,560,null,null,"20.20",474.1,521.40000000000009,616,null,0]
["5.7",145,155,"sdd_2,sdb_2","wc_2",null,null,null,"5.7",{"$f":"Table5[[#This Row],[SUH min]]*1.1","v":159.5},{"$f":"Table5[[#This Row],[SUH max]]*1.1","v":170.5},null,null,null,null,"20.25",519,568,654,null,null,"20.25",570.90000000000009,624.80000000000007,719.40000000000009,null,0]
["5.8",155,160,"sdd_2,sdb_2","wc_2",null,null,null,"5.8",{"$f":"Table5[[#This Row],[SUH min]]*1.1","v":170.5},{"$f":"Table5[[#This Row],[SUH max]]*1.1","v":176},null,null,null,null,"20.30",595,649,735,null,null,"20.30",654.5,713.90000000000009,808.50000000000011,null,0]
["5.9",160,165,"sdd_2,sdb_2","wc_2",null,null,null,"5.9",{"$f":"Table5[[#This Row],[SUH min]]*1.1","v":176},{"$f":"Table5[[#This Row],[SUH max]]*1.1","v":181.50000000000003},null,null,null,null,null,null,null,null,null,null,null,null,null,null,null,0]
["5.10",160,165,"sdd_2,sdb_2","wc_2",null,null,null,"5.10",{"$f":"Table5[[#This Row],[SUH min]]*1.1","v":176},{"$f":"Table5[[#This Row],[SUH max]]*1.1","v":181.50000000000003},null,null,null,null,null,null,null,null,null,null,null,null,null,null,null,0]
["6.7",155,183,"sdd_2,sdb_2","wc_2",null,null,null,"6.7",{"$f":"Table5[[#This Row],[SUH min]]*1.1","v":170.5},{"$f":"Table5[[#This Row],[SUH max]]*1.1","v":201.3},null,null,null,null,null,null,null,null,null,null,null,null,null,null,null,0]
["6.8",160,183,"sdd_2,sdb_2","wc_2",null,null,null,"6.8",{"$f":"Table5[[#This Row],[SUH min]]*1.1","v":176},{"$f":"Table5[[#This Row],[SUH max]]*1.1","v":201.3},null,null,null,null,null,null,null,null,null,null,null,null,null,null,null,0]
["6.9",165,183,"sdd_2,sdb_2","wc_2",null,null,null,"6.9",{"$f":"Table5[[#This Row],[SUH min]]*1.1","v":181.50000000000003},{"$f":"Table5[[#This Row],[SUH max]]*1.1","v":201.3},null,null,null,null,null,null,null,null,null,null,null,null,null,null,null,0]
["6.10",170,183,"sdd_2,sdb_2","wc_2",null,null,null,"6.10",{"$f":"Table5[[#This Row],[SUH min]]*1.1","v":187.00000000000003},{"$f":"Table5[[#This Row],[SUH max]]*1.1","v":201.3},null,null,null,null,null,null,null,null,null,null,null,null,null,null,null,0]
["6.11",175,183,"sdd_2,sdb_2","wc_2",null,null,null,"6.11",{"$f":"Table5[[#This Row],[SUH min]]*1.1","v":192.50000000000003},{"$f":"Table5[[#This Row],[SUH max]]*1.1","v":201.3},null,null,null,null,null,null,null,null,null,null,null,null,null,null,null,0]
["6.12",175,183,"sdd_2,sdb_2","wc_2",null,null,null,"6.12",{"$f":"Table5[[#This Row],[SUH min]]*1.1","v":192.50000000000003},{"$f":"Table5[[#This Row],[SUH max]]*1.1","v":201.3},null,null,null,null,null,null,null,null,null,null,null,null,null,null,null,0]
["7.10",183,216,"sdd_2,sdb_2","wc_2",null,null,null,"7.10",{"$f":"Table5[[#This Row],[SUH min]]*1.1","v":201.3},{"$f":"Table5[[#This Row],[SUH max]]*1.1","v":237.60000000000002},null,null,null,null,null,null,null,null,null,null,null,null,{"$f":"IFERROR(IF('immeuble(s) collectif(s)'!AX52 = \"oui\", VALUE(LEFT('immeuble(s) collectif(s)'!BJ52, FIND(\".\", 'immeuble(s) collectif(s)'!BJ52) - 1)) * 0.2, \"\"), \"\")","v":""},null,null,0]
["7.11",183,216,"sdd_2,sdb_2","wc_2",null,null,null,"7.11",{"$f":"Table5[[#This Row],[SUH min]]*1.1","v":201.3},{"$f":"Table5[[#This Row],[SUH max]]*1.1","v":237.60000000000002},null,null,null,null,null,null,null,null,null,null,null,null,null,null,null,0]
["7.12",185,216,"sdd_2,sdb_2","wc_2",null,null,null,"7.12",{"$f":"Table5[[#This Row],[SUH min]]*1.1","v":203.50000000000003},{"$f":"Table5[[#This Row],[SUH max]]*1.1","v":237.60000000000002},null,null,null,null,null,null,null,null,null,null,null,null,null,null,null,0]
["7.13",185,216,"sdd_2,sdb_2","wc_2",null,null,null,"7.13",{"$f":"Table5[[#This Row],[SUH min]]*1.1","v":203.50000000000003},{"$f":"Table5[[#This Row],[SUH max]]*1.1","v":237.60000000000002},null,null,null,null,null,null,null,null,null,null,null,null,null,null,null,0]
["7.14",200,216,"sdd_2,sdb_2","wc_2",null,null,null,"7.14",{"$f":"Table5[[#This Row],[SUH min]]*1.1","v":220.00000000000003},{"$f":"Table5[[#This Row],[SUH max]]*1.1","v":237.60000000000002},null,null,null,null,null,null,null,null,null,null,null,null,{"$f":"IFERROR(IF('immeuble(s) collectif(s)'!AX56 = \"oui\", VALUE(LEFT('immeuble(s) collectif(s)'!BJ56, FIND(\".\", 'immeuble(s) collectif(s)'!BJ56) - 1)) * 0.2, \"\"), \"\")","v":""},null,null,0]
[null,null,null,null,null,null,null,null,null,null,null,null,null,null,null,null,null,null,null,null,null,null,null,null,null,null,0]
["Gestionnaire ML ",null,null,null,null,null,null,null,null,null,null,null,null,null,null,null,null,null,null,null,null,null,null,null,null,null,0]
["à sélectionner",null,null,null,null,null,null,null,null,null,null,null,null,null,null,null,null,null,null,null,null,null,null,null,null,null,0]
["Paulo CARVALHO",null,null,null,null,null,null,null,null,null,null,null,null,null,null,null,null,null,null,null,null,null,null,null,null,null,0]
["Brian DEL BIANCO",null,null,null,null,null,null,null,null,null,null,null,null,null,null,null,null,null,null,null,null,null,null,null,null,null,0]
["Alex FLAMMANT",null,null,null,null,null,null,null,null,null,null,null,null,null,null,null,null,null,null,null,null,null,null,null,null,null,0]
["Catherine JUNIO",null,null,null,null,null,null,null,null,null,null,null,null,null,null,null,null,null,null,null,null,null,null,null,null,null,0]
[null,null,null,null,null,null,null,null,null,null,null,null,null,null,null,null,null,null,null,null,null,null,null,null,null,null,0]
["Dispense ministérielle pour projets exceptionnels de rénovation pour bâtiments protégés au niveau national ou communal",null,null,null,null,null,null,null,null,null,null,null,null,null,null,null,null,null,null,null,null,null,null,null,null,null,0]
["oui",null,null,null,null,null,null,null,null,null,null,null,null,null,null,null,null,null,null,null,null,null,null,null,null,null,0]
["non",null,null,null,null,null,null,null,null,null,null,null,null,null,null,null,null,null,null,null,null,null,null,null,null,null,0]
[null,null,null,null,null,null,null,null,null,null,null,null,null,null,null,null,null,null,null,null,null,null,null,null,null,null,0]
["matériaux façades","type de construction",null,"classe énergétique",null,null,null,null,null,null,null,null,null,null,null,null,null,null,null,null,null,null,null,null,null,null,0]
["crépis","ossature bois",null,"A",null,null,null,null,null,null,null,null,null,null,null,null,null,null,null,null,null,null,null,null,null,null,0]
["bardage en bois","bois massiv",null,"B",null,null,null,null,null,null,null,null,null,null,null,null,null,null,null,null,null,null,null,null,null,null,0]
["bardage en PVC ","construction massive",null,"C",null,null,null,null,null,null,null,null,null,null,null,null,null,null,null,null,null,null,null,null,null,null,0]
["parements en pierre naturelle","mixte",null,"D",null,null,null,null,null,null,null,null,null,null,null,null,null,null,null,null,null,null,null,null,null,null,0]
["bardage en ciment composite",null,null,"E",null,null,null,null,null,null,null,null,null,null,null,null,null,null,null,null,null,null,null,null,null,null,0]
["revêtements végétaux",null,null,"F",null,null,null,null,null,null,null,null,null,null,null,null,null,null,null,null,null,null,null,null,null,null,0]
[null,null,null,"G",null,null,null,null,null,null,null,null,null,null,null,null,null,null,null,null,null,null,null,null,null,null,0]
["Vente/ location",null,null,"I",null,null,null,null,null,null,null,null,null,null,null,null,null,null,null,null,null,null,null,null,null,null,0]
["Location abordable",null,null,null,null,null,null,null,null,null,null,null,null,null,null,null,null,null,null,null,null,null,null,null,null,null,0]
["Vente abordable",null,null,null,null,null,null,null,null,null,null,null,null,null,null,null,null,null,null,null,null,null,null,null,null,null,0]
["Vente à coût modéré",null,null,null,null,null,null,null,null,null,null,null,null,null,null,null,null,null,null,null,null,null,null,null,null,null,0]
["Location - GLS",null,null,null,null,null,null,null,null,null,null,null,null,null,null,null,null,null,null,null,null,null,null,null,null,null,0]
["Location ss Aides à la pierre",null,null,null,null,null,null,null,null,null,null,null,null,null,null,null,null,null,null,null,null,null,null,null,null,null,0]
["Vente ss Aides à la pierre",null,null,null,null,null,null,null,null,null,null,null,null,null,null,null,null,null,null,null,null,null,null,null,null,null,0]
[null,null,null,null,null,null,null,null,null,null,null,null,null,null,null,null,null,null,null,null,null,null,null,null,null,null,0]
[null,null,null,null,null,null,null,null,null,null,null,null,null,null,null,null,null,null,null,null,null,null,null,null,null,null,0]
["Beaufort",null,null,null,null,null,null,null,null,null,null,null,null,null,null,null,null,null,null,null,null,null,null,null,null,null,0]
["Bech",null,null,null,null,null,null,null,null,null,null,null,null,null,null,null,null,null,null,null,null,null,null,null,null,null,0]
["Beckerich",null,null,null,null,null,null,null,null,null,null,null,null,null,null,null,null,null,null,null,null,null,null,null,null,null,0]
["Berdorf",null,null,null,null,null,null,null,null,null,null,null,null,null,null,null,null,null,null,null,null,null,null,null,null,null,0]
["Bertrange",null,null,null,null,null,null,null,null,null,null,null,null,null,null,null,null,null,null,null,null,null,null,null,null,null,0]
["Bettembourg",null,null,null,null,null,null,null,null,null,null,null,null,null,null,null,null,null,null,null,null,null,null,null,null,null,0]
["Bettendorf",null,null,null,null,null,null,null,null,null,null,null,null,null,null,null,null,null,null,null,null,null,null,null,null,null,0]
["Betzdorf",null,null,null,null,null,null,null,null,null,null,null,null,null,null,null,null,null,null,null,null,null,null,null,null,null,0]
["Bissen",null,null,null,null,null,null,null,null,null,null,null,null,null,null,null,null,null,null,null,null,null,null,null,null,null,0]
["Biwer",null,null,null,null,null,null,null,null,null,null,null,null,null,null,null,null,null,null,null,null,null,null,null,null,null,0]
["Boulaide",null,null,null,null,null,null,null,null,null,null,null,null,null,null,null,null,null,null,null,null,null,null,null,null,null,0]
["Bourscheid",null,null,null,null,null,null,null,null,null,null,null,null,null,null,null,null,null,null,null,null,null,null,null,null,null,0]
["Bous-Waldbredimus",null,null,null,null,null,null,null,null,null,null,null,null,null,null,null,null,null,null,null,null,null,null,null,null,null,0]
["Clervaux",null,null,null,null,null,null,null,null,null,null,null,null,null,null,null,null,null,null,null,null,null,null,null,null,null,0]
["Colmar-Berg",null,null,null,null,null,null,null,null,null,null,null,null,null,null,null,null,null,null,null,null,null,null,null,null,null,0]
["Consdorf",null,null,null,null,null,null,null,null,null,null,null,null,null,null,null,null,null,null,null,null,null,null,null,null,null,0]
["Contern",null,null,null,null,null,null,null,null,null,null,null,null,null,null,null,null,null,null,null,null,null,null,null,null,null,0]
["Dalheim",null,null,null,null,null,null,null,null,null,null,null,null,null,null,null,null,null,null,null,null,null,null,null,null,null,0]
["Diekirch",null,null,null,null,null,null,null,null,null,null,null,null,null,null,null,null,null,null,null,null,null,null,null,null,null,0]
["Differdange",null,null,null,null,null,null,null,null,null,null,null,null,null,null,null,null,null,null,null,null,null,null,null,null,null,0]
["Dippach",null,null,null,null,null,null,null,null,null,null,null,null,null,null,null,null,null,null,null,null,null,null,null,null,null,0]
["Dudelange",null,null,null,null,null,null,null,null,null,null,null,null,null,null,null,null,null,null,null,null,null,null,null,null,null,0]
["Echternach",null,null,null,null,null,null,null,null,null,null,null,null,null,null,null,null,null,null,null,null,null,null,null,null,null,0]
["Ell",null,null,null,null,null,null,null,null,null,null,null,null,null,null,null,null,null,null,null,null,null,null,null,null,null,0]
["Erpeldange-sur-Sûre",null,null,null,null,null,null,null,null,null,null,null,null,null,null,null,null,null,null,null,null,null,null,null,null,null,0]
["Esch-sur-Alzette",null,null,null,null,null,null,null,null,null,null,null,null,null,null,null,null,null,null,null,null,null,null,null,null,null,0]
["Esch-sur-Sûre",null,null,null,null,null,null,null,null,null,null,null,null,null,null,null,null,null,null,null,null,null,null,null,null,null,0]
["Ettelbruck",null,null,null,null,null,null,null,null,null,null,null,null,null,null,null,null,null,null,null,null,null,null,null,null,null,0]
["Feulen",null,null,null,null,null,null,null,null,null,null,null,null,null,null,null,null,null,null,null,null,null,null,null,null,null,0]
["Fischbach",null,null,null,null,null,null,null,null,null,null,null,null,null,null,null,null,null,null,null,null,null,null,null,null,null,0]
["Flaxweiler",null,null,null,null,null,null,null,null,null,null,null,null,null,null,null,null,null,null,null,null,null,null,null,null,null,0]
["Frisange",null,null,null,null,null,null,null,null,null,null,null,null,null,null,null,null,null,null,null,null,null,null,null,null,null,0]
["Garnich",null,null,null,null,null,null,null,null,null,null,null,null,null,null,null,null,null,null,null,null,null,null,null,null,null,0]
["Goesdorf",null,null,null,null,null,null,null,null,null,null,null,null,null,null,null,null,null,null,null,null,null,null,null,null,null,0]
["Grevenmacher",null,null,null,null,null,null,null,null,null,null,null,null,null,null,null,null,null,null,null,null,null,null,null,null,null,0]
["Groussbus-Wal",null,null,null,null,null,null,null,null,null,null,null,null,null,null,null,null,null,null,null,null,null,null,null,null,null,0]
["Habscht",null,null,null,null,null,null,null,null,null,null,null,null,null,null,null,null,null,null,null,null,null,null,null,null,null,0]
["Heffingen",null,null,null,null,null,null,null,null,null,null,null,null,null,null,null,null,null,null,null,null,null,null,null,null,null,0]
["Helperknapp",null,null,null,null,null,null,null,null,null,null,null,null,null,null,null,null,null,null,null,null,null,null,null,null,null,0]
["Hesperange",null,null,null,null,null,null,null,null,null,null,null,null,null,null,null,null,null,null,null,null,null,null,null,null,null,0]
["Junglinster",null,null,null,null,null,null,null,null,null,null,null,null,null,null,null,null,null,null,null,null,null,null,null,null,null,0]
["Käerjeng",null,null,null,null,null,null,null,null,null,null,null,null,null,null,null,null,null,null,null,null,null,null,null,null,null,0]
["Kayl",null,null,null,null,null,null,null,null,null,null,null,null,null,null,null,null,null,null,null,null,null,null,null,null,null,0]
["Kehlen",null,null,null,null,null,null,null,null,null,null,null,null,null,null,null,null,null,null,null,null,null,null,null,null,null,0]
["Kiischpelt",null,null,null,null,null,null,null,null,null,null,null,null,null,null,null,null,null,null,null,null,null,null,null,null,null,0]
["Koerich",null,null,null,null,null,null,null,null,null,null,null,null,null,null,null,null,null,null,null,null,null,null,null,null,null,0]
["Kopstal",null,null,null,null,null,null,null,null,null,null,null,null,null,null,null,null,null,null,null,null,null,null,null,null,null,0]
["Lac de la Haute-Sûre",null,null,null,null,null,null,null,null,null,null,null,null,null,null,null,null,null,null,null,null,null,null,null,null,null,0]
["Larochette",null,null,null,null,null,null,null,null,null,null,null,null,null,null,null,null,null,null,null,null,null,null,null,null,null,0]
["Lenningen",null,null,null,null,null,null,null,null,null,null,null,null,null,null,null,null,null,null,null,null,null,null,null,null,null,0]
["Leudelange",null,null,null,null,null,null,null,null,null,null,null,null,null,null,null,null,null,null,null,null,null,null,null,null,null,0]
["Lintgen",null,null,null,null,null,null,null,null,null,null,null,null,null,null,null,null,null,null,null,null,null,null,null,null,null,0]
["Lorentzweiler",null,null,null,null,null,null,null,null,null,null,null,null,null,null,null,null,null,null,null,null,null,null,null,null,null,0]
["Luxembourg",null,null,null,null,null,null,null,null,null,null,null,null,null,null,null,null,null,null,null,null,null,null,null,null,null,0]
["Mamer",null,null,null,null,null,null,null,null,null,null,null,null,null,null,null,null,null,null,null,null,null,null,null,null,null,0]
["Manternach",null,null,null,null,null,null,null,null,null,null,null,null,null,null,null,null,null,null,null,null,null,null,null,null,null,0]
["Mersch",null,null,null,null,null,null,null,null,null,null,null,null,null,null,null,null,null,null,null,null,null,null,null,null,null,0]
["Mertert",null,null,null,null,null,null,null,null,null,null,null,null,null,null,null,null,null,null,null,null,null,null,null,null,null,0]
["Mertzig",null,null,null,null,null,null,null,null,null,null,null,null,null,null,null,null,null,null,null,null,null,null,null,null,null,0]
["Mondercange",null,null,null,null,null,null,null,null,null,null,null,null,null,null,null,null,null,null,null,null,null,null,null,null,null,0]
["Mondorf-les-Bains",null,null,null,null,null,null,null,null,null,null,null,null,null,null,null,null,null,null,null,null,null,null,null,null,null,0]
["Niederanven",null,null,null,null,null,null,null,null,null,null,null,null,null,null,null,null,null,null,null,null,null,null,null,null,null,0]
["Nommern",null,null,null,null,null,null,null,null,null,null,null,null,null,null,null,null,null,null,null,null,null,null,null,null,null,0]
["Parc Hosingen",null,null,null,null,null,null,null,null,null,null,null,null,null,null,null,null,null,null,null,null,null,null,null,null,null,0]
["Pétange",null,null,null,null,null,null,null,null,null,null,null,null,null,null,null,null,null,null,null,null,null,null,null,null,null,0]
["Préizerdaul",null,null,null,null,null,null,null,null,null,null,null,null,null,null,null,null,null,null,null,null,null,null,null,null,null,0]
["Putscheid",null,null,null,null,null,null,null,null,null,null,null,null,null,null,null,null,null,null,null,null,null,null,null,null,null,0]
["Rambrouch",null,null,null,null,null,null,null,null,null,null,null,null,null,null,null,null,null,null,null,null,null,null,null,null,null,0]
["Reckange-sur-Mess",null,null,null,null,null,null,null,null,null,null,null,null,null,null,null,null,null,null,null,null,null,null,null,null,null,0]
["Redange/Attert",null,null,null,null,null,null,null,null,null,null,null,null,null,null,null,null,null,null,null,null,null,null,null,null,null,0]
["Reisdorf",null,null,null,null,null,null,null,null,null,null,null,null,null,null,null,null,null,null,null,null,null,null,null,null,null,0]
["Remich",null,null,null,null,null,null,null,null,null,null,null,null,null,null,null,null,null,null,null,null,null,null,null,null,null,0]
["Roeser",null,null,null,null,null,null,null,null,null,null,null,null,null,null,null,null,null,null,null,null,null,null,null,null,null,0]
["Rosport-Mompach",null,null,null,null,null,null,null,null,null,null,null,null,null,null,null,null,null,null,null,null,null,null,null,null,null,0]
["Rumelange",null,null,null,null,null,null,null,null,null,null,null,null,null,null,null,null,null,null,null,null,null,null,null,null,null,0]
["Saeul",null,null,null,null,null,null,null,null,null,null,null,null,null,null,null,null,null,null,null,null,null,null,null,null,null,0]
["Sandweiler",null,null,null,null,null,null,null,null,null,null,null,null,null,null,null,null,null,null,null,null,null,null,null,null,null,0]
["Sanem",null,null,null,null,null,null,null,null,null,null,null,null,null,null,null,null,null,null,null,null,null,null,null,null,null,0]
["Schengen",null,null,null,null,null,null,null,null,null,null,null,null,null,null,null,null,null,null,null,null,null,null,null,null,null,0]
["Schieren",null,null,null,null,null,null,null,null,null,null,null,null,null,null,null,null,null,null,null,null,null,null,null,null,null,0]
["Schifflange",null,null,null,null,null,null,null,null,null,null,null,null,null,null,null,null,null,null,null,null,null,null,null,null,null,0]
["Schuttrange",null,null,null,null,null,null,null,null,null,null,null,null,null,null,null,null,null,null,null,null,null,null,null,null,null,0]
["Stadtbredimus",null,null,null,null,null,null,null,null,null,null,null,null,null,null,null,null,null,null,null,null,null,null,null,null,null,0]
["Steinfort",null,null,null,null,null,null,null,null,null,null,null,null,null,null,null,null,null,null,null,null,null,null,null,null,null,0]
["Steinsel",null,null,null,null,null,null,null,null,null,null,null,null,null,null,null,null,null,null,null,null,null,null,null,null,null,0]
["Strassen",null,null,null,null,null,null,null,null,null,null,null,null,null,null,null,null,null,null,null,null,null,null,null,null,null,0]
["Tandel",null,null,null,null,null,null,null,null,null,null,null,null,null,null,null,null,null,null,null,null,null,null,null,null,null,0]
["Troisvierges",null,null,null,null,null,null,null,null,null,null,null,null,null,null,null,null,null,null,null,null,null,null,null,null,null,0]
["Useldange",null,null,null,null,null,null,null,null,null,null,null,null,null,null,null,null,null,null,null,null,null,null,null,null,null,0]
["Vallée de l'Ernz",null,null,null,null,null,null,null,null,null,null,null,null,null,null,null,null,null,null,null,null,null,null,null,null,null,0]
["Vianden",null,null,null,null,null,null,null,null,null,null,null,null,null,null,null,null,null,null,null,null,null,null,null,null,null,0]
["Vichten",null,null,null,null,null,null,null,null,null,null,null,null,null,null,null,null,null,null,null,null,null,null,null,null,null,0]
["Waldbillig",null,null,null,null,null,null,null,null,null,null,null,null,null,null,null,null,null,null,null,null,null,null,null,null,null,0]
["Walferdange",null,null,null,null,null,null,null,null,null,null,null,null,null,null,null,null,null,null,null,null,null,null,null,null,null,0]
["Weiler-la-Tour",null,null,null,null,null,null,null,null,null,null,null,null,null,null,null,null,null,null,null,null,null,null,null,null,null,0]
["Weiswampach",null,null,null,null,null,null,null,null,null,null,null,null,null,null,null,null,null,null,null,null,null,null,null,null,null,0]
["Wiltz",null,null,null,null,null,null,null,null,null,null,null,null,null,null,null,null,null,null,null,null,null,null,null,null,null,0]
["Wincrange",null,null,null,null,null,null,null,null,null,null,null,null,null,null,null,null,null,null,null,null,null,null,null,null,null,0]
["Winseler",null,null,null,null,null,null,null,null,null,null,null,null,null,null,null,null,null,null,null,null,null,null,null,null,null,0]
["Wormeldange",null,null,null,null,null,null,null,null,null,null,null,null,null,null,null,null,null,null,null,null,null,null,null,null,null,0]
[null,null,null,null,null,null,null,null,null,null,null,null,null,null,null,null,null,null,null,null,null,null,null,null,null,null,0]
[null,null,null,null,null,null,null,null,null,null,null,null,null,null,null,null,null,null,null,null,null,null,null,null,null,null,0]
[null,null,null,null,null,null,null,null,null,null,null,null,null,null,null,null,null,null,null,null,null,null,null,null,null,null,0]
[null,null,null,null,null,null,null,null,null,null,null,null,null,null,null,null,null,null,null,null,null,null,null,null,null,null,0]
[null,null,null,null,null,null,null,null,null,null,null,null,null,null,null,null,null,null,null,null,null,null,null,null,null,null,0]
[null,null,null,null,null,null,null,null,null,null,null,null,null,null,null,null,null,null,null,null,null,null,null,null,null,null,0]
[null,null,null,null,null,null,null,null,null,null,null,null,null,null,null,null,null,null,null,null,null,null,null,null,null,null,0]
[null,null,null,null,null,null,null,null,null,null,null,null,null,null,null,null,null,null,null,null,null,null,null,null,null,null,0]
[null,null,null,null,null,null,null,null,null,null,null,null,null,null,null,null,null,null,null,null,null,null,null,null,null,null,0]
[null,null,null,null,null,null,null,null,null,null,null,null,null,null,null,null,null,null,null,null,null,null,null,null,null,null,0]
[null,null,null,null,null,null,null,null,null,null,null,null,null,null,null,null,null,null,null,null,null,null,null,null,null,null,0]
[null,null,null,null,null,null,null,null,null,null,null,null,null,null,null,null,null,null,null,null,null,null,null,null,null,null,0]
[null,null,null,null,null,null,null,null,null,null,null,null,null,null,null,null,null,null,null,null,null,null,null,null,null,null,0]
[null,null,null,null,null,null,null,null,null,null,null,null,null,null,null,null,null,null,null,null,null,null,null,null,null,null,0]
[null,null,null,null,null,null,null,null,null,null,null,null,null,null,null,null,null,null,null,null,null,null,null,null,null,null,0]
[null,null,null,null,null,null,null,null,null,null,null,null,null,null,null,null,null,null,null,null,null,null,null,null,null,null,0]
[null,null,null,null,null,null,null,null,null,null,null,null,null,null,null,null,null,null,null,null,null,null,null,null,null,null,0]
[null,null,null,null,null,null,null,null,null,null,null,null,null,null,null,null,null,null,null,null,null,null,null,null,null,null,0]
[null,null,null,null,null,null,null,null,null,null,null,null,null,null,null,null,null,null,null,null,null,null,null,null,null,null,0]
[null,null,null,null,null,null,null,null,null,null,null,null,null,null,null,null,null,null,null,null,null,null,null,null,null,null,0]
[null,null,null,null,null,null,null,null,null,null,null,null,null,null,null,null,null,null,null,null,null,null,null,null,null,null,0]
[null,null,null,null,null,null,null,null,null,null,null,null,null,null,null,null,null,null,null,null,null,null,null,null,null,null,0]
[null,null,null,null,null,null,null,null,null,null,null,null,null,null,null,null,null,null,null,null,null,null,null,null,null,null,0]
[null,null,null,null,null,null,null,null,null,null,null,null,null,null,null,null,null,null,null,null,null,null,null,null,null,null,0]
[null,null,null,null,null,null,null,null,null,null,null,null,null,null,null,null,null,null,null,null,null,null,null,null,null,null,0]
[null,null,null,null,null,null,null,null,null,null,null,null,null,null,null,null,null,null,null,null,null,null,null,null,null,null,0]
[null,null,null,null,null,null,null,null,null,null,null,null,null,null,null,null,null,null,null,null,null,null,null,null,null,null,0]
[null,null,null,null,null,null,null,null,null,null,null,null,null,null,null,null,null,null,null,null,null,null,null,null,null,null,0]
[null,null,null,null,null,null,null,null,null,null,null,null,null,null,null,null,null,null,null,null,null,null,null,null,null,null,0]
[null,null,null,null,null,null,null,null,null,null,null,null,null,null,null,null,null,null,null,null,null,null,null,null,null,null,0]
[null,null,null,null,null,null,null,null,null,null,null,null,null,null,null,null,null,null,null,null,null,null,null,null,null,null,0]
[null,null,null,null,null,null,null,null,null,null,null,null,null,null,null,null,null,null,null,null,null,null,null,null,null,null,0]
[null,null,null,null,null,null,null,null,null,null,null,null,null,null,null,null,null,null,null,null,null,null,null,null,null,null,0]
[null,null,null,null,null,null,null,null,null,null,null,null,null,null,null,null,null,null,null,null,null,null,null,null,null,null,0]
[null,null,null,null,null,null,null,null,null,null,null,null,null,null,null,null,null,null,null,null,null,null,null,null,null,null,0]
[null,null,null,null,null,null,null,null,null,null,null,null,null,null,null,null,null,null,null,null,null,null,null,null,null,null,0]
[null,null,null,null,null,null,null,null,null,null,null,null,null,null,null,null,null,null,null,null,null,null,null,null,null,null,0]
[null,null,null,null,null,null,null,null,null,null,null,null,null,null,null,null,null,null,null,null,null,null,null,null,null,null,0]
[null,null,null,null,null,null,null,null,null,null,null,null,null,null,null,null,null,null,null,null,null,null,null,null,null,null,0]
[null,null,null,null,null,null,null,null,null,null,null,null,null,null,null,null,null,null,null,null,null,null,null,null,null,null,0]
[null,null,null,null,null,null,null,null,null,null,null,null,null,null,null,null,null,null,null,null,null,null,null,null,null,null,0]
[null,null,null,null,null,null,null,null,null,null,null,null,null,null,null,null,null,null,null,null,null,null,null,null,null,null,0]
[null,null,null,null,null,null,null,null,null,null,null,null,null,null,null,null,null,null,null,null,null,null,null,null,null,null,0]
[null,null,null,null,null,null,null,null,null,null,null,null,null,null,null,null,null,null,null,null,null,null,null,null,null,null,0]
[null,null,null,null,null,null,null,null,null,null,null,null,null,null,null,null,null,null,null,null,null,null,null,null,null,null,0]
[null,null,null,null,null,null,null,null,null,null,null,null,null,null,null,null,null,null,null,null,null,null,null,null,null,null,0]
[null,null,null,null,null,null,null,null,null,null,null,null,null,null,null,null,null,null,null,null,null,null,null,null,null,null,0]
[null,null,null,null,null,null,null,null,null,null,null,null,null,null,null,null,null,null,null,null,null,null,null,null,null,null,0]
[null,null,null,null,null,null,null,null,null,null,null,null,null,null,null,null,null,null,null,null,null,null,null,null,null,null,0]
[null,null,null,null,null,null,null,null,null,null,null,null,null,null,null,null,null,null,null,null,null,null,null,null,null,null,0]
[null,null,null,null,null,null,null,null,null,null,null,null,null,null,null,null,null,null,null,null,null,null,null,null,null,null,0]
[null,null,null,null,null,null,null,null,null,null,null,null,null,null,null,null,null,null,null,null,null,null,null,null,null,null,0]
[null,null,null,null,null,null,null,null,null,null,null,null,null,null,null,null,null,null,null,null,null,null,null,null,null,null,0]
[null,null,null,null,null,null,null,null,null,null,null,null,null,null,null,null,null,null,null,null,null,null,null,null,null,null,0]
[null,null,null,null,null,null,null,null,null,null,null,null,null,null,null,null,null,null,null,null,null,null,null,null,null,null,0]
[null,null,null,null,null,null,null,null,null,null,null,null,null,null,null,null,null,null,null,null,null,null,null,null,null,null,0]
[null,null,null,null,null,null,null,null,null,null,null,null,null,null,null,null,null,null,null,null,null,null,null,null,null,null,0]
[null,null,null,null,null,null,null,null,null,null,null,null,null,null,null,null,null,null,null,null,null,null,null,null,null,null,0]
[null,null,null,null,null,null,null,null,null,null,null,null,null,null,null,null,null,null,null,null,null,null,null,null,null,null,0]
[null,null,null,null,null,null,null,null,null,null,null,null,null,null,null,null,null,null,null,null,null,null,null,null,null,null,0]
[null,null,null,null,null,null,null,null,null,null,null,null,null,null,null,null,null,null,null,null,null,null,null,null,null,null,0]
[null,null,null,null,null,null,null,null,null,null,null,null,null,null,null,null,null,null,null,null,null,null,null,null,null,null,0]
[null,null,null,null,null,null,null,null,null,null,null,null,null,null,null,null,null,null,null,null,null,null,null,null,null,null,0]
[null,null,null,null,null,null,null,null,null,null,null,null,null,null,null,null,null,null,null,null,null,null,null,null,null,null,0]
[null,null,null,null,null,null,null,null,null,null,null,null,null,null,null,null,null,null,null,null,null,null,null,null,null,null,0]
[null,null,null,null,null,null,null,null,null,null,null,null,null,null,null,null,null,null,null,null,null,null,null,null,null,null,0]
[null,null,null,null,null,null,null,null,null,null,null,null,null,null,null,null,null,null,null,null,null,null,null,null,null,null,0]
[null,null,null,null,null,null,null,null,null,null,null,null,null,null,null,null,null,null,null,null,null,null,null,null,null,null,0]
[null,null,null,null,null,null,null,null,null,null,null,null,null,null,null,null,null,null,null,null,null,null,null,null,null,null,0]
[null,null,null,null,null,null,null,null,null,null,null,null,null,null,null,null,null,null,null,null,null,null,null,null,null,null,0]
[null,null,null,null,null,null,null,null,null,null,null,null,null,null,null,null,null,null,null,null,null,null,null,null,null,null,0]
[null,null,null,null,null,null,null,null,null,null,null,null,null,null,null,null,null,null,null,null,null,null,null,null,null,null,0]
[null,null,null,null,null,null,null,null,null,null,null,null,null,null,null,null,null,null,null,null,null,null,null,null,null,null,0]
[null,null,null,null,null,null,null,null,null,null,null,null,null,null,null,null,null,null,null,null,null,null,null,null,null,null,0]
[null,null,null,null,null,null,null,null,null,null,null,null,null,null,null,null,null,null,null,null,null,null,null,null,null,null,0]
[null,null,null,null,null,null,null,null,null,null,null,null,null,null,null,null,null,null,null,null,null,null,null,null,null,null,0]
[null,null,null,null,null,null,null,null,null,null,null,null,null,null,null,null,null,null,null,null,null,null,null,null,null,null,0]
[null,null,null,null,null,null,null,null,null,null,null,null,null,null,null,null,null,null,null,null,null,null,null,null,null,null,0]
[null,null,null,null,null,null,null,null,null,null,null,null,null,null,null,null,null,null,null,null,null,null,null,null,null,null,0]
[null,null,null,null,null,null,null,null,null,null,null,null,null,null,null,null,null,null,null,null,null,null,null,null,null,null,0]
[null,null,null,null,null,null,null,null,null,null,null,null,null,null,null,null,null,null,null,null,null,null,null,null,null,null,0]
[null,null,null,null,null,null,null,null,null,null,null,null,null,null,null,null,null,null,null,null,null,null,null,null,null,null,0]
[null,null,null,null,null,null,null,null,null,null,null,null,null,null,null,null,null,null,null,null,null,null,null,null,null,null,0]
[null,null,null,null,null,null,null,null,null,null,null,null,null,null,null,null,null,null,null,null,null,null,null,null,null,null,0]
[null,null,null,null,null,null,null,null,null,null,null,null,null,null,null,null,null,null,null,null,null,null,null,null,null,null,0]
[null,null,null,null,null,null,null,null,null,null,null,null,null,null,null,null,null,null,null,null,null,null,null,null,null,null,0]

{"sheet":"ML Gestionnaire Sheet","index":8,"n_rows":5,"n_cols":14,"rows_kept":5,"cut":false,"hidden":true,"merged":[]}
["immeuble collectif",null,null,"maison",null,null,null,"immeuble collectif",null,null,"maison"]
[null,null,null,null,null,null,null,"Row Labels","Count of catégorie",null,"Row Labels","Count of catégorie",null,"1. Click an een Tableau"]
[null,null,null,null,null,null,null,"(blank)",null,null,"(blank)",null,null,"2. PivotTable Tools (bar utils)"]
[null,null,null,null,null,null,null,"Grand Total",null,null,"Grand Total",null,null,"3. Analyze "]
[null,null,null,null,null,null,null,null,null,null,null,null,null,"4. Refresh"]